{"text_format":"1","workbook":"xlsx","n_sheets":21,"sheets":["PROBA_AME","Hoja1","Buscardatos","DATOS_POBLADOS","tablas exposicion","DATOS GENERALES","PROBABILIDAD_DAÑO","VOLCANICA","INUNDACION","Usuarios","HURACANES","CLIMATICO","DESLIZAMIENTOS","SISMOS","VIENTOS","OTRAS#1","OTRAS#2","OTRAS#3","RESULTADOS_FINALES","DATOS#1","TABLA_INDICE_SISMICIDAD_EJEMPLO"],"not_rendered":{"charts":0,"images":10,"macros":1,"external_links":0,"defined_names":47,"comments":0,"pivot_tables":0},"unopened":[],"bounds":{"document_bytes":16777216,"sheet_cells":100000,"rows_first":2000,"rows_last":500,"rows_between":2000,"halvings":0,"cell_chars":16384,"cell_head_chars":4096},"cells_cut":0,"cells_raw":0,"read":"whole","date_system":"1900"}

{"sheet":"PROBA_AME","index":0,"n_rows":57,"n_cols":6,"rows_kept":57,"cut":false,"hidden":true,"merged":[[18,0,18,2],[1,0,1,2],[2,0,2,2],[9,0,9,2],[10,0,10,2],[17,0,17,2],[51,0,51,2],[23,7,23,12],[25,0,25,2],[26,0,26,2],[33,0,33,2],[34,0,34,2],[41,0,41,2],[42,0,42,2],[46,5,46,18],[50,0,50,2]]}
[]
["CRITERIOS PARA DETERMINAR LA PROBABILIDAD DEL NIVEL DE INTENSIDAD DE ZONA SISMICA"]
["TABLA No. 1\nPONDERACIÓN DEL FACTOR DE INTENSIDAD EN SISMOS"]
["INTENSIDAD","CRITERIO","NIVEL"]
[1,"> El sitio se encuentra ubicado dentro de los índices de sismicidad; 2.1, 2.2 ; según la NSE2-10 de AGIES. \n>SE ADJUNTA EL MAPA DEL INDICE DE SISMICIDAD POR MUNICIPIO CON LISTADO DE COMUNIDADES POR MUNICIPIO)","BAJO"]
[2,"> El sitio se encuentra ubicado dentro de los índices de sismicidad; 3.1, 3.2 ; según la NSE2-10 de AGIES. \n>SE ADJUNTA EL MAPA DEL INDICE DE SISMICIDAD POR MUNICIPIO CON LISTADO DE COMUNIDADES POR MUNICIPIO)","MEDIO"]
[3,"> El sitio se encuentra ubicado dentro de los índices de sismicidad; 4.1; según la NSE2-10 de AGIES. \n>SE ADJUNTA EL MAPA DEL INDICE DE SISMICIDAD POR MUNICIPIO CON LISTADO DE COMUNIDADES POR MUNICIPIO)","ALTO"]
[4,"> El sitio se encuentra ubicado dentro de los índices de sismicidad; 4.2, 4.3; según la NSE2-10 de AGIES.\n>SE ADJUNTA EL MAPA DEL INDICE DE SISMICIDAD POR MUNICIPIO CON LISTADO DE COMUNIDADES POR MUNICIPIO)","MUY ALTO"]
[]
["CRITERIOS PARA DETERMINAR LA PROBABILIDAD DEL NIVEL DE INTENSIDAD DE AMENAZA VOLCANICA"]
["TABLA No. 2\nPONDERACIÓN DEL FACTOR DE INTENSIDAD EN VULCANISMO"]
["INTENSIDAD","CRITERIO","NIVEL"]
[1,"> Distancia del sitio del proyecto en relación a un edificio volcánico mayor de 50 Kms.  \n> Eventualmente caída de ceniza  (medio centímetro o menos de lamina de espesor)\n>","BAJO"]
[2,"> distancia del sitio del proyecto en relación a un edificio volcánico de aproximadamente 30 Kms.\n> Eventualmente caída de TEFRA arena volcánica   (un centímetro  de lamina de espesor)  \n> actividad volcánica baja ","MEDIO"]
[3,">distancia del sitio del proyecto en relación a un edificio volcánico de menos de 30 Kms.\n> con antecedentes de actividad volcánica\n> historial de caída de TEFRA (arena volcánica de  mas de un centímetro  de lamina de espesor)  \n>el sitio del proyecto se encuentra ubicado en, o cerca de quebradas que surgen el edificio volcánico.","ALTO"]
[4,"> Distancia de la obra proyectada en relación a un edificio volcánico de 20 Kms. o menos)\n> Con historial de frecuente actividad volcánica \n> caída frecuente de TEFRA arena volcánica, lapilli y supera los tres centímetro de espesor\n> Tamaño de la TEFRA volcánica supera los 10 milímetros.\n> Historial de flujos de lava, lahares, flujos piroclásticos en las cercanías del sitio del proyecto.\n>el sitio del proyecto se encuentra ubicado en, o cerca de quebradas que surgen el edificio volcánico.","MUY ALTO"]
[]
[" CRITERIOS PARA DETERMINAR LA PROBABILIDAD DEL NIVEL DE INTENSIDAD EN INUNDACIONES"]
["TABLA No 3\nPONDERACIÓN DEL FACTOR DE INTENSIDAD EN INUNDACIONES"]
["INTENSIDAD","CRITERIO","NIVEL"]
[1,"> no existen antecedentes de inundación, o cuando se dan entre 0 a 0.6 ms de altura.\n> No hay interrupción de los servicios\n>no existe ríos o cuerpos de agua cercanos\n>sitio del proyecto en terreno elevado.","BAJO"]
[2,">con antecedentes históricos de ocurrencia de inundaciones eventuales.\n>tirante de la inundación  0.6 a 1 ms de altura\n>cuando han ocurrido inundaciones el  nivel a alcanzado hasta los cincuenta centímetros  altura.\n>el tiempo de duración del espejo de agua producto de la inundación a durado mas de 24 horas.\n> Daños moderados a la infraestructura \n> afecta el transito de vehículos.\n> No hay interrupción de los servicios","MEDIO",null,null,"caso :bangladesh"]
[3,"> El tirante de la inundación alcanza entre  1  y 3.5 ms de altura.\n> Colapso parcial de la infraestructura \n> Pérdidas considerables.\n> Interrupción parcial de los servicios \n>afecta el transito de las personas","ALTO"]
[4,"> El tirante de la inundación alcanza mas de 3.5 ms.  de altura.\n> cuando sucede se sumerge el primer piso del edificio. \n> Peligro de vidas humanas.\n> Interrupción de servicios,","MUY ALTO"]
[]
["CRITERIOS PARA DETERMINAR LA PROBABILIDAD DEL NIVEL DE INTENSIDAD EN DESLIZAMIENTOS"]
["TABLA No. 4\nPONDERACIÓN DEL FACTOR DE INTENSIDAD EN DESLIZAMIENTOS"]
["INTENSIDAD","CRITERIO","NIVEL"]
[1,">NO EXISTE HISTORIAL DE DESLIZAMIENTOS\n>TERRENO CLASE I,PLANO O CON PENDIENTE  DE  0 a 12 % \n> TIPO DE SUELO, COMPACTO Y/O ROCOSO\n> EXISTE VEGETACION FORESTAL\n> NO SE OBSERVAN MANTOS FREATICOS\n>LA DISTANCIA AL PROYECTO DE LA CRESTA ES DE 500 MTS O MAS DEL SITIO DEL PROYECTO\n> NO EXISTEN FRACTURAS O GRIETAS QUE PUEDAN AFECTAR EL SITIO DEL PROYECTO\n","BAJO"]
[2,"> NO EXISTE HISTORIAL DE DESLIZAMIENTOS\n>TERRENO CLASE II, CON PENDIENTES DE  APROXIMADAMENTE DE 12 A 25 %\n> TIPO DE SUELO POROSO Y/O CON DENDRITOS\n> NO EXISTE COBERTURA VEGETAL\n> SE OBSERVAN MANTOS FREATICOS\n>LA DISTANCIA AL PROYECTO DE LA CRESTA ES DE 300 A 400   DEL SITIO DEL PROYECTO\n>ZONAS PROBABLES DE DESLIZAMIENTO SEGÚN MAPAS DE CONRED.\n>  FRACTURAS O GRIETAS ORIENTADAS AL SITIO DEL PROYECTO","MEDIO"]
[3,">  EXISTE HISTORIA DE DESLIZAMIENTOS\n>TERRENO  CLASE III, CON PENDIENTES DE  APROXIMADAMENTE DE 25 A 50 %\n> TIPO DE SUELO SUELTO POROSO Y/O CON DENDRITOS\n> NO EXISTE COBERTURA VEGETAL\n> SE OBSERVAN MANTOS FREATICOS\n>LA DISTANCIA AL PROYECTO DE LA CRESTA ES DE 400 A 200   DEL SITIO DEL PROYECTO\n>ZONAS PROBABLES DE DESLIZAMIENTO SEGÚN MAPAS DE CONRED.\n> FRACTURAS O GRIETAS ESTAN ORIENTADAS AL SITIO DEL PROYECTO\n\n","ALTO"]
[4,">  EXISTE HISTORIAL DE CONSTANTES DESLIZAMIENTOS\n>TERRENO  CLASE IV, CON PENDIENTES DE  APROXIMADAMENTE DE 50 0 MAS %\n> TIPO DE SUELO SUELTO POROSO Y/O CON DENDRITOS\n> NO EXISTE COBERTURA VEGETAL\n> SE OBSERVAN MANTOS FREATICOS/ FALTA DE CANALIZACION DE AGUAS NEGRAS Y LLUVIAS.\n>LA DISTANCIA AL PROYECTO DE LA CRESTA ES DE 200 O MENOS DEL SITIO DEL PROYECTO\n>ZONAS PROBABLES DE ALTO RIESGO DE DESLIZAMIENTO SEGÚN MAPAS DE CONRED.\n> LA ORIENTACION DE LAS FRACTURAS O GRIETAS ESTAN ORIENTADAS AL SITIO DEL PROYECTO\n","MUY ALTO"]
[]
[" CRITERIOS PARA DETERMINAR LA PROBABILIDAD DEL NIVEL DE INTENSIDAD \nEN VIENTOS FUERTES (Escala de Beaufort)"]
["TABLA No. 5\nPONDERACIÓN DEL FACTOR DE INTENSIDAD EN DESLIZAMIENTOS"]
["INTENSIDAD","CRITERIO","NIVEL"]
[1,"> Velocidades de 2 a 19 km/h\n> El humo indica la dirección del viento (inclinado a casi horizontal)","BAJO"]
[2,"> Velocidades de 20 a 45 km/h\n> los vientos doblan ramas, Pequeños movimientos delos árboles \n> Superficie de los lagos y mares ondulada, olas largas, marejada. ","MEDIO"]
[3,"> Velocidades de 46 a 75 km/h\n> Se quiebran las copas delos árboles, circulación de personas dificultosa (caminar inclinado, difícil caminar).\n>En el mar vuela espuma, rompen olas.","ALTO"]
[4,"> Velocidades de 76 a +100 km/h\n> Árboles arrancados, dañasen la estructura de las construcciones\n> En mar Olas gigantes, Espuma blanca","MUY ALTO"]
[]
[" CRITERIOS PARA DETERMINAR LA PROBABILIDAD DEL NIVEL DE INTENSIDAD \nDE HURACANES"]
["TABLA No. 6\nPONDERACIÓN DEL FACTOR DE INTENSIDAD EN HURACANES"]
["INTENSIDAD","CRITERIO","NIVEL"]
[1,"> Sin daños en las estructuras de los edificios. \n> Daños básicamente en arbustos y árboles. \n> Inundaciones en zonas costeras.","BAJO"]
[2,"> Daños en techos, puertas y ventanas de estructuras pequeñas. \n> Importantes daños en la vegetación. \n> Posibilidad de inundaciones tierra adentro.","MEDIO"]
[3,"> Daños estructurales en edificios mayores. \n> Las inundaciones destruyen edificaciones pequeñas.  \n> Inundaciones tierra adentro.","ALTO"]
[4,"> Destrucción de tejados completa en algunos edificios. \n> Las inundaciones dañan las plantas bajas de las estructuras. \n> Evacuación masiva de áreas residenciales. \n> Los vientos de 300 km/h pueden arrancar árboles y hasta casas desde sus \n    cimientos.","MUY ALTO"]
[]
[]
[" CRITERIOS PARA DETERMINAR LA PROBABILIDAD DEL NIVEL DE INTENSIDAD \nDE OTRAS AMENAZAS"]
["TABLA No. 7\nPONDERACIÓN DEL FACTOR DE INTENSIDAD OTRAS AMENAZAS"]
["INTENSIDAD","CRITERIO","NIVEL"]
[1,"> Sin daños significativos a la infraestructura\n> Pérdidas relativamente sin importancia\n> Sin interrupción de los servicios básicos","BAJO"]
[2,"> Daños leves a la infraestructura\n> Pérdidas de baja consideración\n> Interrupción momentánea de los servicios básicos","MEDIO"]
[3,"> Daños severos a la infraestructura\n> Pérdidas elevadas\n> Interrupción parcial de los servicios básicos","ALTO"]
[4,"> Colapso de algunas construcciones\n> Pérdidas de gran magnitud\n> Interrupción de servicios básicos por períodos largos","MUY ALTO"]

{"sheet":"Hoja1","index":1,"n_rows":15,"n_cols":4,"rows_kept":15,"cut":false,"hidden":false,"merged":[]}
[]
[]
[]
[]
[]
[]
[]
[]
[]
[]
[]
[]
[]
[]
[null,null,null,"Instrucciones:  Para iniciar darle clic al botón habilitar contenido en la parte superior "]

{"sheet":"Buscardatos","index":2,"n_rows":341,"n_cols":18,"rows_kept":341,"cut":false,"hidden":true,"merged":[]}
[null,null,null,null,null,null,null,"Región","Buscado dpto","Buscado Muni",null,null,null,null,null,"Grados","Minutos","Segundos"]
["Zacapa","ZACAPA",null,null,"Santa Catarina Pinula","SANTA_CATARINA_PINULA",null,"I","Guatemala","Santa Catarina Pinula",null,null,null,"Latitud",null,14,0,0]
["Chiquimula","CHIQUIMULA",null,null,"San José Pinula","SAN_JOSÉ_PINULA",null,"Cambio Nom",{"$f":"IFERROR(VLOOKUP(I2,A2:B23,2,0),\" \")","v":"GUATEMALA"},{"$f":"IFERROR(VLOOKUP(J2,E2:F341,2,0),\" \")","v":"SANTA_CATARINA_PINULA"},null,null,null,"Longitud",null,88,0,0]
["El Progreso","EL_PROGRESO",321,null,"Guatemala","GUATEMALA"]
["Izabal","IZABAL",null,null,"San José del Golfo","SAN_JOSÉ_DEL_GOLFO"]
["Sacatepéquez","SACATEPÉQUEZ",null,null,"Palencia","PALENCIA",null,null,{"$f":"CaseVLook(J2,E2:F341,2)","v":{"$error":"#NAME?"}}]
["Chimaltenango","CHIMALTENANGO",null,null,"Chinautla","CHINAUTLA"]
["Escuintla","ESCUINTLA",null,null,"San Pedro Ayampuc","SAN_PEDRO_AYAMPUC"]
["Retalhuleu","RETALHULEU",null,null,"Mixco","MIXCO"]
["Suchitepéquez","SUCHITEPEQUEZ",null,null,"San Pedro Sacatepéquez Guatemala","SAN_PEDRO_SACATEPÉQUEZ"]
["Totonicapán","TOTONICAPAN",null,null,"San Juan Sacatepéquez","SAN_JUAN_SACATEPÉQUEZ"]
["Sololá","SOLOLA",null,null,"San Raymundo","SAN_RAYMUNDO"]
["San Marcos","SAN_MARCOS",null,null,"Chuarrancho","CHUARRANCHO"]
["Quetzaltenango","QUETZALTENANGO",null,null,"Fraijanes","FRAIJANES"]
["Petén","PETEN",null,null,"Amatitlán","AMATITLAN"]
["Jutiapa","JUTIAPA",null,null,"Villa Nueva","VILLA_NUEVA"]
["Jalapa","JALAPA",null,null,"Villa Canales","VILLA_CANALES"]
["Santa Rosa","SANTA_ROSA",null,null,"San Miguel Petapa","SAN_MIGUEL_PETAPA"]
["Huehuetenango","HUEHUETENANGO",null,null,"Chahal","CHAHAL"]
["Quiché","QUICHE",null,null,"Chisec","CHISEC"]
["Guatemala","GUATEMALA",null,null,"Cobán","COBÁN"]
["Alta Verapaz","ALTA_VERAPAZ",null,null,"Fray Bartolomé de las Casas","FRAY_BARTOLOMÉ_DE_LAS_CASAS"]
["Baja Verapaz","BAJA_VERAPAZ",null,null,"Panzóz","PANZÓS"]
[null,null,null,null,"Raxruhá","RAXRUHÁ"]
[null,null,null,null,"San Agustín Lanquín","LANQUÍN"]
[null,null,null,null,"San Cristóbal Verapaz","SAN_CRISTÓBAL_VERAPAZ"]
[null,null,null,null,"San Juan Chamelco","SAN_JUAN_CHAMELCO"]
[null,null,null,null,"San Miguel Tucurú","TUCURÚ"]
[null,null,null,null,"San Pedro Carchá","SAN_PEDRO_CARCHÁ"]
[null,null,null,null,"Santa Catalina La Tinta","SANTA_CATALINA_LA_TINTA"]
[null,null,null,null,"Santa Cruz Verapaz","SANTA_CRUZ_VERAPAZ"]
[null,null,null,null,"Santa María Cahabón","SANTA_MARÍA_CAHABÓN"]
[null,null,null,null,"Senahú","SENAHÚ"]
[null,null,null,null,"Tactic","TACTIC"]
[null,null,null,null,"Tamahú","TAMAHÚ"]
[null,null,null,null,"Cubulco","CUBULCO"]
[null,null,"Ana Belen",null,"Granados","GRANADOS"]
[null,null,1234,null,"Purulhá","PURULHÁ"]
[null,null,"Sofío",null,"Rabinal","RABINAL"]
[null,null,4321,null,"Salamá","SALAMÁ"]
[null,null,null,null,"San Jerónimo","SAN_JERÓNIMO"]
[null,null,null,null,"San Miguel Chicaj","SAN_MIGUEL_CHICAJ"]
[null,null,null,null,"Santa Cruz el Chol","SANTA_CRUZ_EL_CHOL"]
[null,null,null,null,"Camotán","CAMOTAN"]
[null,null,null,null,"Chiquimula","CHIQUIMULA"]
[null,null,null,null,"Concepción Las Minas","CONCEPCIÓN_LAS_MINAS"]
[null,null,null,null,"Esquipulas","ESQUIPULAS"]
[null,null,null,null,"Ipala","IPALA"]
[null,null,null,null,"Jocotán","JOCOTÁN"]
[null,null,null,null,"Olopa","OLOPA"]
[null,null,null,null,"Quezaltepeque","QUETZALTEPEQUE"]
[null,null,null,null,"San Jacinto","SAN_JACINTO"]
[null,null,null,null,"San José la Arada","SAN_JOSÉ_LA_ARADA"]
[null,null,null,null,"San Juan Ermita","SAN_JUAN_ERMITA"]
[null,null,null,null,"El Jícaro","EL_JÍCARO"]
[null,null,null,null,"Guastatoya","GUASTATOYA"]
[null,null,null,null,"Morazán","MORAZÁN"]
[null,null,null,null,"San Agustín Acasaguastlán","SAN_AGUSTÍN_ACASAGUASTLÁN"]
[null,null,null,null,"San Antonio La Paz","SAN_ANTONIO_LA_PAZ"]
[null,null,null,null,"San Cristóbal Acasaguastlán","SAN_CRISTÓBAL_ACASAGUASTLÁN"]
[null,null,null,null,"Sanarate","SANARATE"]
[null,null,null,null,"Sansare","SANSARE"]
[null,null,null,null,"El Estor","EL_ESTOR"]
[null,null,null,null,"Livingston","LIVINGSTON"]
[null,null,null,null,"Los Amates","LOS_AMATES"]
[null,null,null,null,"Morales","MORALES"]
[null,null,null,null,"Puerto Barrios","PUERTO_BARRIOS"]
[null,null,null,null,"Cabañas","CABAÑAS"]
[null,null,null,null,"Estanzuela","ESTANZUELA"]
[null,null,null,null,"Gualán","GUALÁN"]
[null,null,null,null,"Huité","HUITÉ"]
[null,null,null,null,"La Unión","LA_UNIÓN"]
[null,null,null,null,"Río Hondo","RÍO_HONDO"]
[null,null,null,null,"San Diego","SAN_DIEGO"]
[null,null,null,null,"San Jorge","SAN_JORGE_ZACAPA"]
[null,null,null,null,"Teculután","TECULUTÁN"]
[null,null,null,null,"Usumatlán","USUMATLÁN"]
[null,null,null,null,"Zacapa","ZACAPA"]
[null,null,null,null,"Agua Blanca","AGUA BLANCA"]
[null,null,null,null,"Asunción Mita","ASUNCION MITA"]
[null,null,null,null,"Atescatempa","ATESCATEMPA"]
[null,null,null,null,"Comapa","COMAPA"]
[null,null,null,null,"Conguaco","CONGUACO"]
[null,null,null,null,"El Adelanto","EL_ADELANTO"]
[null,null,null,null,"El Progreso","EL_PROGRESO"]
[null,null,null,null,"Jalpatagua","JALPATAGUA"]
[null,null,null,null,"Jerez","JEREZ"]
[null,null,null,null,"Jutiapa","JUTIAPA"]
[null,null,null,null,"Moyuta","MOYUTA"]
[null,null,null,null,"Pasaco","PASACO"]
[null,null,null,null,"Quesada","QUESADA"]
[null,null,null,null,"Santa Catarina Mita","SANTA_CATARINA_MITA"]
[null,null,null,null,"Yupiltepeque","YUPILTEPEQUE"]
[null,null,null,null,"Zapotitlán","ZAPOTITLÁN"]
[null,null,null,null,"San José Acatempa","SAN_JOSÉ_ACATEMPA"]
[null,null,null,null,"Jalapa","JALAPA"]
[null,null,null,null,"Mataquescuintla","MATAQUESCUINTLA"]
[null,null,null,null,"Monjas","MONJAS"]
[null,null,null,null,"San Carlos Alzatate","SAN_CARLOS_ALZATATE"]
[null,null,null,null,"San Luis Jilotepeque","SAN_LUIS_JILOTEPEQUE"]
[null,null,null,null,"San Manuel Chaparrón","SAN_MANUEL_CHAPARRÓN"]
[null,null,null,null,"San Pedro Pinula","SAN_PEDRO_PINULA"]
[null,null,null,null,"Barberena","BARBERENA"]
[null,null,null,null,"Casillas Santa Rosa","CASILLAS"]
[null,null,null,null,"Chiquimulilla","CHIQUIMULILLA"]
[null,null,null,null,"Cuilapa","CUILAPA"]
[null,null,null,null,"Guazacapán","GUAZACAPÁN"]
[null,null,null,null,"Nueva Santa Rosa","NUEVA_SANTA_ROSA"]
[null,null,null,null,"Oratorio","ORATORIO"]
[null,null,null,null,"Pueblo Nuevo Viñas","PUEBLO_NUEVO_VIÑAS"]
[null,null,null,null,"San Juan Tecuaco","SAN_JUAN_TECUACO"]
[null,null,null,null,"San Rafael Las Flores","SAN_RAFAEL_LAS_FLORES"]
[null,null,null,null,"Santa Cruz Naranjo","SANTA_CRUZ_NARANJO"]
[null,null,null,null,"Santa María Ixhuatán","SANTA_MARÍA_IXHUATÁN"]
[null,null,null,null,"Santa Rosa de Lima","SANTA_ROSA_DE_LIMA"]
[null,null,null,null,"Taxisco","TAXISCO"]
[null,null,null,null,"Acatenango","ACATENANGO"]
[null,null,null,null,"Chimaltenango","CHIMALTENANGO"]
[null,null,null,null,"El Tejar","EL_TEJAR"]
[null,null,null,null,"Parramos","PARRAMOS"]
[null,null,null,null,"Patzicía","PATZICÍA"]
[null,null,null,null,"Patzún","PATZÚN"]
[null,null,null,null,"San Andrés Itzapa","SAN_ANDRÉS_CHIMALTENANGO"]
[null,null,null,null,"San José Poaquil","SAN_JOSÉ_POAQUIL"]
[null,null,null,null,"San Juan Comalapa","SAN_JUAN_COMALAPA"]
[null,null,null,null,"San Martín Jilotepeque","SAN_MARTÍN_JILOTEPEQUE"]
[null,null,null,null,"San Miguel Pochuta","POCHUTA"]
[null,null,null,null,"San Pedro Yepocapa","YEPOCAPA"]
[null,null,null,null,"Santa Apolonia","SANTA_APOLONIA"]
[null,null,null,null,"Santa Cruz Balanyá","SANTA_CRUZ_BALANYÁ"]
[null,null,null,null,"Tecpán","TECPÁN_GUATEMALA"]
[null,null,null,null,"Zaragoza","ZARAGOZA"]
[null,null,null,null,"Antigua Guatemala","ANTIGUA GUATEMALA"]
[null,null,null,null,"Ciudad Vieja","CIUDAD_VIEJA"]
[null,null,null,null,"Jocotenango","JOCOTENANGO"]
[null,null,null,null,"Magdalena Milpas Altas","MAGDALENA_MILPAS_ALTAS"]
[null,null,null,null,"Pastores","PASTORES"]
[null,null,null,null,"San Antonio Aguas Calientes","SAN_ANTONIO_AGUAS_CALIENTES"]
[null,null,null,null,"San Bartolomé Milpas Altas","SAN_BARTOLOMÉ_MILPAS_ALTAS"]
[null,null,null,null,"San Juan Alotenango","ALOTENANGO"]
[null,null,null,null,"San Lucas Sacatepéquez","SAN_LUCAS_SACATEPÉQUEZ"]
[null,null,null,null,"San Miguel Dueñas","SAN_MIGUEL_DUEÑAS"]
[null,null,null,null,"Santa Catarina Barahona","SANTA_CATARINA_BARAHONA"]
[null,null,null,null,"Santa Lucía Milpas Altas","SANTA_LUCÍA_MILPAS_ALTAS"]
[null,null,null,null,"Santa María de Jesús","SANTA_MARÍA_DE_JESÚS"]
[null,null,null,null,"Santiago Sacatepéquez","SANTIAGO_SACATEPÉQUEZ"]
[null,null,null,null,"Santo Domingo Xenacoj","SANTO_DOMINGO_XENACOJ"]
[null,null,null,null," Sumpango","SUMPANGO"]
[null,null,null,null,"Escuintla","ESCUINTLA"]
[null,null,null,null,"Santa Lucía Cotzumalguapa","SANTA_LUCÍA_COTZUMALGUAPA"]
[null,null,null,null,"La Democracia Escuintla","LA_DEMOCRACIA"]
[null,null,null,null,"Siquinalá","SIQUINALÁ"]
[null,null,null,null,"Masagua","MASAGUA"]
[null,null,null,null,"Tiquisate","TIQUISATE"]
[null,null,null,null,"La Gomera","LA_GOMERA"]
[null,null,null,null,"Guaganazapa","GUANAGAZAPA"]
[null,null,null,null,"San José Escuintla","SAN_JOSÉ."]
[null,null,null,null,"Iztapa","IZTAPA"]
[null,null,null,null,"Palín","PALÍN"]
[null,null,null,null,"San Vicente Pacaya","SAN_VICENTE_PACAYA"]
[null,null,null,null,"Nueva Concepción","NUEVA_CONCEPCIÓN"]
[null,null,null,null,"Sipacate","SIPACATE"]
[null,null,null,null,"Almolonga","ALMOLONGA"]
[null,null,null,null,"Cabricán","CABRICAN"]
[null,null,null,null,"Cajolá","CAJOLA"]
[null,null,null,null,"Cantel","CANTEL"]
[null,null,null,null,"Colomba Costa Cuca","COLOMBA"]
[null,null,null,null,"Concepción Chiquirichapa","CONCEPCIÓN_CHIQUIRICHAPA"]
[null,null,null,null,"El Palmar","EL_PALMAR"]
[null,null,null,null,"Flores Costa Cuca","FLORES_COSTA_CUCA"]
[null,null,null,null,"Génova","GÉNOVA"]
[null,null,null,null,"Huitán","HUITÁN"]
[null,null,null,null,"La Esperanza","LA_ESPERANZA"]
[null,null,null,null,"Palestina de Los Altos","PALESTINA_DE_LOS_ALTOS"]
[null,null,null,null,"Quetzaltenango","QUETZALTENANGO"]
[null,null,null,null,"Salcajá","SALCAJÁ"]
[null,null,null,null,"San Carlos Sija","SAN_CARLOS_SIJA"]
[null,null,null,null,"San Francisco La Unión","SAN_FRANCISCO_LA_UNIÓN"]
[null,null,null,null,"San Juan Olintepeque","OLINTEPEQUE"]
[null,null,null,null,"San Juan Ostuncalco","SAN_JUAN_OSTUNCALCO"]
[null,null,null,null,"San Martín Sacatepéquez","SAN_MARTÍN_SACATEPÉQUEZ"]
[null,null,null,null,"San Mateo","SAN_MATEO"]
[null,null,null,null,"San Miguel Siguilá","SAN_MIGUEL_SIGÜILÁ"]
[null,null,null,null,"Sibilia","SIBILIA"]
[null,null,null,null,"Zunil","ZUNIL"]
[null,null,null,null,"Coatepeque","COATEPEQUE"]
[null,null,null,null,"Champerico","CHAMPERICO"]
[null,null,null,null,"El Asintal","EL_ASINTAL"]
[null,null,null,null,"Nuevo San Carlos","NUEVO_SAN_CARLOS"]
[null,null,null,null,"Retalhuleu","RETALHULEU"]
[null,null,null,null,"San Andrés Villa Seca","SAN_ANDRÉS_VILLA_SECA"]
[null,null,null,null,"San Felipe","SAN_FELIPE"]
[null,null,null,null,"San Martín Zapotitlán","SAN_MARTÍN_ZAPOTITLÁN"]
[null,null,null,null,"San Sebastián","SAN_SEBASTIÁN"]
[null,null,null,null,"Santa Cruz Muluá","SANTA_CRUZ_MULUÁ"]
[null,null,null,null,"Ayutla","AYUTLA"]
[null,null,null,null,"Catarina","CATARINA"]
[null,null,null,null,"Comitancillo","COMITANCILLO"]
[null,null,null,null,"Concepción Tutuapa","CONCEPCIÓN_TUTUAPA"]
[null,null,null,null,"El Quetzal","EL_QUETZAL"]
[null,null,null,null,"El Rodeo","EL_RODEO"]
[null,null,null,null,"El Tumblador","EL_TUMBADOR"]
[null,null,null,null,"Esquipulas Palo Gordo","ESQUIPULAS_PALO_GORDO"]
[null,null,null,null,"Ixchiguán","IXCHIGUAN"]
[null,null,null,null,"La Blanca","LA_BLANCA"]
[null,null,null,null,"La Reforma","LA_REFORMA"]
[null,null,null,null,"Malacatán","MALACATÁN"]
[null,null,null,null,"Nuevo Progreso","NUEVO_PROGRESO"]
[null,null,null,null,"Ocós","OCÓS"]
[null,null,null,null,"Pajapita","PAJAPITA"]
[null,null,null,null,"Río Blanco","RÍO_BLANCO"]
[null,null,null,null,"San Antonio Sacatepéquez","SAN_ANTONIO_SACATEPÉQUEZ"]
[null,null,null,null,"San Cristóbal Cucho","SAN_CRISTÓBAL_CUCHO"]
[null,null,null,null,"San José Ojetenam","SAN_JOSÉ_OJETENAM"]
[null,null,null,null,"San Lorenzo","SAN_LORENZO"]
[null,null,null,null,"San Marcos","SAN_MARCOS"]
[null,null,null,null,"San Miguel Ixtahuacán","SAN_MIGUEL_IXTAHUACÁN"]
[null,null,null,null,"San Pablo","SAN_PABLO"]
[null,null,null,null,"San Pedro Sacatepéquez","SAN_PEDRO_SACATEPÉQUEZ"]
[null,null,null,null,"San Rafael Pie de la Cuesta","SAN_RAFAEL_PIE_DE_LA_CUESTA"]
[null,null,null,null,"Sibinal","SIBINAL"]
[null,null,null,null,"Sipacapa","SIPACAPA"]
[null,null,null,null,"Tacaná","TACANÁ"]
[null,null,null,null,"Tajumulco","TAJUMULCO"]
[null,null,null,null,"Tejutla","TEJUTLA"]
[null,null,null,null,"Chicacao","CHICACAO"]
[null,null,null,null,"Cuyotenango","CUYOTENANGO"]
[null,null,null,null,"Mazatenango","MAZATENANGO"]
[null,null,null,null,"Patulul","PATULUL"]
[null,null,null,null,"Pueblo Nuevo","PUEBLO_NUEVO"]
[null,null,null,null,"Río Bravo","RÍO_BRAVO"]
[null,null,null,null,"Samayac","SAMAYAC"]
[null,null,null,null,"San Antonio Suchitépequez","SAN_ANTONIO_SUCHITEPÉQUEZ"]
[null,null,null,null,"San Bernardino","SAN_BERNARDINO"]
[null,null,null,null,"San Francisco Zapotitlán","SAN_FRANCISCO_ZAPOTITLÁN"]
[null,null,null,null,"San Gabriel","SAN_GABRIEL"]
[null,null,null,null,"San José El Ídolo","SAN_JOSÉ_EL_ÍDOLO"]
[null,null,null,null,"San Juan Bautista","SAN_JUAN_BAUTISTA"]
[null,null,null,null,"San Lorenzo Suchitépequez","SAN_LORENZO"]
[null,null,null,null,"San José la Máquina","SAN_JOSÉ_LA_MÁQUINA"]
[null,null,null,null,"San Miguel Panán","SAN_MIGUEL_PANÁN"]
[null,null,null,null,"San Pablo Jocopilas","SAN_PABLO_JOCOPILAS"]
[null,null,null,null,"Santa Bárbara Suchitépequez","SANTA_BÁRBARA"]
[null,null,null,null,"Santo Domingo Suchitépequez","SANTO_DOMINGO_SUCHITEPÉQUEZ"]
[null,null,null,null,"Santo Tomás La Unión","SANTO_TOMÁS_LA_UNIÓN"]
[null,null,null,null,"Zunilito","ZUNILITO"]
[null,null,null,null,"Concepción","CONCEPCIÓN"]
[null,null,null,null,"Nahualá","NAHUALÁ"]
[null,null,null,null,"Panajachel","PANAJACHEL"]
[null,null,null,null,"San Andrés Semetabaj","SAN_ANDRÉS_SEMETABAJ"]
[null,null,null,null,"San Antonio Palopó","SAN_ANTONIO_PALOPÓ"]
[null,null,null,null,"San José Chacayá","SAN_JOSÉ_CHACAYÁ"]
[null,null,null,null,"San Juan La Laguna","SAN_JUAN_LA_LAGUNA"]
[null,null,null,null,"San Lucas Tolimán","SAN_LUCAS_TOLIMÁN"]
[null,null,null,null,"San Marcos La Laguna","SAN_MARCOS_LA_LAGUNA"]
[null,null,null,null,"San Pablo La Laguna","SAN_PABLO_LA_LAGUNA"]
[null,null,null,null,"San Pedro La Laguna","SAN_PEDRO_LA_LAGUNA"]
[null,null,null,null,"Santa Catarina Ixtahuacán","SANTA_CATARINA_IXTAHUACÁN"]
[null,null,null,null,"Santa Catarina Palopó","SANTA_CATARINA_PALOPÓ"]
[null,null,null,null,"Santa Clara La Laguna","SANTA_CLARA_LA_LAGUNA"]
[null,null,null,null,"Santa Cruz La Laguna","SANTA_CRUZ_LA_LAGUNA"]
[null,null,null,null,"Santa Lucía Utatlán","SANTA_LUCÍA_UTATLÁN"]
[null,null,null,null,"Santa María Visitación","SANTA_MARÍA_VISITACIÓN"]
[null,null,null,null,"Santiago Atitlán","SANTIAGO_ATITLÁN"]
[null,null,null,null,"Sololá","SOLOLÁ"]
[null,null,null,null,"Momostenango","MOMOSTENANGO"]
[null,null,null,null,"San Andrés Xecul","SAN_ANDRÉS_XECUL"]
[null,null,null,null,"San Bartolo","SAN_BARTOLO"]
[null,null,null,null,"San Cristóbal Totonicapán","SAN_CRISTÓBAL_TOTONICAPÁN"]
[null,null,null,null,"San Francisco El Alto","SAN_FRANCISCO_EL_ALTO"]
[null,null,null,null,"Santa Lucía La Reforma","SANTA_LUCÍA_LA_REFORMA"]
[null,null,null,null,"Santa María Chiquimula","SANTA_MARÍA_CHIQUIMULA"]
[null,null,null,null,"Totonicapán","TOTONICAPÁN"]
[null,null,null,null,"Aguacatán","AGUACATAN"]
[null,null,null,null,"Chiantla","CHIANTLA"]
[null,null,null,null,"Colotenango","COLOTENANGO"]
[null,null,null,null,"Concepción Huista","CONCEPCIÓN_HUISTA"]
[null,null,null,null,"Cuilco","CUILCO"]
[null,null,null,null,"Huehuetenango","HUEHUETENANGO"]
[null,null,null,null,"San Ildefonso Ixtahuacán","SAN_ILDEFONSO_IXTAHUACÁN"]
[null,null,null,null,"Jacaltenango","JACALTENANGO"]
[null,null,null,null,"La Democracia","LA_DEMOCRACIA"]
[null,null,null,null,"La Libertad","LA_LIBERTAD."]
[null,null,null,null,"Malacatancito","MALACATANCITO"]
[null,null,null,null,"Nentón","NENTÓN"]
[null,null,null,null,"San Antonio Huista","SAN_ANTONIO_HUISTA"]
[null,null,null,null,"San Gaspar Ixchil","SAN_GASPAR_IXCHIL"]
[null,null,null,null,"San Juan Atitlán","SAN_JUAN_ATITÁN"]
[null,null,null,null,"San Juan Ixcoy","SAN_JUAN_IXCOY"]
[null,null,null,null,"San Mateo Ixtatán","SAN_MATEO_IXTATÁN."]
[null,null,null,null,"San Miguel Acatán","SAN_MIGUEL_ACATÁN"]
[null,null,null,null,"San Pedro Necta","SAN_PEDRO_NECTA"]
[null,null,null,null,"San Rafael La Independencia","SAN_RAFAEL_LA_INDEPENDENCIA"]
[null,null,null,null,"San Rafael Petzal","SAN_RAFAEL_PETZAL"]
[null,null,null,null,"San Sebastián Coatán","SAN_SEBASTIÁN_COATÁN"]
[null,null,null,null,"San Sebastián Huehuetenango","SAN_SEBASTIÁN_HUEHUETENANGO"]
[null,null,null,null,"Santa Ana Huista","SANTA_ANA_HUISTA"]
[null,null,null,null,"Santa Bárbara","SANTA_BÁRBARA"]
[null,null,null,null,"Santa Cruz Barillas","SANTA_CRUZ_BARILLAS"]
[null,null,null,null,"Santa Eulalia","SANTA_EULALIA"]
[null,null,null,null,"Santiago Chimaltenango","SANTIAGO_CHIMALTENANGO"]
[null,null,null,null,"Soloma","SAN_PEDRO_SOLOMA"]
[null,null,null,null,"Tectitán","TECTITÁN"]
[null,null,null,null,"Todos Santos Cuchumatán","TODOS_SANTOS_CUCHUMATANES"]
[null,null,null,null,"Petatán","PETATÁN"]
[null,null,null,null,"Unión Cantil","UNIÓN_CANTINIL"]
[null,null,null,null,"Canillá","CANILLA"]
[null,null,null,null,"Chajul","CHAJUL"]
[null,null,null,null,"Chicamán","CHICAMÁN"]
[null,null,null,null,"Chiché","CHICHÉ"]
[null,null,null,null,"Chinique","CHINIQUE"]
[null,null,null,null,"Cunén","CUNÉN"]
[null,null,null,null,"Ixcán","IXCÁN"]
[null,null,null,null,"Pachalum","PACHALUM"]
[null,null,null,null,"Patzité","PATZITÉ"]
[null,null,null,null,"Sacapulas","SACAPULAS"]
[null,null,null,null,"San Andrés Sajcabajá","SAN_ANDRÉS_SAJCABAJÁ"]
[null,null,null,null,"San Antonio Ilotenango","SAN_ANTONIO_ILOTENANGO"]
[null,null,null,null,"San Bartolomé Jocotenango","SAN_BARTOLOMÉ_JOCOTENANGO"]
[null,null,null,null,"San Juan Cotzal","SAN_JUAN_COTZAL"]
[null,null,null,null,"San Pedro Jocopilas","SAN_PEDRO_JOCOPILAS"]
[null,null,null,null,"Santa Cruz del Quiché","SANTA_CRUZ_DEL_QUICHÉ"]
[null,null,null,null,"Santa María Joyabaj","JOYABAJ"]
[null,null,null,null,"Santa María Nebaj","NEBAJ"]
[null,null,null,null,"Santo Tomás Chichicastenango","CHICHICASTENANGO"]
[null,null,null,null,"Uspantán","USPANTÁN"]
[null,null,null,null,"Zacualpa","ZACUALPA"]
[null,null,null,null,"Dolores","DOLORES"]
[null,null,null,null,"Flores","FLORES"]
[null,null,null,null,"La Libertad Petén","LA_LIBERTAD"]
[null,null,null,null,"Melchor de Mencos","MELCHOR_DE_MENCOS"]
[null,null,null,null,"Poptún","POPTÚN"]
[null,null,null,null,"San Andrés","SAN_ANDRÉS_PETÉN"]
[null,null,null,null,"San Benito","SAN_BENITO"]
[null,null,null,null,"San Francisco","SAN_FRANCISCO"]
[null,null,null,null,"San José","SAN_JOSÉ"]
[null,null,null,null,"San Luis","SAN_LUIS"]
[null,null,null,null,"Santa Ana","SANTA_ANA"]
[null,null,null,null,"Sayaxché","SAYAXCHÉ"]
[null,null,null,null,"El Chal","EL_CHAL"]
[null,null,null,null,"Las Cruces","LAS_CRUCES"]

{"sheet":"DATOS_POBLADOS","index":3,"n_rows":341,"n_cols":8,"rows_kept":341,"cut":false,"hidden":true,"merged":[]}
["DEPARTAMENTO","MUNICIPIO","INDICE SISMICIDAD","VELOCIDAD VIENTO",null,"DEPARTAMENTO",null,"REGIONES"]
["ALTA_VERAPAZ","CHAHAL",3,110,null,"ZACAPA",null,"I"]
["ALTA_VERAPAZ","CHISEC",3,100,null,"CHIQUIMULA",null,"II"]
["ALTA_VERAPAZ","COBÁN",4.0999999999999996,100,null,"EL_PROGRESO",null,"III"]
["ALTA_VERAPAZ","FRAY_BARTOLOMÉ_DE_LAS_CASAS",3,110,null,"IZABAL",null,"IV"]
["ALTA_VERAPAZ","LANQUÍN",3,100,null,"SACATEPEQUEZ",null,"V"]
["ALTA_VERAPAZ","PANZÓZ",4.0999999999999996,100,null,"CHIMALTENANGO",null,"VI"]
["ALTA_VERAPAZ","RAXRUHÁ",3,100,null,"ESCUINTLA",null,"VII"]
["ALTA_VERAPAZ","SAN_CRISTÓBAL_VERAPAZ",4.0999999999999996,100,null,"RETALHULEU",null,"VIII"]
["ALTA_VERAPAZ","SAN_JUAN_CHAMELCO",4.0999999999999996,100,null,"SUCHITEPEQUEZ"]
["ALTA_VERAPAZ","SAN_PEDRO_CARCHÁ",4.0999999999999996,100,null,"TOTONICAPAN"]
["ALTA_VERAPAZ","SANTA_CATALINA_LA_TINTA",4.0999999999999996,100,null,"SOLOLA"]
["ALTA_VERAPAZ","SANTA_CRUZ_VERAPAZ",4.0999999999999996,100,null,"SAN_MARCOS"]
["ALTA_VERAPAZ","CAHABÓN",3,110,null,"QUETZALTENANGO"]
["ALTA_VERAPAZ","SENAHÚ",4.0999999999999996,100,null,"PETEN"]
["ALTA_VERAPAZ","TACTIC",4.0999999999999996,100,null,"JUTIAPA"]
["ALTA_VERAPAZ","TAMAHÚ",4.0999999999999996,100,null,"JALAPA"]
["ALTA_VERAPAZ","TUCURÚ",4.0999999999999996,100,null,"SANTA_ROSA"]
["BAJA_VERAPAZ","CUBULCO",4.0999999999999996,100,null,"HUEHUETENANGO"]
["BAJA_VERAPAZ","GRANADOS",4.0999999999999996,100,null,"QUICHE"]
["BAJA_VERAPAZ","PURULHÁ",4.0999999999999996,100,null,"GUATEMALA"]
["BAJA_VERAPAZ","RABINAL",4.0999999999999996,100,null,"ALTA_VERAPAZ"]
["BAJA_VERAPAZ","SALAMÁ",4.0999999999999996,100,null,"BAJA_VERAPAZ"]
["BAJA_VERAPAZ","SAN_JERÓNIMO",4.0999999999999996,100]
["BAJA_VERAPAZ","SAN_MIGUEL_CHICAJ",4.0999999999999996,100]
["BAJA_VERAPAZ","EL_CHOL",4.0999999999999996,100]
["CHIMALTENANGO","ACATENANGO",4.0999999999999996,100]
["CHIMALTENANGO","CHIMALTENANGO",4.0999999999999996,100]
["CHIMALTENANGO","EL_TEJAR",4.0999999999999996,100]
["CHIMALTENANGO","PARRAMOS",4.0999999999999996,100]
["CHIMALTENANGO","PATZICÍA",4.0999999999999996,100]
["CHIMALTENANGO","PATZÚN",4.0999999999999996,100]
["CHIMALTENANGO","POCHUTA",4.0999999999999996,100]
["CHIMALTENANGO","SAN_ANDRÉS_ITZAPA",4.0999999999999996,100]
["CHIMALTENANGO","SAN_JOSÉ_POAQUIL",4.0999999999999996,100]
["CHIMALTENANGO","COMALAPA",4.0999999999999996,100]
["CHIMALTENANGO","SAN_MARTÍN_JILOTEPEQUE",4.0999999999999996,100]
["CHIMALTENANGO","SANTA_APOLONIA",4.0999999999999996,100]
["CHIMALTENANGO","SANTA_CRUZ_BALANYÁ",4.0999999999999996,100]
["CHIMALTENANGO","TECPÁN_GUATEMALA",4.0999999999999996,100]
["CHIMALTENANGO","YEPOCAPA",4.0999999999999996,100]
["CHIMALTENANGO","ZARAGOZA",4.0999999999999996,100]
["CHIQUIMULA","CAMOTÁN",4.0999999999999996,100]
["CHIQUIMULA","CHIQUIMULA",4.0999999999999996,100]
["CHIQUIMULA","CONCEPCIÓN_LAS_MINAS",4.0999999999999996,100]
["CHIQUIMULA","ESQUIPULAS",4.0999999999999996,100]
["CHIQUIMULA","IPALA",4.0999999999999996,100]
["CHIQUIMULA","JOCOTÁN",4.0999999999999996,100]
["CHIQUIMULA","OLOPA",4.0999999999999996,100]
["CHIQUIMULA","QUEZALTEPEQUE",4.0999999999999996,100]
["CHIQUIMULA","SAN_JACINTO",4.0999999999999996,100]
["CHIQUIMULA","SAN_JOSÉ_LA_ARADA",4.0999999999999996,100]
["CHIQUIMULA","SAN_JUAN_HERMITA",4.0999999999999996,100]
["EL_PROGRESO","EL_JÍCARO",4.0999999999999996,100]
["EL_PROGRESO","GUASTATOYA",4.0999999999999996,100]
["EL_PROGRESO","MORAZÁN",4.0999999999999996,100]
["EL_PROGRESO","SAN_AGUSTÍN_ACASAGUASTLÁN",4.0999999999999996,100]
["EL_PROGRESO","SAN_ANTONIO_LA_PAZ",4.0999999999999996,100]
["EL_PROGRESO","SAN_CRISTÓBAL_ACASAGUASTLÁN",4.0999999999999996,100]
["EL_PROGRESO","SANARATE",4.0999999999999996,100]
["EL_PROGRESO","SANSARE",4.0999999999999996,100]
["ESCUINTLA","ESCUINTLA",4.2,100]
["ESCUINTLA","GUAGANAZAPA",4.2,110]
["ESCUINTLA","IZTAPA",4.2,110]
["ESCUINTLA","LA_DEMOCRACIA",4.2,110]
["ESCUINTLA","LA_GOMERA",4.2,110]
["ESCUINTLA","MASAGUA",4.2,110]
["ESCUINTLA","NUEVA_CONCEPCIÓN",4.2,110]
["ESCUINTLA","PALÍN",4.2,100]
["ESCUINTLA","SAN_JOSÉ",4.2,110]
["ESCUINTLA","SAN_VICENTE_PACAYA",4.2,100]
["ESCUINTLA","SANTA_LUCÍA_COTZUMALGUAPA",4.2,100]
["ESCUINTLA","SIPACATE",4.2,110]
["ESCUINTLA","SIQUINALÁ",4.2,100]
["ESCUINTLA","TIQUISATE",4.2,110]
["GUATEMALA","AMATITLÁN",4.0999999999999996,100]
["GUATEMALA","CHINAUTLA",4.0999999999999996,100]
["GUATEMALA","CHUARRANCHO",4.0999999999999996,100]
["GUATEMALA","FRAIJANES",4.0999999999999996,100]
["GUATEMALA","GUATEMALA",4.0999999999999996,100]
["GUATEMALA","MIXCO",4.0999999999999996,100]
["GUATEMALA","PALENCIA",4.0999999999999996,100]
["GUATEMALA","SAN_JOSÉ_DEL_GOLFO",4.0999999999999996,100]
["GUATEMALA","SAN_JOSÉ_PINULA",4.0999999999999996,100]
["GUATEMALA","SAN_JUAN_SACATEPÉQUEZ",4.0999999999999996,100]
["GUATEMALA","SAN_MIGUEL_PETAPA",4.0999999999999996,100]
["GUATEMALA","SAN_PEDRO_AYAMPUC",4.0999999999999996,100]
["GUATEMALA","SAN_PEDRO_SACATAPÉQUEZ",4.0999999999999996,100]
["GUATEMALA","SAN_RAYMUNDO",4.0999999999999996,100]
["GUATEMALA","SANTA_CATARINA_PINULA",4.0999999999999996,100]
["GUATEMALA","VILLA_CANALES",4.0999999999999996,100]
["GUATEMALA","VILLA_NUEVA",4.0999999999999996,100]
["HUEHUETENANGO","AGUACATÁN",4.0999999999999996,100]
["HUEHUETENANGO","CHIANTLA",4.0999999999999996,100]
["HUEHUETENANGO","COLOTENANGO",4.0999999999999996,100]
["HUEHUETENANGO","CONCEPCIÓN_HUISTA",4.0999999999999996,100]
["HUEHUETENANGO","CUILCO",4.0999999999999996,100]
["HUEHUETENANGO","HUEHUETENANGO",4.0999999999999996,100]
["HUEHUETENANGO","JACALTENANGO",4.0999999999999996,100]
["HUEHUETENANGO","LA_DEMOCRACIA",4.0999999999999996,100]
["HUEHUETENANGO","LA_LIBERTAD",4.0999999999999996,100]
["HUEHUETENANGO","MALACATANCITO",4.0999999999999996,100]
["HUEHUETENANGO","NENTÓN",4.0999999999999996,100]
["HUEHUETENANGO","PETATÁN",4.0999999999999996,100]
["HUEHUETENANGO","SAN_ANTONIO_HUISTA",4.0999999999999996,100]
["HUEHUETENANGO","SAN_GASPAR_IXCHIL",4.0999999999999996,100]
["HUEHUETENANGO","SAN_ILDEFONSO_IXTAHUACÁN",4.0999999999999996,100]
["HUEHUETENANGO","SAN_JUAN_ATITÁN",4.0999999999999996,100]
["HUEHUETENANGO","SAN_JUAN_IXCOY",4.0999999999999996,100]
["HUEHUETENANGO","SAN_MATEO_IXTATÁN",3,100]
["HUEHUETENANGO","SAN_MIGUEL_ACATÁN",4.0999999999999996,100]
["HUEHUETENANGO","SAN_PEDRO_NECTA",4.0999999999999996,100]
["HUEHUETENANGO","SOLOMA",3,100]
["HUEHUETENANGO","SAN_RAFAEL_LA_INDEPENDENCIA",4.0999999999999996,100]
["HUEHUETENANGO","SAN_RAFAEL_PÉTZAL",4.0999999999999996,100]
["HUEHUETENANGO","SAN_SEBASTIÁN_COATÁN",4.0999999999999996,100]
["HUEHUETENANGO","SAN_SEBASTIÁN_HUEHUETENANGO",4.0999999999999996,100]
["HUEHUETENANGO","SANTA_ANA_HUISTA",4.0999999999999996,100]
["HUEHUETENANGO","SANTA_BÁRBARA",4.0999999999999996,100]
["HUEHUETENANGO","BARILLAS",3,100]
["HUEHUETENANGO","SANTA_EULALIA",3,100]
["HUEHUETENANGO","SANTIAGO_CHIMALTENANGO",4.0999999999999996,100]
["HUEHUETENANGO","TECTITÁN",4.0999999999999996,100]
["HUEHUETENANGO","TODOS_SANTOS_CUCHUMATÁN",4.0999999999999996,100]
["HUEHUETENANGO","UNIÓN_CANTINIL",4.0999999999999996,100]
["IZABAL","EL_ESTOR",4.0999999999999996,110]
["IZABAL","LIVINGSTON",4.0999999999999996,120]
["IZABAL","LOS_AMATES",4.0999999999999996,110]
["IZABAL","MORALES",4.0999999999999996,110]
["IZABAL","PUERTO_BARRIOS",4.0999999999999996,120]
["JALAPA","JALAPA",4.0999999999999996,100]
["JALAPA","MATAQUESCUINTLA",4.0999999999999996,100]
["JALAPA","MONJAS",4.0999999999999996,100]
["JALAPA","SAN_CARLOS_ALZATATE",4.0999999999999996,100]
["JALAPA","SAN_LUIS_JILOTEPEQUE",4.0999999999999996,100]
["JALAPA","SAN_MANUEL_CHAPARRÓN",4.0999999999999996,100]
["JALAPA","SAN_PEDRO_PINULA",4.0999999999999996,100]
["JUTIAPA","AGUA_BLANCA",4.0999999999999996,100]
["JUTIAPA","ASUNCIÓN_MITA",4.0999999999999996,100]
["JUTIAPA","ATESCATEMPA",4.0999999999999996,100]
["JUTIAPA","COMAPA",4.0999999999999996,100]
["JUTIAPA","CONGUACO",4.2,100]
["JUTIAPA","EL_ADELANTO",4.0999999999999996,100]
["JUTIAPA","EL_PROGRESO",4.0999999999999996,100]
["JUTIAPA","JALPATAGUA",4.0999999999999996,100]
["JUTIAPA","JEREZ",4.0999999999999996,100]
["JUTIAPA","JUTIAPA",4.0999999999999996,100]
["JUTIAPA","MOYUTA",4.2,110]
["JUTIAPA","PASACO",4.2,110]
["JUTIAPA","QUESADA",4.0999999999999996,100]
["JUTIAPA","SAN_JOSÉ_ACATEMPA",4.0999999999999996,100]
["JUTIAPA","SANTA_CATARINA_MITA",4.0999999999999996,100]
["JUTIAPA","YUPILTEPEQUE",4.0999999999999996,100]
["JUTIAPA","ZAPOTITLÁN",4.0999999999999996,100]
["PETEN","DOLORES",2,110]
["PETEN","EL_CHAL",2,100]
["PETEN","FLORES",2,100]
["PETEN","LA_LIBERTAD",2,100]
["PETEN","LAS_CRUCES",2,100]
["PETEN","MELCHOR_DE_MENCOS",2,110]
["PETEN","POPTÚN",2,110]
["PETEN","SAN_ANDRÉS",2,100]
["PETEN","SAN_BENITO",2,100]
["PETEN","SAN_FRANCISCO",3,100]
["PETEN","SAN_JOSÉ",2,100]
["PETEN","SAN_LUIS",2,110]
["PETEN","SANTA_ANA",2,100]
["PETEN","SAYAXCHÉ",2,100]
["QUETZALTENANGO","ALMOLONGA",4.0999999999999996,100]
["QUETZALTENANGO","CABRICÁN",4.0999999999999996,100]
["QUETZALTENANGO","CAJOLÁ",4.0999999999999996,100]
["QUETZALTENANGO","CANTEL",4.0999999999999996,100]
["QUETZALTENANGO","COATEPEQUE",4.2,110]
["QUETZALTENANGO","COLOMBA",4.2,100]
["QUETZALTENANGO","CONCEPCIÓN_CHIQUIRICHAPA",4.0999999999999996,100]
["QUETZALTENANGO","EL_PALMAR",4.2,100]
["QUETZALTENANGO","FLORES_COSTA_CUCA",4.2,110]
["QUETZALTENANGO","GÉNOVA",4.2,110]
["QUETZALTENANGO","HUITÁN",4.0999999999999996,100]
["QUETZALTENANGO","LA_ESPERANZA",4.0999999999999996,100]
["QUETZALTENANGO","OLINTEPEQUE",4.0999999999999996,100]
["QUETZALTENANGO","PALESTINA_DE_LOS_ALTOS",4.0999999999999996,100]
["QUETZALTENANGO","QUETZALTENANGO",4.0999999999999996,100]
["QUETZALTENANGO","SALCAJÁ",4.0999999999999996,100]
["QUETZALTENANGO","SAN_CARLOS_SIJA",4.0999999999999996,100]
["QUETZALTENANGO","SAN_FRANCISCO_LA_UNIÓN",4.0999999999999996,100]
["QUETZALTENANGO","SAN_JUAN_OSTUNCALCO",4.0999999999999996,100]
["QUETZALTENANGO","SAN_MARTÍN_SACATEPÉQUEZ",4.0999999999999996,100]
["QUETZALTENANGO","SAN_MATEO",4.0999999999999996,100]
["QUETZALTENANGO","SAN_MIGUEL_SIGÜILÁ",4.0999999999999996,100]
["QUETZALTENANGO","SIBILIA",4.0999999999999996,100]
["QUETZALTENANGO","ZUNIL",4.0999999999999996,100]
["QUICHE","CANILLÁ",4.0999999999999996,100]
["QUICHE","CHAJUL",4.0999999999999996,100]
["QUICHE","CHICAMÁN",4.0999999999999996,100]
["QUICHE","CHICHÉ",4.0999999999999996,100]
["QUICHE","CHICHICASTENANGO",4.0999999999999996,100]
["QUICHE","CHINIQUE",4.0999999999999996,100]
["QUICHE","CUNÉN",4.0999999999999996,100]
["QUICHE","IXCÁN",4.0999999999999996,100]
["QUICHE","JOYABAJ",4.0999999999999996,100]
["QUICHE","NEBAJ",4.0999999999999996,100]
["QUICHE","PACHALUM",4.0999999999999996,100]
["QUICHE","PATZITÉ",4.0999999999999996,100]
["QUICHE","SACAPULAS",4.0999999999999996,100]
["QUICHE","SAN_ANDRÉS_SAJCABAJÁ",4.0999999999999996,100]
["QUICHE","SAN_ANTONIO_ILOTENANGO",4.0999999999999996,100]
["QUICHE","SAN_BARTOLOMÉ_JOCOTENANGO",4.0999999999999996,100]
["QUICHE","SAN_JUAN_COTZAL",4.0999999999999996,100]
["QUICHE","SAN_PEDRO_JOCOPILAS",4.0999999999999996,100]
["QUICHE","SANTA_CRUZ_DEL_QUICHÉ",4.0999999999999996,100]
["QUICHE","USPANTÁN",4.0999999999999996,100]
["QUICHE","ZACUALPA",4.0999999999999996,100]
["RETALHULEU","CHAMPERICO",4.2,110]
["RETALHULEU","EL_ASINTAL",4.2,110]
["RETALHULEU","NUEVO_SAN_CARLOS",4.2,100]
["RETALHULEU","RETALHULEU",4.2,110]
["RETALHULEU","SAN_ANDRÉS_VILLA_SECA",4.2,110]
["RETALHULEU","SAN_FELIPE",4.2,100]
["RETALHULEU","SAN_MARTÍN_ZAPOTITLÁN",4.2,100]
["RETALHULEU","SAN_SEBASTIÁN",4.2,100]
["RETALHULEU","SANTA_CRUZ_MULUÁ",4.2,110]
["SACATEPÉQUEZ","ALOTENANGO",4.0999999999999996,100]
["SACATEPÉQUEZ","ANTIGUA_GUATEMALA",4.0999999999999996,100]
["SACATEPÉQUEZ","CIUDAD_VIEJA",4.0999999999999996,100]
["SACATEPÉQUEZ","JOCOTENANGO",4.0999999999999996,100]
["SACATEPÉQUEZ","MAGDALENA_MILPAS_ALTAS",4.0999999999999996,100]
["SACATEPÉQUEZ","PASTORES",4.0999999999999996,100]
["SACATEPÉQUEZ","SAN_ANTONIO_AGUAS_CALIENTES",4.0999999999999996,100]
["SACATEPÉQUEZ","SAN_BARTOLOMÉ_MILPAS_ALTAS",4.0999999999999996,100]
["SACATEPÉQUEZ","SAN_LUCAS_SACATEPÉQUEZ",4.0999999999999996,100]
["SACATEPÉQUEZ","SAN_MIGUEL_DUEÑAS",4.0999999999999996,100]
["SACATEPÉQUEZ","SANTA_CATARINA_BARAHONA",4.0999999999999996,100]
["SACATEPÉQUEZ","SANTA_LUCÍA_MILPAS_ALTAS",4.0999999999999996,100]
["SACATEPÉQUEZ","SANTA_MARÍA_DE_JESÚS",4.0999999999999996,100]
["SACATEPÉQUEZ","SANTIAGO_SACATEPÉQUEZ",4.0999999999999996,100]
["SACATEPÉQUEZ","SANTO_DOMINGO_XENACOJ",4.0999999999999996,100]
["SACATEPÉQUEZ","SUMPANGO",4.0999999999999996,100]
["SAN_MARCOS","AYUTLA",4.2,110]
["SAN_MARCOS","CATARINA",4.2,100]
["SAN_MARCOS","COMITANCILLO",4.0999999999999996,100]
["SAN_MARCOS","CONCEPCIÓN_TUTUAPA",4.0999999999999996,100]
["SAN_MARCOS","EL_QUETZAL",4.2,100]
["SAN_MARCOS","EL_RODEO",4.2,100]
["SAN_MARCOS","EL_TUMBADOR",4.2,100]
["SAN_MARCOS","ESQUIPULAS_PALO_GORDO",4.2,100]
["SAN_MARCOS","IXCHIGUÁN",4.0999999999999996,100]
["SAN_MARCOS","LA_BLANCA",4.2,110]
["SAN_MARCOS","LA_REFORMA",4.2,100]
["SAN_MARCOS","MALACATÁN",4.2,100]
["SAN_MARCOS","NUEVO_PROGRESO",4.2,100]
["SAN_MARCOS","OCÓS",4.2,110]
["SAN_MARCOS","PAJAPITA",4.0999999999999996,110]
["SAN_MARCOS","RÍO_BLANCO",4.0999999999999996,100]
["SAN_MARCOS","SAN_ANTONIO_SACATEPÉQUEZ",4.0999999999999996,100]
["SAN_MARCOS","SAN_CRISTÓBAL_CUCHO",4.0999999999999996,100]
["SAN_MARCOS","SAN_JOSÉ_OJETENAM",4.0999999999999996,100]
["SAN_MARCOS","SAN_LORENZO",4.0999999999999996,100]
["SAN_MARCOS","SAN_MARCOS",4.0999999999999996,100]
["SAN_MARCOS","SAN_MIGUEL_IXTAHUACÁN",4.0999999999999996,100]
["SAN_MARCOS","SAN_PABLO",4.0999999999999996,100]
["SAN_MARCOS","SAN_PEDRO_SACATEPÉQUEZ",4.2,100]
["SAN_MARCOS","SAN_RAFAEL_PIE_DE_LA_CUESTA",4.0999999999999996,100]
["SAN_MARCOS","SIBINAL",4.0999999999999996,100]
["SAN_MARCOS","SIPACAPA",4.0999999999999996,100]
["SAN_MARCOS","TACANÁ",4.0999999999999996,100]
["SAN_MARCOS","TAJUMULCO",4.0999999999999996,100]
["SAN_MARCOS","TEJUTLA",4.2,100]
["SANTA_ROSA","BARBERENA",4.0999999999999996,100]
["SANTA_ROSA","CASILLAS",4.0999999999999996,100]
["SANTA_ROSA","CHIQUIMULILLA",4.2,110]
["SANTA_ROSA","CUILAPA",4.0999999999999996,100]
["SANTA_ROSA","GUAZACAPÁN",4.2,110]
["SANTA_ROSA","NUEVA_SANTA_ROSA",4.0999999999999996,100]
["SANTA_ROSA","ORATORIO",4.2,100]
["SANTA_ROSA","PUEBLO_NUEVO_VIÑAS",4.2,100]
["SANTA_ROSA","SAN_JUAN_TECUACO",4.2,100]
["SANTA_ROSA","SAN_RAFAEL_LAS_FLORES",4.0999999999999996,100]
["SANTA_ROSA","SANTA_CRUZ_NARANJO",4.0999999999999996,100]
["SANTA_ROSA","SANTA_MARÍA_IXHUATÁN",4.2,100]
["SANTA_ROSA","SANTA_ROSA_DE_LIMA",4.0999999999999996,100]
["SANTA_ROSA","TAXISCO",4.2,110]
["SOLOLÁ","CONCEPCIÓN",4.0999999999999996,100]
["SOLOLÁ","NAHUALÁ",4.0999999999999996,100]
["SOLOLÁ","PANAJACHEL",4.0999999999999996,100]
["SOLOLÁ","SAN_ANDRÉS_SEMETABAJ",4.0999999999999996,100]
["SOLOLÁ","SAN_ANTONIO_PALOPÓ",4.0999999999999996,100]
["SOLOLÁ","SAN_JOSÉ_CHACAYÁ",4.0999999999999996,100]
["SOLOLÁ","SAN_JUAN_LA_LAGUNA",4.0999999999999996,100]
["SOLOLÁ","SAN_LUCAS_TOLIMÁN",4.0999999999999996,100]
["SOLOLÁ","SAN_MARCOS_LA_LAGUNA",4.0999999999999996,100]
["SOLOLÁ","SAN_PABLO_LA_LAGUNA",4.0999999999999996,100]
["SOLOLÁ","SAN_PEDRO_LA_LAGUNA",4.0999999999999996,100]
["SOLOLÁ","SANTA_CATARINA_IXTAHUACÁN",4.0999999999999996,100]
["SOLOLÁ","SANTA_CATARINA_PALOPÓ",4.0999999999999996,100]
["SOLOLÁ","SANTA_CLARA_LA_LAGUNA",4.0999999999999996,100]
["SOLOLÁ","SANTA_CRUZ_LA_LAGUNA",4.0999999999999996,100]
["SOLOLÁ","SANTA_LUCÍA_UTATLÁN",4.0999999999999996,100]
["SOLOLÁ","SANTA_MARÍA_VISITACIÓN",4.0999999999999996,100]
["SOLOLÁ","SANTIAGO_ATITLÁN",4.0999999999999996,100]
["SOLOLÁ","SOLOLÁ",4.0999999999999996,100]
["SUCHITÉPEQUEZ","CHICACAO",4.2,100]
["SUCHITÉPEQUEZ","CUYOTENANGO",4.2,110]
["SUCHITÉPEQUEZ","MAZATENANGO",4.2,100]
["SUCHITÉPEQUEZ","PATULUL",4.2,100]
["SUCHITÉPEQUEZ","PUEBLO_NUEVO",4.2,100]
["SUCHITÉPEQUEZ","RÍO_BRAVO",4.2,100]
["SUCHITÉPEQUEZ","SAMAYAC",4.2,100]
["SUCHITÉPEQUEZ","SAN_ANTONIO_SUCHITÉPEQUEZ",4.2,100]
["SUCHITÉPEQUEZ","SAN_BERNARDINO",4.2,100]
["SUCHITÉPEQUEZ","SAN_FRANCISCO_ZAPOTITLÁN",4.2,100]
["SUCHITÉPEQUEZ","SAN_GABRIEL",4.2,100]
["SUCHITÉPEQUEZ","SAN_JOSÉ_EL_ÍDOLO",4.2,100]
["SUCHITÉPEQUEZ","SAN_JOSÉ_LA_MÁQUINA",4.2,110]
["SUCHITÉPEQUEZ","SAN_JUAN_BAUTISTA",4.2,100]
["SUCHITÉPEQUEZ","SAN_LORENZO",4.2,110]
["SUCHITÉPEQUEZ","SAN_MIGUEL_PANÁN",4.2,100]
["SUCHITÉPEQUEZ","SAN_PABLO_JOCOPILAS",4.2,100]
["SUCHITÉPEQUEZ","SANTA_BÁRBARA",4.2,100]
["SUCHITÉPEQUEZ","SANTO_DOMINGO_SUCHITÉPEQUEZ",4.2,110]
["SUCHITÉPEQUEZ","SANTO_TOMÁS_LA_UNIÓN",4.2,100]
["SUCHITÉPEQUEZ","ZUNILITO",4.2,100]
["TOTONICAPAN","MOMOSTENANGO",4.0999999999999996,100]
["TOTONICAPAN","SAN_ANDRÉS_XECUL",4.0999999999999996,100]
["TOTONICAPAN","SAN_BARTOLO_AGUAS_CALIENTES",4.0999999999999996,100]
["TOTONICAPAN","SAN_CRISTÓBAL_TOTONICAPÁN",4.0999999999999996,100]
["TOTONICAPAN","SAN_FRANCISCO_EL_ALTO",4.0999999999999996,100]
["TOTONICAPAN","SANTA_LUCÍA_LA_REFORMA",4.0999999999999996,100]
["TOTONICAPAN","SANTA_MARÍA_CHIQUIMULA",4.0999999999999996,100]
["TOTONICAPAN","TOTONICAPÁN",4.0999999999999996,100]
["ZACAPA","CABAÑAS",4.0999999999999996,100]
["ZACAPA","ESTANZUELA",4.0999999999999996,100]
["ZACAPA","GUALÁN",4.0999999999999996,100]
["ZACAPA","HUITÉ",4.0999999999999996,100]
["ZACAPA","LA_UNIÓN",4.0999999999999996,100]
["ZACAPA","RÍO_HONDO",4.0999999999999996,100]
["ZACAPA","SAN_DIEGO",4.0999999999999996,100]
["ZACAPA","SAN_JORGE",4.0999999999999996,100]
["ZACAPA","TECULUTÁN",4.0999999999999996,100]
["ZACAPA","USUMATLÁN",4.0999999999999996,100]
["ZACAPA","ZACAPA",4.0999999999999996,100]

{"sheet":"tablas exposicion","index":4,"n_rows":156,"n_cols":7,"rows_kept":156,"cut":false,"hidden":true,"merged":[[4,14,10,16],[97,3,97,6],[94,1,95,6],[0,1,1,6],[13,1,14,6],[3,3,3,6],[15,1,15,6],[16,3,16,6],[2,1,2,6],[96,1,96,6],[10,8,10,9],[66,3,66,6],[34,1,35,6],[36,1,36,6],[37,3,37,6],[63,1,64,6],[65,1,65,6],[149,3,149,6],[117,1,118,6],[119,1,119,6],[120,3,120,6],[146,1,147,6],[148,1,148,6]]}
[null,"SISMICIDAD (EJEMPLO)"]
[]
[null,"RELACION FRECUENCIA E INTENSIDAD"]
[null,null,null,"EXPOSICION"]
[null,null,null,"BAJA","MEDIA","ALTA","MUY ALTA"]
[null,"AMENAZA F/I",null,1,2,3,4]
[null,"BAJA",1,"BAJA","BAJA","BAJA","ALTA"]
[null,"MEDIA",2,"MEDIA","MEDIA","MEDIA","ALTA"]
[null,"ALTA",3,"ALTA","ALTA","ALTA","MUY ALTA"]
[null,"MUY ALTA",4,"MUY ALTA","MUY ALTA","MUY ALTA","MUY ALTA"]
[]
[]
[]
[null,"VULCANISMO (EJEMPLO)"]
[]
[null,"RELACION FRECUENCIA E INTENSIDAD / VULNERABILIDAD POR EXPOSICION"]
[null,null,null,"EXPOSICION"]
[null,null,null,"BAJA","MEDIA","ALTA","MUY ALTA"]
[null,"AMENAZA F/I",null,1,2,3,4]
[null,"BAJA",1,"BAJA","BAJA","MEDIA","ALTA"]
[null,"MEDIA",2,"MEDIA","MEDIA","ALTA","MUY ALTA"]
[null,"ALTA",3,"MEDIA","ALTA","MUY ALTA","MUY ALTA"]
[null,"MUY ALTA",4,"MUY ALTA","MUY ALTA","MUY ALTA","MUY ALTA"]
[]
[]
[]
[]
[]
[]
[]
[]
[]
[]
[]
[null,"INUNDACION (EJEMPLO)"]
[]
[null,"RELACION FRECUENCIA E INTENSIDAD / VULNERABILIDAD POR EXPOSICION"]
[null,null,null,"EXPOSICION"]
[null,null,null,"BAJA","MEDIA","ALTA","MUY ALTA"]
[null,"AMENAZA F/I",null,1,2,3,4]
[null,"BAJA",1,"BAJA","BAJA","MEDIA","ALTA"]
[null,"MEDIA",2,"BAJA","MEDIA","ALTA","ALTA"]
[null,"ALTA",3,"BAJA","MEDIA","ALTA","MUY ALTA"]
[null,"MUY ALTA",4,"ALTA","ALTA","MUY ALTA","MUY ALTA"]
[]
[]
[]
[]
[]
[]
[]
[]
[]
[]
[]
[]
[]
[]
[]
[]
[]
[]
[]
[null,"DESLIZAMIENTOS (EJEMPLO)"]
[]
[null,"RELACION FRECUENCIA E INTENSIDAD / VULNERABILIDAD POR EXPOSICION"]
[null,null,null,"EXPOSICION"]
[null,null,null,"BAJA","MEDIA","ALTA","MUY ALTA"]
[null,"AMENAZA F/I",null,1,2,3,4]
[null,"BAJA",1,"BAJA","BAJA","MEDIA","ALTA"]
[null,"MEDIA",2,"BAJA","MEDIA","MEDIA","MUY ALTA"]
[null,"ALTA",3,"BAJA","MEDIA","ALTA","MUY ALTA"]
[null,"MUY ALTA",4,"BAJA","ALTA","ALTA","MUY ALTA"]
[]
[]
[]
[]
[]
[]
[]
[]
[]
[]
[]
[]
[]
[]
[]
[]
[]
[]
[]
[]
[]
[null,"HURACANES (ejemplo)"]
[]
[null,"RELACION FRECUENCIA E INTENSIDAD / VULNERABILIDAD POR EXPOSICION"]
[null,null,null,"EXPOSICION"]
[null,null,null,"BAJA","MEDIA","ALTA","MUY ALTA"]
[null,"AMENAZA F/I",null,1,2,3,4]
[null,"BAJA",1,"BAJA","BAJA","MEDIA","MUY ALTA"]
[null,"MEDIA",2,"BAJA","MEDIA","ALTA","MUY ALTA"]
[null,"ALTA",3,"MEDIA","ALTA","MUY ALTA","MUY ALTA"]
[null,"MUY ALTA",4,"ALTA","ALTA","MUY ALTA","MUY ALTA"]
[]
[]
[]
[]
[]
[]
[]
[]
[]
[]
[]
[]
[]
[null,"VIENTOS (EJEMPLO)"]
[]
[null,"RELACION FRECUENCIA E INTENSIDAD / VULNERABILIDAD POR EXPOSICION"]
[null,null,null,"EXPOSICION"]
[null,null,null,"BAJA","MEDIA","ALTA","MUY ALTA"]
[null,"AMENAZA F/I",null,1,2,3,4]
[null,"BAJA",1,"BAJA","BAJA","BAJA","BAJA"]
[null,"MEDIA",2,"BAJA","BAJA","MEDIA","MEDIA"]
[null,"ALTA",3,"BAJA","MEDIA","ALTA","ALTA"]
[null,"MUY ALTA",4,"ALTA","ALTA","MUY ALTA","MUY ALTA"]
[]
[]
[]
[]
[]
[]
[]
[]
[]
[]
[]
[]
[]
[]
[]
[]
[]
[]
[]
[null,"OTRAS (EJEMPLO)"]
[]
[null,"RELACION FRECUENCIA E INTENSIDAD / VULNERABILIDAD POR EXPOSICION"]
[null,null,null,"EXPOSICION"]
[null,null,null,"BAJA","MEDIA","ALTA","MUY ALTA"]
[null,"AMENAZA F/I",null,1,2,3,4]
[null,"BAJA",1,"BAJA","BAJA","MEDIA","ALTA"]
[null,"MEDIA",2,"BAJA","MEDIA","ALTA","MUY ALTA"]
[null,"ALTA",3,"MEDIA","ALTA","ALTA","MUY ALTA"]
[null,"MUY ALTA",4,"MUY ALTA","MUY ALTA","MUY ALTA","MUY ALTA"]

{"sheet":"DATOS GENERALES","index":5,"n_rows":40,"n_cols":5,"rows_kept":40,"cut":false,"hidden":true,"merged":[[37,0,37,1],[38,0,38,1],[39,0,39,1],[30,0,30,1],[32,0,32,1],[34,0,34,1],[35,0,35,1],[36,0,36,1],[28,0,28,1],[19,0,20,0],[17,0,17,1],[15,0,15,1],[13,0,13,1],[2,0,2,1],[6,0,6,1],[8,0,8,1],[0,0,0,3],[26,0,26,1],[24,0,24,1],[22,0,22,1],[4,0,4,1],[11,0,11,1],[3,0,3,1]]}
["MODULO No. 1 :  DATOS GENERALES DEL PROYECTO"]
[]
["NOMBRE Y TIPO DEL PROYECTO",null,"NOMBRE DEL PROYECTO"]
["SNIP",null,123]
["BREVE DESCRIPCION DEL PROYECTO",null,123,null," "]
[]
["INVERSION PROGRAMADA"]
[]
["UNIDAD EJECUTORA",null,123]
[]
[]
["REGION",null,"I"]
[]
["DEPARTAMENTO",null,"Guatemala"]
[]
["MUNICIPIO",null,"Santa Catarina Pinula"]
[]
["LUGAR POBLADO",null,123]
[]
["COORDENADAS GTM","X",14]
[null,"Y",0]
[]
["NIVEL DEL ESTUDIO"]
[]
["FECHA DEL ANALISIS DE RIESGO",null,"2025-07-08"]
[]
["FORMULADOR DEL ANALISIS DE RIESGO",null,"Ricardo Avila"]
[]
["CARGO",null,"Dev"]
[]
["INSTITUCION",null,"Insti"]
[]
["PROFESION",null,"Profe"]
[]
["No. COLEGIADO",null,123]
[]
["NOMBRE ENCARGADO",null,"A65S4DF"]
["DPI ENCARGADO",null,6546546546546]
["NOMBRE AVAL",null,"ASDF"]
["DPI AVAL",null,6546546546546]

{"sheet":"PROBABILIDAD_DAÑO","index":6,"n_rows":58,"n_cols":7,"rows_kept":58,"cut":false,"hidden":true,"merged":[[1,4,2,5],[10,4,11,5],[43,0,43,3],[51,0,51,3],[1,0,1,3],[2,0,2,3],[42,4,43,5],[51,4,52,5],[52,0,52,3],[42,0,42,3],[10,0,10,3],[11,0,11,3],[18,0,18,3],[19,0,19,3],[18,4,19,5],[24,8,24,13],[26,0,26,3],[27,0,27,3],[34,0,34,3],[35,0,35,3],[26,4,27,5],[34,4,35,5]]}
[]
["CRITERIOS PARA DETERMINAR LA PROBABILIDAD DEL NIVEL DE INTENSIDAD DE ZONA SÍSMICA",null,null,null,"PROBABILIDAD DE DAÑO SEGÚN EL NIVEL DE EXPOSICIÓN AMENAZA SISMICA"]
["TABLA No. 1\nPONDERACIÓN DEL FACTOR DE INTENSIDAD EN SISMOS"]
["INTENSIDAD","CRITERIO",null,"NIVEL","DAÑO PROBABLE","RECOMENDACIÓN ????"]
[]
[1,"El sitio está ubicado dentro de los índices de sismicidad 2.1 y 2.2, conforme a lo establecido en la normativa NSE2-10 de AGIES. Esto indica que la zona presenta un nivel moderado de actividad sísmica que debe considerarse en el diseño y construcción de las estructuras, siguiendo los parámetros técnicos definidos para garantizar la seguridad y resistencia frente a posibles eventos sísmicos.\n",null,"BAJA","Según la escala de Mercalli Modificada (EMM), con una intensidad entre I y III, el sismo se clasifica de muy débil a leve. En este rango, los objetos colgantes pueden oscilar y se percibe una ligera oscilación en los edificios. Sin embargo, este tipo de movimiento no provoca daños considerables ni afecta la integridad estructural de las construcciones.","A nivel nacional, se recomienda consultar diversas normativas emitidas por AGIES para asegurar un diseño adecuado y seguro frente a la actividad sísmica. Entre estas se encuentra la normativa NSE-2-2018, modificada en 2020, que establece los criterios para calcular el diseño estructural basado en el índice de sismicidad del sitio, tomando en cuenta la ordenada espectral de período corto y la ordenada espectral con período de un segundo.\n\nTambién es fundamental considerar la normativa NSE-2.1-18, igualmente modificada en 2020, la cual está orientada a los estudios geotécnicos, esenciales para evaluar las características del suelo y la cimentación.\n\nAdemás, la normativa NSE-1, 2018, con modificaciones en 2020, aborda las generalidades, la administración de las normas y la supervisión técnica, garantizando que los procesos cumplan con los estándares establecidos.\n\nFinalmente, se recomienda revisar las demás normas NSE de AGIES que están relacionadas con el diseño y desarrollo de proyectos, para asegurar una aplicación integral y adecuada de los lineamientos técnicos nacionales.","YA NO  ME DIO TIEMPO A REVISAR, ESTE ES BIEN IMPORTANTE"]
[2,"El sitio está ubicado dentro de los índices de sismicidad 3.1 y 3.2, de acuerdo con la normativa NSE2-10 de AGIES. Esto indica que el área presenta un nivel específico de actividad sísmica que debe ser considerado en el diseño y la planificación de las estructuras, siguiendo los parámetros establecidos en dicha normativa para garantizar la seguridad y resistencia frente a eventos sísmicos.",null,"MEDIA","La intensidad sísmica se clasifica de moderada a fuerte, con valores entre IV y VI en la escala de Mercalli Modificada (EMM). Durante este rango de intensidad, se pueden presentar perturbaciones en pisos, puertas y ventanas, lo que refleja movimientos perceptibles dentro de las estructuras. Los daños ocasionados en la infraestructura suelen ser leves, afectando principalmente elementos no estructurales y causando molestias, pero sin comprometer significativamente la estabilidad de los edificios.","A nivel nacional, se recomienda consultar varias normativas emitidas por AGIES para el diseño sísmico y aspectos técnicos relacionados. Entre ellas, la normativa NSE-2-2018, modificada en 2020, que establece los procedimientos para calcular el diseño estructural basado en el índice de sismicidad del sitio, considerando la ordenada espectral de período corto y la ordenada espectral con período de un segundo.\n\nTambién es fundamental revisar la normativa NSE-2.1-18, igualmente modificada en 2020, la cual está enfocada en los estudios geotécnicos necesarios para garantizar la adecuada evaluación del terreno y la cimentación.\n\nPor otra parte, la normativa NSE-1, 2018, con modificaciones en 2020, aborda las generalidades, la administración de las normas y la supervisión técnica, asegurando el cumplimiento correcto de los estándares durante todo el proceso constructivo.\n\nFinalmente, es importante tener en cuenta las demás normas NSE de AGIES que se relacionan con el diseño y desarrollo de proyectos, para asegurar la aplicación integral de los lineamientos nacionales en materia sísmica."]
[3,"El sitio del proyecto se encuentra ubicado dentro del índice de sismicidad 4.1, según la clasificación establecida por la normativa sísmica vigente.\n    según la NSE2-10 de AGIES. \n",null,"ALTA","El evento sísmico se clasifica como muy fuerte a destructivo, con una intensidad estimada entre VII y IX en la escala de Mercalli Modificada (EMM). Durante este nivel de intensidad, se producen daños considerables en estructuras especializadas, observándose que las paredes quedan fuera de plomo, lo que compromete su estabilidad.\n\nAdemás, se registran grandes daños en edificios de importancia, incluyendo colapsos parciales que afectan la integridad estructural. En algunos casos, los edificios pueden desplazarse fuera de sus bases, lo que representa un riesgo significativo para la seguridad de los ocupantes y la estabilidad general de las construcciones.","A nivel nacional se recomienda consultar diversas normativas establecidas por AGIES para el diseño sísmico y los estudios técnicos relacionados. En primer lugar, la normativa NSE-2-2018, modificada en 2020, que tiene como objetivo calcular el diseño sísmico en función del índice de sismicidad del sitio, utilizando la ordenada espectral de período corto y la ordenada espectral con período de un segundo.\n\nTambién es importante revisar la normativa NSE-2.1-18, igualmente modificada en 2020, que está relacionada con los estudios geotécnicos necesarios para la correcta evaluación del suelo y la cimentación de las estructuras. Por otro lado, la normativa NSE-1, 2018, con modificaciones en 2020, aborda las generalidades, la administración de las normas y la supervisión técnica para garantizar el cumplimiento adecuado durante todo el proceso.\n\nFinalmente, se recomienda considerar todas las demás normas NSE de AGIES que estén relacionadas con el diseño y desarrollo de proyectos para asegurar la correcta aplicación de los lineamientos técnicos nacionales en materia sísmica."]
[4,"El sitio del proyecto se encuentra ubicado dentro de los índices de sismicidad 4.2 y 4.3, según lo establecido en la norma NSE2-10 de AGIES.",null,"MUY ALTA","El escenario estimado para el sitio del proyecto corresponde a un nivel de intensidad sísmica desastroso a catastrófico en la escala de Mercalli Modificada (EMM X-XII), donde pocas estructuras de mampostería permanecen en pie, se observa la destrucción de algunas edificaciones de madera bien construidas y la deformación de elementos como rieles.","A nivel nacional, se recomienda consultar la normativa NSE-2-2018 (modificada en 2020) de AGIES, con el propósito de calcular el diseño estructural según el índice de sismicidad del sitio, utilizando la ordenada espectral de período corto y la ordenada espectral con período de un segundo. También debe considerarse la normativa NSE-2.1-18 (modificada en 2020) de AGIES, relacionada con los estudios geotécnicos, así como la normativa NSE-1-2018 (modificada en 2020), que aborda generalidades, la administración de las normas y la supervisión técnica. Además, es fundamental tomar en cuenta el resto de normas NSE de AGIES aplicables al diseño de los proyectos."]
[]
["CRITERIOS PARA DETERMINAR LA PROBABILIDAD DEL NIVEL DE INTENSIDAD DE AMENAZA VOLCANICA",null,null,null,"PROBABILIDAD DE DAÑO SEGÚN EL NIVEL DE EXPOSICIÓN AMENAZA VOLCÁNICA"]
["TABLA No. 2\nPONDERACIÓN DEL FACTOR DE INTENSIDAD EN VULCANISMO"]
["INTENSIDAD","CRITERIO",null,"NIVEL","DAÑO PROBABLE","RECOMENDACIÓN ????"]
[1,"La distancia del sitio del proyecto con respecto a un edificio volcánico es mayor a 50 kilómetros. Debido a esta ubicación, existe la posibilidad eventual de caída de ceniza volcánica, aunque en cantidades limitadas, estimadas en medio centímetro o menos de espesor de lámina. Esta caída ligera de ceniza puede generar molestias superficiales, pero no se espera que cause impactos significativos en la infraestructura o en las actividades del sitio.",null,"BAJA","La probabilidad de daños a la infraestructura es baja, aunque depende directamente del nivel de amenaza volcánica presente en la zona. Existe una posibilidad de caída de tefra, compuesta principalmente por partículas de arena y ceniza, que puede ser expulsada por el edificio volcánico y transportada a grandes distancias. Aunque esta caída de tefra puede afectar superficies y equipos expuestos, su impacto sobre la infraestructura suele ser limitado, salvo en casos de erupciones más intensas o prolongadas.","En construcciones expuestas a amenazas volcánicas, es fundamental cumplir con las normas AGIES NSE-2-2018, las cuales establecen los lineamientos para el diseño estructural, incluyendo consideraciones específicas relacionadas con los aspectos volcánicos que puedan afectar la edificación.\n\nAsimismo, se debe prestar especial atención a la normativa NSE-2.1-18 (modificada en 2020) de AGIES, que regula los estudios geotécnicos necesarios para evaluar las características del terreno y garantizar una cimentación adecuada frente a estas amenazas naturales. Cumplir con estas normas contribuye a minimizar riesgos y a fortalecer la seguridad de las construcciones en zonas volcánicas."]
[2,"El sitio del proyecto se encuentra aproximadamente a 30 kilómetros de un edificio volcánico. Debido a esta proximidad, es posible que se presente de manera eventual la caída de tefra, compuesta por arena volcánica, con un espesor estimado de hasta un centímetro de lámina.\n\nLa actividad volcánica en la zona se considera baja, lo que reduce la probabilidad de impactos significativos. Sin embargo, esta condición implica la necesidad de mantener vigilancia y aplicar medidas preventivas adecuadas para minimizar cualquier efecto adverso derivado de la caída de material volcánico.",null,"MEDIA","La probabilidad de daños en la infraestructura proyectada se considera leve. No obstante, es importante tomar en cuenta la posible caída de tefra, compuesta por arena volcánica, la cual puede ocasionar daños específicos, especialmente en techos y en proyectos de cielo abierto, como plantas de tratamiento y otras instalaciones expuestas. Por ello, se recomienda diseñar y proteger adecuadamente estas estructuras para minimizar los efectos adversos de la caída de material volcánico.","En construcciones expuestas a amenazas volcánicas, es imprescindible cumplir con las normas AGIES NSE-2-2018, que establecen los lineamientos para el diseño estructural, incluyendo aspectos específicos relacionados con las condiciones volcánicas. Asimismo, se debe observar la normativa NSE-2.1-18 (modificada en 2020) de AGIES, que regula los estudios geotécnicos necesarios para evaluar las características del suelo y garantizar la estabilidad de las estructuras.\n\nAdemás, se recomienda sensibilizar a la población sobre la existencia de amenazas volcánicas moderadas en la zona, promoviendo la adopción de medidas preventivas y correctivas que contribuyan a la preservación de la infraestructura y a la seguridad de los habitantes. Esta sensibilización es clave para minimizar riesgos y fomentar una cultura de prevención ante posibles eventos volcánicos."]
[3,"El sitio del proyecto se encuentra a menos de 30 kilómetros de un edificio volcánico, en una zona con antecedentes de actividad volcánica registrada. Además, se cuenta con un historial de caída de tefra, es decir, arena volcánica que ha superado un centímetro de espesor en la lámina depositada.\n\nAdicionalmente, el área está situada cerca de quebradas que nacen en el edificio volcánico, lo que puede incrementar la vulnerabilidad ante fenómenos asociados, como flujos de agua con sedimentos o lahares, relacionados con la actividad volcánica. Estas condiciones requieren un análisis cuidadoso y la implementación de medidas específicas para mitigar los riesgos derivados de la proximidad al volcán y la geografía local.",null,"ALTA","La probabilidad de daños a las infraestructuras en el sitio se considera moderada, sin esperar una destrucción repentina. La magnitud del daño dependerá en gran medida de que las construcciones estén diseñadas y adaptadas adecuadamente a las condiciones específicas del lugar, incluyendo la actividad volcánica y las características geotécnicas. Por tanto, es fundamental que los aspectos constructivos respondan a estos factores para minimizar riesgos y garantizar la resiliencia de las edificaciones.","En construcciones expuestas a amenazas volcánicas, es imprescindible cumplir con las normas AGIES NSE-2-2018, que regulan el diseño estructural, incorporando las consideraciones específicas relacionadas con los riesgos volcánicos. Asimismo, debe observarse la norma NSE-2.1-18 (modificada en 2020) de AGIES, la cual establece los lineamientos para la realización de estudios geotécnicos adecuados al contexto del sitio.\n\nSe recomienda también sensibilizar a la población acerca de la existencia de amenazas volcánicas moderadas, fomentando la aplicación de medidas preventivas y correctivas que contribuyan a la preservación de la infraestructura y a la seguridad de los habitantes.\n\nFinalmente, resulta fundamental realizar un análisis más profundo y detallado para la construcción de la obra, con el fin de garantizar que los diseños y métodos constructivos sean apropiados para enfrentar las condiciones y riesgos volcánicos del área."]
[4,"La obra proyectada se encuentra a una distancia de 20 kilómetros o menos de un edificio volcánico con un historial de actividad frecuente. En esta zona, se registra la caída constante de tefra, compuesta por arena volcánica y lapilli, cuya acumulación supera los tres centímetros de espesor. Además, el tamaño de las partículas de tefra volcánica puede superar los 10 milímetros.\n\nEl área cercana al sitio del proyecto también ha experimentado históricamente flujos de lava, lahares y flujos piroclásticos, eventos que representan un riesgo significativo debido a su naturaleza destructiva. El proyecto está situado además en quebradas originadas en el edificio volcánico, lo que aumenta la vulnerabilidad frente a la acción de estos fenómenos, especialmente por la posible concentración y canalización de materiales volcánicos y flujos peligrosos. Estas condiciones exigen un análisis exhaustivo y medidas de diseño y construcción altamente especializadas para mitigar los riesgos volcánicos.",null,"MUY ALTA","Existe una alta probabilidad de destrucción total y repentina de la infraestructura, incluyendo viviendas y edificios, así como de las áreas de cultivo cercanas. Esta situación se debe a la intensidad y frecuencia de los fenómenos volcánicos en la zona, como flujos de lava, lahares y flujos piroclásticos, que pueden causar daños severos e irreversibles en un corto período de tiempo. Por lo tanto, es fundamental implementar medidas estrictas de prevención, diseño resistente y planes de emergencia para minimizar el impacto sobre las personas y bienes materiales.","Se recomienda considerar la búsqueda de un nuevo sitio para la construcción del proyecto, debido a la alta peligrosidad que representa la ubicación actual para la infraestructura y sus usuarios. Esta recomendación responde a la significativa probabilidad de daños severos y destrucción total ocasionados por la actividad volcánica frecuente y los fenómenos asociados en la zona. Relocalizar el proyecto contribuiría a garantizar una mayor seguridad y sostenibilidad a largo plazo."]
[]
[" CRITERIOS PARA DETERMINAR LA PROBABILIDAD DEL NIVEL DE INTENSIDAD EN INUNDACIONES",null,null,null,"PROBABILIDAD DE DAÑO SEGÚN EL NIVEL DE EXPOSICIÓN AMENAZA INUNDACIONES"]
["TABLA No 3\nPONDERACIÓN DEL FACTOR DE INTENSIDAD EN INUNDACIONES"]
["INTENSIDAD","CRITERIO",null,"NIVEL","DAÑO PROBABLE","RECOMENDACIÓN ????"]
[1,"El área en la que se emplazará el proyecto presenta condiciones favorables en cuanto al riesgo de inundación. No se reportan antecedentes de eventos significativos de este tipo, y en los casos donde se han registrado, el nivel de anegamiento ha sido mínimo, con alturas inferiores a los 0.6 metros, lo cual no ha representado una amenaza para la infraestructura o las actividades en el área.\n\nAdemás, no se han identificado interrupciones en los servicios básicos como consecuencia de inundaciones. El sitio del proyecto se ubica en un terreno elevado, lo que le proporciona una ventaja natural frente al riesgo de acumulación de aguas pluviales o desbordamientos. También es relevante destacar que no existen ríos, quebradas ni cuerpos de agua en las cercanías inmediatas que pudieran representar una amenaza hidrometeorológica directa.\n\nEn conjunto, estas condiciones permiten considerar que el riesgo por inundación en este sitio es bajo, por lo que no se prevén afectaciones significativas a la infraestructura o a su funcionalidad operativa por este tipo de amenaza.",null,"BAJA","Con base en las condiciones observadas en el entorno del proyecto, la probabilidad de que se presenten daños como consecuencia de inundaciones se considera baja. El terreno elevado, la ausencia de cuerpos de agua cercanos y la falta de antecedentes relevantes de anegamiento contribuyen a minimizar los riesgos. En este contexto, se estima que, de llegar a presentarse algún evento hidrometeorológico extremo, los daños serían poco significativos y no comprometerían de manera relevante la integridad de la infraestructura ni la continuidad de las actividades proyectadas.","En todos los casos, se recomienda la aplicación de la Normativa NSE-2-2018 de AGIES, que regula el diseño estructural de edificaciones. Específicamente, debe considerarse lo establecido en el capítulo 10, el cual aborda las condiciones del terreno y proporciona lineamientos esenciales para garantizar la estabilidad y seguridad estructural en función de las características del sitio.\n\nAsimismo, se sugiere la utilización de la Normativa NSE-2.1-18 (modificada 2020) de AGIES, orientada a los estudios geotécnicos. De manera particular, es importante consultar el capítulo 4, donde se detallan los procedimientos y criterios para la caracterización geotécnica del subsuelo, información clave para una adecuada toma de decisiones en el diseño y desarrollo de la obra."]
[2,"El sitio del proyecto presenta antecedentes históricos de inundaciones eventuales, las cuales han generado un tirante de agua que oscila entre los 0.6 y 1 metro de altura. Estas condiciones han ocasionado daños moderados a la infraestructura existente, evidenciando la necesidad de considerar medidas preventivas y correctivas durante el diseño y operación del proyecto.\n\nDurante dichos eventos, se ha observado que el espejo de agua producto de la inundación puede permanecer por más de 24 horas en el área afectada, lo cual influye directamente en la movilidad, ya que se ha registrado afectación al tránsito vehicular. No obstante, a pesar de estas condiciones, no se han reportado interrupciones en los servicios básicos.\n\nEn ese contexto, aunque el impacto sobre la funcionalidad de los servicios ha sido limitado, la recurrencia de estos eventos y la magnitud del tirante hacen necesaria la incorporación de estrategias de manejo pluvial, drenaje y protección de infraestructura, a fin de minimizar riesgos y asegurar la continuidad operativa del proyecto.",null,"MEDIA","La probabilidad de que se presenten daños moderados como resultado de eventos de inundación es considerada significativa en el área del proyecto. Estas afectaciones pueden comprometer parcialmente la infraestructura, especialmente en lo que respecta a la circulación vehicular, debido al tirante de agua que puede alcanzar hasta un metro de altura y a la permanencia del espejo de agua por más de 24 horas.\n\nAunque no se anticipa una interrupción de los servicios básicos, las condiciones descritas sugieren que las inundaciones pueden impactar la movilidad y el acceso al sitio, lo cual representa un riesgo operativo importante. Por ello, se recomienda integrar medidas de mitigación que contemplen sistemas de drenaje adecuados y elevación de los niveles de ingreso o vías de acceso, con el fin de reducir el impacto de estos eventos y asegurar la funcionalidad del proyecto.","Se recomienda implementar medidas de mitigación y resiliencia que permitan reducir la vulnerabilidad de la infraestructura pública ante eventos de inundación, con especial énfasis en los proyectos viales, ya que estos suelen ser particularmente sensibles a la acumulación de agua y al deterioro progresivo del terreno. Estas acciones deben incluir soluciones de ingeniería que mejoren el manejo de escorrentías, la resistencia estructural de las vías y la funcionalidad de los sistemas de drenaje.\n\nAsimismo, en todos los casos se recomienda la aplicación de la Normativa NSE-2-2018 de AGIES, enfocada en el diseño estructural de edificaciones, considerando específicamente lo establecido en el capítulo 10, que aborda las condiciones del terreno. Esta normativa ofrece criterios técnicos clave para adaptar los proyectos a las características particulares del sitio.\n\nDe igual forma, debe utilizarse la Normativa NSE-2.1-18 (modificada 2020) de AGIES, relacionada con los estudios geotécnicos, prestando atención especial al capítulo 4, que trata sobre la caracterización geotécnica del subsuelo. Este análisis es esencial para identificar riesgos asociados al comportamiento del suelo frente a la humedad y la presión hidrostática, y para definir adecuadamente los parámetros de diseño que garanticen la estabilidad de las obras proyectadas."]
[3,"En este escenario, se ha identificado que el tirante de la inundación puede alcanzar alturas que oscilan entre 1 y 3.5 metros, lo cual representa una amenaza significativa para la integridad de la infraestructura. Este nivel de acumulación de agua puede generar colapsos parciales en edificaciones y estructuras críticas, así como provocar pérdidas materiales considerables.\n\nAdemás de los daños estructurales, se ha reportado la interrupción parcial de los servicios básicos, lo cual afecta directamente la funcionalidad y operación del proyecto. Este tipo de eventos también compromete la movilidad de las personas en el área, limitando el acceso y desplazamiento, lo cual incrementa la vulnerabilidad social y económica de la zona.\n\nFrente a esta situación, resulta imprescindible diseñar e implementar medidas de adaptación y mitigación robustas, que incluyan análisis hidráulicos detallados, la construcción de obras de protección contra inundaciones y la adecuación del nivel de las estructuras. También es fundamental incorporar estrategias de respuesta rápida y recuperación ante emergencias para garantizar la continuidad operativa y la seguridad de los usuarios.",null,"ALTA","Las pérdidas considerables derivadas de una inundación con tirantes de entre 1 y 3.5 metros pueden abarcar tanto daños estructurales como económicos y sociales. A nivel físico, estas pérdidas incluyen el deterioro o colapso parcial de edificaciones, equipos, instalaciones eléctricas, mobiliario y redes de infraestructura básica. En términos económicos, pueden implicar costos elevados en reparación, reconstrucción y reposición de bienes, además de interrupciones en las actividades productivas y operativas del proyecto.\n\nDesde una perspectiva social, las afectaciones impactan directamente en la calidad de vida de la población usuaria, al generar limitaciones en el acceso a servicios, restricciones de movilidad, y condiciones de riesgo para la seguridad física. Por ello, las pérdidas en este contexto deben ser abordadas desde una planificación integral que considere no solo los costos materiales, sino también la exposición de la infraestructura y la vulnerabilidad del entorno en el que se ubica el proyecto.","Dado que el proyecto se localiza en una zona con riesgo de inundaciones capaces de causar daños considerables, se hace indispensable la implementación de medidas de mitigación orientadas a reducir la vulnerabilidad de la infraestructura. Estas medidas pueden incluir el diseño de sistemas de drenaje eficientes, elevación de estructuras críticas, construcción de muros de contención y otras intervenciones que aumenten la resiliencia ante eventos hidrometeorológicos extremos. No obstante, debido a la magnitud del riesgo identificado, también se sugiere considerar la búsqueda de un nuevo emplazamiento para el desarrollo del proyecto, en un área con menor susceptibilidad a inundaciones.\n\nEn todos los casos, se recomienda aplicar la normativa NSE-2-2018 emitida por AGIES, particularmente lo establecido en el capítulo 10, que aborda las condiciones del terreno como factor determinante en el diseño estructural de edificaciones. Adicionalmente, se aconseja el uso de la NORMATIVA NSE-2.1-18 (modificada en 2020), también de AGIES, especialmente lo señalado en el capítulo 4, que se refiere a la caracterización geotécnica del subsuelo. La aplicación rigurosa de estas normativas permitirá garantizar la seguridad estructural del proyecto y su compatibilidad con las condiciones geológicas e hidrológicas del sitio."]
[4,"Cuando el tirante de la inundación supera los 3.5 metros de altura, se considera una condición de amenaza extrema para la infraestructura y para la vida humana. En estos casos, el primer nivel de las edificaciones suele quedar completamente sumergido, lo que no solo provoca daños estructurales severos, sino que también representa un peligro directo para los ocupantes, especialmente si no se cuenta con rutas de evacuación adecuadas y sistemas de alerta temprana. Adicionalmente, la interrupción de servicios básicos como energía eléctrica, agua potable y vías de comunicación es común, lo cual agrava las condiciones de vulnerabilidad durante y después del evento.\n\nDebido a la magnitud del riesgo, se recomienda firmemente evitar el desarrollo de proyectos en zonas con estas características, priorizando la reubicación hacia áreas más seguras. La exposición a inundaciones de esta intensidad puede derivar en pérdidas humanas, materiales y económicas significativas, dificultando la recuperación y sostenibilidad del proyecto.",null,"MUY ALTA","En situaciones donde las inundaciones alcanzan niveles que provocan la sumersión de viviendas y edificios, así como la destrucción de carreteras, puentes y otras infraestructuras, los daños son considerados considerables. Este tipo de eventos genera un impacto severo en la comunidad afectada, interrumpiendo no solo el acceso y la movilidad, sino también los servicios básicos y las actividades cotidianas.\n\nLa infraestructura crítica queda comprometida, lo que dificulta las labores de rescate y recuperación. Además, las pérdidas materiales y económicas son significativas, y el riesgo para la seguridad y bienestar de las personas aumenta considerablemente. Por lo tanto, en zonas con este nivel de amenaza, se debe priorizar la implementación de medidas de mitigación robustas, o incluso la reubicación de proyectos para garantizar la protección de la infraestructura y la población.","Por tratarse de una zona de muy alto peligro por inundaciones, resulta imprescindible implementar medidas de mitigación que aseguren la preservación de la infraestructura y la seguridad de los usuarios. En casos extremos, se debe considerar la búsqueda de un nuevo sitio para el proyecto, con condiciones más favorables y menor riesgo.\n\nAsimismo, se recomienda el uso riguroso de la normativa NSE-2-2018, especialmente lo especificado en el capítulo 10, relacionado con las condiciones del terreno para el diseño estructural de edificaciones. Adicionalmente, es fundamental aplicar la NORMATIVA NSE-2.1-18 (modificada en 2020) de AGIES, con énfasis en el capítulo 4, que aborda la caracterización geotécnica del subsuelo, para garantizar un análisis técnico adecuado y completo."]
[]
["CRITERIOS PARA DETERMINAR LA PROBABILIDAD DEL NIVEL DE INTENSIDAD EN DESLIZAMIENTOS",null,null,null,"PROBABILIDAD DE DAÑO SEGÚN EL NIVEL DE EXPOSICIÓN AMENAZA DESLIZAMIENTOS"]
["TABLA No. 4\nPONDERACIÓN DEL FACTOR DE INTENSIDAD EN DESLIZAMIENTOS"]
["INTENSIDAD","CRITERIO",null,"NIVEL","DAÑO PROBABLE","RECOMENDACIÓN ????"]
[1,"El sitio del proyecto presenta condiciones geológicas y geomorfológicas favorables en cuanto al riesgo por movimientos en masa. No se tiene registro histórico de deslizamientos en el área, lo cual indica una estabilidad previa del terreno. El tipo de terreno corresponde a una clase I, caracterizado por ser plano o con pendientes suaves de entre 0 y 12 %, lo que reduce significativamente la probabilidad de deslizamientos.\n\nEl suelo es compacto y/o de naturaleza rocosa, lo cual mejora su capacidad portante y su estabilidad ante fenómenos erosivos o saturación. Además, el área cuenta con cobertura de vegetación forestal, un factor que contribuye a la retención del suelo y la disminución de escorrentías superficiales.\n\nNo se observaron mantos freáticos visibles que pudieran influir en la estabilidad del talud o en procesos de saturación. La distancia entre la cresta del terreno y el sitio del proyecto es de 500 metros o más, proporcionando un margen de seguridad adicional frente a posibles procesos de remoción en masa. Finalmente, no se identificaron fracturas ni grietas en el terreno que representen un riesgo para la integridad del proyecto. En conjunto, estos elementos permiten calificar el sitio como geotécnicamente estable para el desarrollo de la obra.\n\n",null,"BAJA","Se considera que, dadas las condiciones del sitio, no se prevén daños significativos derivados de esta amenaza, o en su caso, estos serían de baja intensidad. La estabilidad del terreno, la ausencia de antecedentes de deslizamientos, y las características físicas y geológicas del área respaldan esta evaluación. Por lo tanto, el riesgo asociado se clasifica como bajo, permitiendo el desarrollo del proyecto con un nivel mínimo de vulnerabilidad frente a movimientos en masa.","En todos los casos, se recomienda la aplicación de la Normativa NSE-2.1-18 (modificada en 2020) de AGIES, prestando especial atención a los siguientes capítulos: el capítulo 4, que aborda la caracterización geotécnica del subsuelo; el capítulo 5, relacionado con los criterios de diseño para la cimentación; y el capítulo 7, que trata sobre la estabilidad de laderas y taludes, aspectos fundamentales para garantizar la seguridad estructural del proyecto.\n\nAsimismo, debe consultarse la Normativa NSE-2-2018 de AGIES, específicamente el capítulo 10, el cual se refiere a las condiciones del terreno. Estas disposiciones técnicas son esenciales para el adecuado diseño y ejecución de obras civiles, especialmente en contextos donde se evalúan riesgos geotécnicos, asegurando que las construcciones se adapten correctamente a las condiciones del suelo y del entorno natural."]
[2,"El sitio del proyecto presenta condiciones que requieren especial atención ante la amenaza de movimientos en masa. No se cuenta con un historial previo de deslizamientos en el área, sin embargo, el terreno se clasifica como tipo II, con pendientes que oscilan entre el 12 % y el 25 %, lo cual incrementa el riesgo potencial de inestabilidad, especialmente bajo condiciones de saturación o eventos sísmicos.\n\nEl tipo de suelo identificado es poroso y/o con presencia de dendritas, lo cual indica una estructura menos compacta y más susceptible a la infiltración de agua. Esta condición se ve agravada por la existencia de mantos freáticos en el área, los cuales pueden provocar la pérdida de cohesión del suelo y facilitar el deslizamiento en taludes. Además, el terreno carece de cobertura vegetal, lo que disminuye la capacidad de retención del suelo y favorece la erosión superficial.\n\nLa distancia entre la cresta del terreno y el sitio del proyecto es de aproximadamente 300 a 400 metros, lo que reduce el margen de seguridad ante posibles procesos de remoción en masa. A esto se suma la existencia de zonas identificadas como susceptibles a deslizamientos, según los mapas oficiales elaborados por la CONRED. Por último, se observan fracturas o grietas con orientación hacia el sitio del proyecto, lo que representa un indicio de debilidad estructural del terreno y una señal de alerta que debe ser evaluada en profundidad.\n\nEstas condiciones en conjunto sugieren un riesgo geotécnico moderado a alto, por lo que se recomienda realizar estudios específicos detallados, reforzar las medidas de estabilización del terreno y considerar alternativas de diseño que minimicen la exposición al riesgo.",null,"MEDIA","Debido al porcentaje de pendiente presente en el terreno, así como a sus condiciones físicas y geotécnicas, existe una probabilidad considerable de ocurrencia de deslizamientos. La combinación de pendientes pronunciadas, suelo poroso, ausencia de cobertura vegetal, presencia de mantos freáticos y evidencia de grietas orientadas hacia el sitio del proyecto incrementa significativamente el riesgo de inestabilidad. Por lo tanto, es fundamental realizar un análisis geotécnico detallado y considerar medidas de mitigación adecuadas que garanticen la seguridad de la infraestructura y de sus usuarios.","El proyecto debe incorporar medidas de mitigación adecuadas conforme a las características específicas del terreno y al tipo de obra a desarrollar. Estas acciones son fundamentales para reducir el riesgo de deslizamientos y garantizar la estabilidad de la infraestructura a largo plazo.\n\nPara ello, se recomienda de manera enfática la aplicación de la Normativa NSE-2.1-18 (modificada 2020) de AGIES, prestando especial atención al capítulo 4, que aborda la caracterización geotécnica del subsuelo; al capítulo 5, referente al diseño de cimentaciones; y al capítulo 7, que establece los criterios técnicos para la estabilidad de laderas y taludes.\n\nAdicionalmente, debe consultarse la Normativa NSE-2-2018 de AGIES, en su capítulo 10, el cual detalla las condiciones del terreno. Estas normativas proporcionan los lineamientos técnicos necesarios para la evaluación y diseño de proyectos en áreas con susceptibilidad a movimientos en masa, promoviendo construcciones seguras y resilientes frente a amenazas geotécnicas."]
[3,"El sitio del proyecto presenta condiciones de alta susceptibilidad a deslizamientos, respaldadas tanto por antecedentes históricos como por las características geotécnicas del terreno. Se trata de un terreno clasificado como clase III, con pendientes pronunciadas que oscilan entre el 25 % y el 50 %, lo que incrementa considerablemente el riesgo de remoción en masa, especialmente bajo condiciones de saturación o actividad sísmica.\n\nEl tipo de suelo es suelto, poroso y con presencia de dendritas, lo que evidencia una baja cohesión y alta permeabilidad. A esto se suma la ausencia de cobertura vegetal, un factor que reduce la estabilidad natural del suelo y facilita los procesos erosivos. La presencia de mantos freáticos en el área constituye un elemento adicional de riesgo, ya que puede incrementar la presión intersticial y disminuir la resistencia del suelo.\n\nLa distancia entre la cresta y el sitio del proyecto se encuentra entre 200 y 300 metros, lo cual reduce el margen de seguridad. Además, los mapas oficiales de amenazas de CONRED identifican el área como una zona probable de deslizamiento, y se observan fracturas o grietas orientadas directamente hacia el sitio del proyecto, lo cual indica una debilidad estructural latente en el terreno.\n\nEn conjunto, estas condiciones evidencian un riesgo geotécnico alto, por lo que se recomienda un análisis técnico detallado, la implementación de medidas correctivas y de estabilización, así como una evaluación de alternativas que puedan reducir la exposición de la obra a estos eventos.",null,"ALTA","Debido a las condiciones propias del terreno y al grado pronunciado de pendiente, la probabilidad de que ocurran deslizamientos en el área del proyecto es alta. La combinación de un suelo suelto y poroso, la ausencia de cobertura vegetal, la presencia de mantos freáticos y las fracturas orientadas hacia el sitio representan factores críticos que incrementan significativamente el riesgo geotécnico. Como resultado, existe una elevada posibilidad de que estos movimientos en masa provoquen daños considerables a la infraestructura proyectada, especialmente si no se incorporan medidas de mitigación adecuadas desde la fase de diseño y construcción.","El proyecto debe incorporar medidas de mitigación específicas y adecuadas a las características del terreno y al tipo de obra que se pretende desarrollar, con el fin de reducir la vulnerabilidad ante deslizamientos y garantizar la estabilidad de la infraestructura a largo plazo. Estas medidas deben estar sustentadas en estudios técnicos que permitan comprender en profundidad las condiciones del subsuelo, la dinámica del terreno y los factores que pueden desencadenar movimientos en masa.\n\nEn todos los casos, se recomienda la aplicación de la Normativa NSE-2.1-18 (modificada 2020) de AGIES, prestando especial atención al capítulo 4, que aborda la caracterización geotécnica del subsuelo; al capítulo 5, relativo al diseño de cimentaciones; y al capítulo 7, que se enfoca en la estabilidad de laderas y taludes. Estas secciones son clave para establecer soluciones técnicas adecuadas a los riesgos identificados.\n\nAsimismo, se debe considerar la Normativa NSE-2-2018 de AGIES, específicamente el capítulo 10, que trata sobre las condiciones del terreno. Esta normativa proporciona los lineamientos necesarios para evaluar correctamente los factores del sitio y diseñar obras que respondan de manera efectiva a las amenazas geotécnicas. La implementación de estas disposiciones normativas es esencial para lograr un desarrollo seguro y sostenible del proyecto."]
[4,"El área donde se ubica el proyecto presenta condiciones críticas de inestabilidad geotécnica, debido a un conjunto de factores que incrementan significativamente el riesgo de deslizamientos. Existe un historial documentado de deslizamientos constantes en la zona, lo cual indica un comportamiento activo del terreno ante precipitaciones intensas, saturación del suelo o eventos sísmicos.\n\nEl terreno está clasificado como clase IV, con pendientes pronunciadas superiores al 50 %, lo que por sí solo representa una condición altamente inestable. Además, el tipo de suelo es suelto, poroso y con dendritas, características que disminuyen su capacidad portante y favorecen el movimiento del terreno. A esta situación se suma la ausencia de cobertura vegetal, factor que incrementa la erosión y la escorrentía superficial.\n\nSe observa también la presencia de mantos freáticos en combinación con una deficiente canalización de aguas negras y pluviales, lo cual agrava la saturación del subsuelo y puede acelerar procesos de remoción en masa. La cercanía de la cresta —a menos de 200 metros del sitio— reduce el margen de seguridad natural del proyecto. Además, los mapas de amenazas de CONRED identifican el área como una zona de alto riesgo de deslizamientos, y se han detectado fracturas y grietas orientadas directamente hacia el sitio propuesto para el desarrollo.\n\nEn conjunto, estos factores configuran un escenario de alta peligrosidad para la infraestructura proyectada, por lo que se recomienda una evaluación técnica rigurosa y considerar la reubicación del proyecto en un sitio con menor susceptibilidad a fenómenos geodinámicos.\n",null,"MUY ALTA","Por las características del terreno y el grado de pendiente, el área se considera altamente peligrosa para la ejecución del proyecto, debido a la elevada probabilidad de deslizamientos que podrían ocasionar daños graves o incluso la destrucción total de la infraestructura.","El proyecto debe considerar medidas de mitigación específicas que se adapten a las características particulares del terreno y la obra. Estas medidas son indispensables para minimizar los riesgos derivados de las condiciones geotécnicas y topográficas identificadas en el sitio.\n\nNo obstante, debido a la alta peligrosidad asociada al terreno, se recomienda evaluar la posibilidad de buscar un nuevo sitio para la construcción del proyecto. Esto con el fin de evitar daños graves o la posible destrucción total de la infraestructura y garantizar la seguridad de los usuarios.\n\nEn todos los casos, es fundamental aplicar de manera estricta la Normativa NSE-2-2018 de AGIES, prestando especial atención a los capítulos que abordan la caracterización geotécnica del subsuelo, la cimentación y la estabilidad de laderas y taludes. Estos aspectos son cruciales para un diseño estructural adecuado y seguro.\n\nAdemás, se debe consultar la Normativa NSE-2-2018 de AGIES, especialmente el capítulo 10, que trata sobre las condiciones del terreno. Esta normativa proporciona lineamientos técnicos que complementan los estudios y medidas necesarias para el correcto desarrollo del proyecto en terrenos con riesgo geotécnico."]
[]
[" CRITERIOS PARA DETERMINAR LA PROBABILIDAD DEL NIVEL DE INTENSIDAD \nEN VIENTOS FUERTES (Escala de Beaufort)",null,null,null,"PROBABILIDAD DE DAÑO SEGÚN EL NIVEL DE EXPOSICIÓN AMENAZA VIENTOS FUERTES"]
["TABLA No. 5\nPONDERACIÓN DEL FACTOR DE INTENSIDAD EN DESLIZAMIENTOS"]
["INTENSIDAD","CRITERIO",null,"NIVEL","DAÑO PROBABLE","RECOMENDACIÓN ????"]
[1,"Las velocidades del viento registradas oscilan entre 2 y 19 km/h. La dirección del viento puede observarse a través del humo, que se encuentra inclinado casi en posición horizontal, indicando un flujo estable y constante en esa dirección.",null,"BAJA","La probabilidad de daños se considera leve, debido a que las velocidades del viento no son elevadas y su comportamiento es relativamente estable. Por lo tanto, los impactos sobre la infraestructura y actividades del proyecto serían mínimos o poco significativos.","Se recomienda cumplir con las disposiciones establecidas en la normativa NSE-2-2018 de AGIES, particularmente en lo relacionado con las acciones del viento, según lo especificado en el capítulo 5. Estas recomendaciones contribuirán a diseñar y ejecutar la infraestructura de manera que resista adecuadamente las condiciones de viento previstas, minimizando así posibles daños y asegurando la seguridad del proyecto."]
[2,"En estas condiciones, con velocidades de viento entre 20 y 45 km/h, se observan efectos moderados como el doblamiento de ramas y pequeños movimientos en los árboles. Además, en cuerpos de agua como lagos y mares, la superficie se ondula, generando olas largas y marejadas.\n",null,"MEDIA","Los daños a la infraestructura bajo estas condiciones se consideran bajos, sin que afecten la operatividad normal de las instalaciones. Esto indica que, aunque pueda haber pequeñas afectaciones superficiales o estéticas, la funcionalidad y seguridad del proyecto se mantienen sin interrupciones significativas.","Se recomienda cumplir con las disposiciones establecidas en la normativa NSE-2-18 de AGIES, específicamente en lo indicado en el capítulo 5, que aborda las acciones del viento. Estas directrices son fundamentales para garantizar que el diseño y construcción del proyecto consideren adecuadamente la amenaza eólica, contribuyendo a la seguridad y estabilidad de la infraestructura frente a las condiciones de viento previstas."]
[3,"Velocidades del viento entre 46 y 75 km/h provocan daños visibles en el entorno natural y afectan la movilidad. Es común que se quiebren las copas de los árboles debido a la fuerza del viento, y la circulación de personas se vuelve dificultosa, ya que caminar en línea recta puede requerir mayor esfuerzo por la inclinación y resistencia que genera el viento.\n\nEn zonas costeras, el viento de esta intensidad hace que la espuma del mar se eleve y las olas rompan con mayor fuerza, generando condiciones de oleaje fuerte que pueden afectar la costa y actividades marítimas.",null,"ALTA","Los vientos con estas características pueden ocasionar daños de importancia a la infraestructura, afectando techos, fachadas, estructuras ligeras y sistemas expuestos. Es fundamental implementar medidas de mitigación específicas para proteger los elementos constructivos y garantizar la seguridad de las personas y bienes.","Se deben considerar medidas de mitigación específicas según el tipo de infraestructura, enfocadas en reforzar la resistencia estructural frente a las acciones del viento, minimizando así los posibles daños. Estas medidas pueden incluir el diseño adecuado de anclajes, refuerzos en techos y fachadas, así como la elección de materiales que soporten mejor las cargas de viento.\n\nEs imprescindible observar y cumplir las recomendaciones establecidas en la normativa NSE-2-18 de AGIES, especialmente las indicadas en el capítulo 5, que abordan detalladamente las acciones del viento y las medidas constructivas para garantizar la seguridad y durabilidad de las edificaciones frente a esta amenaza."]
[4,"Los vientos con velocidades entre 76 y más de 100 km/h representan una amenaza severa para la infraestructura, ya que pueden arrancar árboles y causar daños significativos en las estructuras de las construcciones. En zonas costeras, estas condiciones generan olas gigantes y espuma blanca, indicando un ambiente de gran turbulencia.",null,"MUY ALTA","Los vientos con velocidades superiores a 76 km/h pueden provocar daños severos a la infraestructura, incluyendo la destrucción parcial o total de edificaciones, el derribo de árboles y afectaciones importantes a elementos estructurales y no estructurales.\n","Se deberán incluir medidas de mitigación adecuadas según el tipo de infraestructura del proyecto, con el fin de minimizar los daños provocados por vientos con velocidades superiores a 76 km/h. Estas medidas deben enfocarse en fortalecer la resistencia estructural, proteger los elementos vulnerables y garantizar la seguridad de los usuarios.\n\nEs fundamental observar y cumplir con las recomendaciones establecidas en la normativa NSE-2-18 de AGIES, específicamente en el capítulo 5, que aborda las acciones del viento. Esta normativa proporciona lineamientos técnicos para el diseño y construcción que permitan enfrentar de manera adecuada esta amenaza natural."]
[]
[" CRITERIOS PARA DETERMINAR LA PROBABILIDAD DEL NIVEL DE INTENSIDAD \nDE HURACANES",null,null,null,"PROBABILIDAD DE DAÑO SEGÚN EL NIVEL DE EXPOSICIÓN AMENAZA HURACANES"]
["TABLA No. 6\nPONDERACIÓN DEL FACTOR DE INTENSIDAD EN HURACANES"]
["INTENSIDAD","CRITERIO",null,"NIVEL","DAÑO PROBABLE","RECOMENDACIÓN ????"]
[1,"Los vientos con velocidades en el rango de 119 a 153 km/h, según la escala Saffir-Simpson, generan un movimiento constante de las hojas de los árboles y despliegan completamente las banderas, de acuerdo con la escala Beaufort.\n\nEn este contexto, el tirante o profundidad de calado de inundación puede variar entre 0 y 0.6 metros, según referencias como las condiciones observadas en Bangladesh.",null,"BAJA","En esta situación, no se reportan daños estructurales en los edificios; sin embargo, se presentan daños principalmente en arbustos y árboles. Las inundaciones afectan principalmente a las zonas costeras, y las casas construidas en madera podrían sufrir ciertos daños debido a la vulnerabilidad de este tipo de material frente a estas condiciones.","Se recomienda observar cuidadosamente las indicaciones establecidas en la norma NSE-2-2018 (modificada en 2020) de AGIES, específicamente en el capítulo 5, que aborda las acciones del viento, y en el capítulo 10, que trata sobre las condiciones del terreno. Dentro de este último, es especialmente importante considerar el subcapítulo 10.2.5, el cual se refiere a las zonas inundables y erosionables.\n\nAdemás, es fundamental cumplir con las demás normas NSE de AGIES relacionadas con el diseño estructural y geotécnico de los proyectos, para garantizar que las construcciones sean resistentes y adecuadas frente a las condiciones naturales del sitio, minimizando riesgos y daños potenciales."]
[2,"Los vientos en el rango de 154 a 177 km/h, según la escala Saffir-Simpson, provocan movimientos visibles en las ramas grandes de los árboles y dificultan el uso de paraguas, de acuerdo con la escala Beaufort. Asimismo, el tirante o profundidad de inundación puede alcanzar entre 0.6 y 1.0 metro, conforme a los criterios de Bangladesh para zonas inundables.",null,"MEDIA","Los vientos en este rango de velocidad pueden ocasionar daños en techos, puertas y ventanas de estructuras pequeñas. La vegetación también sufrirá daños importantes, y existe la posibilidad de inundaciones tierra adentro. Letreros, toldos y cercas pueden resultar afectados o dañados. En general, el daño potencial en propiedades es moderado y puede afectar el tránsito de vehículos, por lo que es necesario tomar medidas adecuadas para mitigar estos impactos y garantizar la seguridad de la infraestructura y las personas.","Se recomienda observar las disposiciones establecidas en la norma NSE-2-2018 (modificada en 2020) de AGIES, en particular el capítulo 5, que aborda las acciones del viento, y el capítulo 10, relacionado con las condiciones del terreno. Es importante prestar especial atención al subcapítulo 10.2.5, que trata sobre las zonas inundables y erosionables, para garantizar un diseño adecuado y seguro.\n\nAdemás, se sugiere considerar todas las demás normas NSE de AGIES aplicables al diseño y construcción de proyectos, con el fin de asegurar que las obras cumplan con los criterios técnicos necesarios para enfrentar las amenazas naturales y minimizar riesgos para la infraestructura y las personas."]
[3,"Los vientos en el rango de velocidad de 178 a 208 km/h, según la escala Saffir-Simpson, representan una amenaza severa para la infraestructura. En estos casos, se observa que rara vez ocurren, pero cuando lo hacen, pueden arrancar árboles y causar daños significativos en los edificios. Es común que se presenten desperfectos en las partes salientes de las construcciones, como el levantamiento de tejados, lo cual compromete la integridad estructural y la seguridad de las edificaciones.\n\nAdemás, la profundidad de calado o tirante de inundación puede variar entre 1 y 3.5 metros, lo que implica un riesgo considerable para las zonas bajas y costeras, afectando tanto a la infraestructura como a la movilidad y seguridad de las personas en el área afectada.",null,"ALTA","Los vientos con velocidades de 178 a 208 km/h pueden ocasionar daños en algunas estructuras de edificios, afectando especialmente a las partes menos resistentes de las construcciones. Las inundaciones asociadas a estos eventos pueden destruir edificaciones pequeñas, especialmente aquellas con menor resistencia estructural, y extenderse tierra adentro, afectando áreas alejadas de la costa.\n\nAdemás, se observa que los árboles pueden ser arrancados o quebrados, lo que contribuye al bloqueo de caminos debido a la caída de escombros y vegetación. Este escenario también puede provocar cortes y apagones temporales de electricidad, afectando la continuidad de los servicios básicos y complicando las labores de respuesta y recuperación en la zona afectada.","Se recomienda observar cuidadosamente las disposiciones de la norma NSE-2-2018 (modificada en 2020) de AGIES, en particular el capítulo 5, que aborda las acciones del viento, y el capítulo 10, enfocado en las condiciones del terreno. Dentro de este último, es fundamental considerar el subcapítulo 10.2.5, que trata específicamente sobre las zonas inundables y erosionables, para garantizar un adecuado diseño y construcción acorde a las características del sitio.\n\nAsimismo, es indispensable tomar en cuenta las demás normas NSE de AGIES que se relacionan con el diseño estructural y geotécnico de los proyectos, asegurando así la resistencia y seguridad de las edificaciones frente a las amenazas naturales identificadas. Esto permitirá mitigar riesgos y proteger tanto la infraestructura como la seguridad de las personas involucradas."]
[4,"Las condiciones con vientos que superan los 209 km/h, aunque son poco frecuentes, representan un riesgo extremo para cualquier tipo de infraestructura. Estos vientos pueden provocar destrozos generalizados, arrancar árboles y causar daños severos en los edificios. A esto se suma la presencia de inundaciones con tirantes superiores a 3.5 metros, acompañadas de lluvias intensas que pueden prolongarse durante varios días, lo que incrementa aún más el peligro para el proyecto.\n\nDado que el sitio se encuentra en las orillas de cuerpos de agua, estas condiciones elevan significativamente el riesgo de daños graves y ponen en peligro la seguridad de las personas y bienes. Por tanto, es imprescindible que el proyecto considere medidas de mitigación rigurosas y evalúe la posibilidad de reubicar la obra a un lugar menos vulnerable.",null,"MUY ALTA","Las condiciones descritas reflejan un escenario de desastre natural severo, en el cual la destrucción de tejados de viviendas y edificios es común, generando daños significativos a la infraestructura. Las inundaciones afectan gravemente las plantas bajas de las estructuras, provocando daños materiales extensos y la necesidad de evacuaciones masivas en áreas residenciales, lo que implica un impacto social considerable.\n\nLos árboles son arrancados de raíz o quebrados, y algunas viviendas más frágiles pueden ser desplazadas desde sus cimientos, evidenciando la intensidad del fenómeno. Además, los cultivos anuales y permanentes sufren daños severos o totales, lo que afecta la seguridad alimentaria y la economía local. Los cortes y apagones eléctricos pueden extenderse por varios días, complicando aún más la situación de emergencia.\n\nEste tipo de inundaciones, catastróficas en cuanto a profundidad y duración, sumergen el primer piso de las edificaciones y representan un peligro real para la vida humana, lo que subraya la necesidad de implementar medidas preventivas y de mitigación robustas, así como planes de evacuación y respuesta ante emergencias para salvaguardar tanto a las personas como a la infraestructura.","Se recomienda observar estrictamente las disposiciones establecidas en la norma NSE-2-2018 (modificada en 2020) de AGIES, especialmente en lo referido al capítulo 5, que aborda las acciones del viento, y el capítulo 10, que trata las condiciones del terreno. En particular, el subcapítulo 10.2.5 es fundamental, ya que se enfoca en las zonas inundables y erosionables, aspectos críticos para el diseño y ubicación de proyectos en áreas con riesgo de inundación.\n\nAdemás, es imprescindible cumplir con las demás normas NSE de AGIES relacionadas con el diseño estructural y geotécnico de los proyectos, asegurando así que las construcciones sean resilientes frente a las amenazas naturales, como vientos fuertes e inundaciones. El cumplimiento de estas normativas contribuye a minimizar los daños potenciales, proteger la integridad de las edificaciones y garantizar la seguridad de las personas que las ocupan o transitan en sus proximidades."]
[]
[]
[" CRITERIOS PARA DETERMINAR LA PROBABILIDAD DEL NIVEL DE INTENSIDAD \nDE OTRAS AMENAZAS",null,null,null,"PROBABILIDAD DE DAÑO SEGÚN EL NIVEL DE EXPOSICIÓN OTRAS AMENAZAS:___________________________"]
["TABLA No. 7\nPONDERACIÓN DEL FACTOR DE INTENSIDAD OTRAS AMENAZAS"]
["INTENSIDAD","CRITERIO",null,"NIVEL","DAÑO PROBABLE","RECOMENDACIÓN ????"]
[1,"No se prevén daños significativos a la infraestructura, manteniéndose la integridad estructural sin afectaciones relevantes. Las pérdidas que puedan generarse son relativamente sin importancia, sin impacto considerable en los recursos o activos del proyecto. Además, no se anticipa la interrupción de los servicios básicos, garantizando la continuidad operativa y funcionalidad del área afectada.",null,"BAJA","No se esperan daños significativos a la infraestructura, por lo que la integridad de las construcciones y equipos permanecerá intacta. Las pérdidas que pudieran ocurrir son relativamente sin importancia y no afectan de manera relevante el funcionamiento del proyecto. Asimismo, no se prevé ninguna interrupción en los servicios básicos, asegurando la continuidad de las operaciones habituales.","Se recomienda que los diseños estructurales y constructivos se ajusten estrictamente a las normas de seguridad establecidas en las normativas NSE de AGIES, garantizando así la resistencia y estabilidad de las edificaciones ante eventuales riesgos. Además, es fundamental considerar las normas ISO relacionadas con la calidad de los materiales empleados, para asegurar la durabilidad y el desempeño óptimo de los elementos constructivos, minimizando así posibles daños y manteniendo la integridad del proyecto a largo plazo."]
[2,"Se registran daños leves en la infraestructura, pérdidas de baja magnitud y una interrupción momentánea de los servicios básicos.",null,"MEDIA","Se presentan daños leves en la infraestructura, pérdidas de baja consideración y una interrupción momentánea en los servicios básicos.","Se recomienda que los diseños estructurales y constructivos se ajusten estrictamente a las normas de seguridad establecidas en las normativas NSE de AGIES, garantizando así la resistencia y estabilidad de las edificaciones ante eventuales riesgos. Además, es fundamental considerar las normas ISO relacionadas con la calidad de los materiales empleados, para asegurar la durabilidad y el desempeño óptimo de los elementos constructivos, minimizando así posibles daños y manteniendo la integridad del proyecto a largo plazo."]
[3,"Daños severos en la infraestructura, con pérdidas significativas y una interrupción parcial en los servicios básicos.",null,"ALTA","Se presentan daños severos en la infraestructura, pérdidas considerables y una interrupción parcial de los servicios básicos.","Se recomienda que los diseños estructurales y constructivos se ajusten estrictamente a las normas de seguridad establecidas en las normativas NSE de AGIES, garantizando así la resistencia y estabilidad de las edificaciones ante eventuales riesgos. Además, es fundamental considerar las normas ISO relacionadas con la calidad de los materiales empleados, para asegurar la durabilidad y el desempeño óptimo de los elementos constructivos, minimizando así posibles daños y manteniendo la integridad del proyecto a largo plazo."]
[4,"Se observa el colapso de algunas construcciones, pérdidas de gran magnitud y una interrupción prolongada de los servicios básicos.",null,"MUY ALTA","Se presentan colapsos en algunas construcciones, pérdidas significativas y una interrupción prolongada de los servicios básicos.","Se recomienda que los diseños estructurales y constructivos se ajusten estrictamente a las normas de seguridad establecidas en las normativas NSE de AGIES, garantizando así la resistencia y estabilidad de las edificaciones ante eventuales riesgos. Además, es fundamental considerar las normas ISO relacionadas con la calidad de los materiales empleados, para asegurar la durabilidad y el desempeño óptimo de los elementos constructivos, minimizando así posibles daños y manteniendo la integridad del proyecto a largo plazo."]

{"sheet":"VOLCANICA","index":7,"n_rows":43,"n_cols":3,"rows_kept":43,"cut":false,"hidden":true,"merged":[[42,0,42,2],[0,0,0,2],[1,0,1,2],[23,0,23,1],[3,0,3,2],[4,0,4,2],[5,0,5,2],[7,0,7,2],[6,0,6,2],[40,0,40,2],[21,0,21,2],[8,0,8,2],[9,0,9,1],[13,0,13,1],[12,0,12,1],[11,0,11,1],[39,0,39,2],[10,0,10,1],[30,1,31,1],[22,0,22,1],[24,0,24,1],[25,0,25,1],[26,0,26,1]]}
["MODULO No. 2   ANALISIS DE AMENAZA VOLCANICA"]
[]
["INSTRUCCIONES DE LLENADO:"]
["PROCEDER A LLENAR Y DE ACUERDO AL PUNTAJE DE LOS CRITERIOS IDENTIFICADOS, EL FACTOR DE INTENSIDAD, ASI COMO EL FACTOR DE FRECUENCIA DE LA AMENAZA EN ANALISIS. "]
["1. PONDERACION DEL FACTOR INTENSIDAD:  Se procede de acuerdo al puntaje de la tabla de \"Ponderación del factor intensidad\" a calificar en el cuadro de \"INTENSIDAD \" y de acuerdo a los puntajes según los criterios identificados en el sitio del proyecto (En el cuadro de ponderación del factor intensidad, el cual esta diseñado con la función de \"validación de datos\" por lo que solo aceptara los números del uno al cuatro, de lo contrario dará error)"]
["2. PONDERACION DEL FACTOR FRECUENCIA:  Se procede de acuerdo al puntaje de la tabla de \"Ponderación del factor frecuencia\" a calificar en el cuadro de \"FRECUENCIA\" y de acuerdo a los criterios identificados en el sitio del proyecto (En el cuadro de valoración de frecuencia, esta diseñado con \"validación de datos\" el cual esta diseñado con la función de \"validación de datos\" por lo que solo aceptara los números del uno al cuatro, de lo contrario dará error)\n"]
["3. La protección a la exposición de las amenazas de: flujos piroclásticos, flujos de lava, lahares y bombas incandescentes, en general no son viables, por lo que al detectar el riesgo a una de estas amenazas (intensidad, frecuencia, cercanía), se deberá complementar el resultado de este análisis, con las restricciones de ocupación que son emitidas por autoridad competente."]
[]
["PONDERACION DEL FACTOR INTENSIDAD"]
["De acuerdo a los siguientes criterios relevantes (uno o varios), se coloca el puntaje identificado en la tabla  \"valoración intensidad sitio del proyecto\"",null,"puntaje"]
["El sitio del proyecto se encuentra a más de 50 kilómetros de distancia de un edificio volcánico, y aunque eventualmente se presenta caída de ceniza, esta es leve, con un espesor que no supera el medio centímetro.",null,1]
["El sitio del proyecto se ubica aproximadamente a 30 kilómetros de un edificio volcánico, en una zona donde eventualmente se registra caída de TEFRA, específicamente arena volcánica, con un espesor de lámina de alrededor de un centímetro, en un contexto de baja actividad volcánica.",null,2]
["El sitio del proyecto se encuentra a menos de 30 kilómetros de un edificio volcánico con antecedentes de actividad, en una zona con historial de caída de TEFRA, específicamente arena volcánica con un espesor de lámina superior a un centímetro, y está ubicado en o cerca de quebradas que se originan en dicho edificio volcánico.",null,3]
["El sitio del proyecto se localiza a una distancia igual o menor a 20 kilómetros de un edificio volcánico con historial de frecuente actividad, incluyendo caída recurrente de TEFRA como arena volcánica y lapilli, la cual, cuando ocurre, supera los tres centímetros de espesor y presenta partículas mayores a 10 milímetros. Además, existen antecedentes de flujos de lava, lahares y flujos piroclásticos en las cercanías, y el área del proyecto se encuentra ubicada en, o próxima a, quebradas que se originan en dicho edificio volcánico.",null,4]
[]
[]
[]
[null,"INTENSIDAD"]
[null,"Ingresar en esta casilla el puntaje de acuerdo a los criterios identificados y según la tabla del factor de intensidad de la amenaza "]
[null,1]
[]
["PONDERACION DEL FACTOR FRECUENCIA"]
["De acuerdo a los criterios de frecuencia en que se presenta la amenaza se coloca el puntaje identificado en la tabla  \"frecuencia\"",null,"puntaje"]
["El evento se presento hace mas de (20) años",null,1]
["El evento se presento en los últimos 10 a 19 años",null,2]
["El evento se presento en los últimos 5 a 9 años",null,3]
["El evento se presenta anualmente",null,4]
[]
[]
[null,"FRECUENCIA "]
[null,"Calificación según la ponderación del factor de frecuencia de la amenaza"]
[]
[null,3]
[]
[]
[]
[]
[]
[]
[]
[]
[]
["CONTINUAR CON EL LLENADO DE LAS AMENAZAS  IDENTIFICADAS Y QUE PODRIAN AFECTAR AL PROYECTO PROPUESTO."]

{"sheet":"INUNDACION","index":8,"n_rows":33,"n_cols":3,"rows_kept":33,"cut":false,"hidden":true,"merged":[[36,0,36,2],[34,0,34,2],[12,0,12,1],[7,0,7,2],[18,0,18,2],[19,0,19,1],[20,0,20,1],[8,0,8,1],[21,0,21,1],[22,0,22,1],[23,0,23,1],[33,0,33,2],[0,0,0,2],[24,0,25,2],[3,0,3,2],[6,0,6,2],[9,0,9,1],[10,0,10,1],[11,0,11,1],[2,0,2,2],[1,0,1,2],[4,0,4,2],[5,0,5,2]]}
["MODULO No. 3   ANALISIS DE AMENAZA INUNDACION"]
[]
["INSTRUCCIONES DE LLENADO:"]
["PROCEDER A LLENAR Y DE ACUERDO AL PUNTAJE DE LOS CRITERIOS IDENTIFICADOS, EL FACTOR DE INTENSIDAD, ASI COMO EL FACTOR DE FRECUENCIA DE LA AMENAZA EN ANALISIS. "]
["1. PONDERACION DEL FACTOR INTENSIDAD:  Se procede de acuerdo al puntaje de la tabla de \"Ponderación del factor intensidad\" a calificar en el cuadro de \"INTENSIDAD \" y de acuerdo a los puntajes según los criterios identificados en el sitio del proyecto (En el cuadro de ponderación del factor intensidad, el cual esta diseñado con la función de \"validación de datos\" por lo que solo aceptara los números del uno al cuatro, de lo contrario dará error)"]
["2. PONDERACION DEL FACTOR FRECUENCIA:  Se procede de acuerdo al puntaje de la tabla de \"Ponderación del factor frecuencia\" a calificar en el cuadro de \"FRECUENCIA\" y de acuerdo a los criterios identificados en el sitio del proyecto (En el cuadro de valoración de frecuencia, esta diseñado con \"validación de datos\" el cual esta diseñado con la función de \"validación de datos\" por lo que solo aceptara los números del uno al cuatro, de lo contrario dará error)\n"]
[]
["PONDERACION DEL FACTOR INTENSIDAD"]
["De acuerdo a los siguientes criterios relevantes (uno o varios), se coloca el puntaje identificado en la tabla  \"valoración intensidad sitio del proyecto\"",null,"puntaje"]
["El sitio del proyecto se encuentra en un terreno elevado, sin cuerpos de agua o ríos cercanos, y no presenta antecedentes de inundación, o cuando estas ocurren, el nivel del agua no supera los 0.6 metros de altura; además, no se registra interrupción de los servicios.",null,1]
["El sitio del proyecto presenta antecedentes históricos de inundaciones eventuales, con un tirante de agua que ha oscilado entre 0.6 y 1 metro de altura, alcanzando en algunas ocasiones hasta cincuenta centímetros, y con una duración del espejo de agua superior a las 24 horas; estas condiciones han generado daños moderados a la infraestructura y afectaciones al tránsito vehicular, aunque no se ha registrado interrupción de los servicios.",null,2]
["El sitio del proyecto se encuentra en una zona donde el tirante de inundación puede alcanzar entre 1 y 3.5 metros de altura, provocando colapsos parciales en la infraestructura, pérdidas considerables, interrupciones parciales en los servicios y afectaciones significativas al tránsito de las personas.",null,3]
["El sitio del proyecto se localiza en un área donde el tirante de inundación puede superar los 3.5 metros de altura, llegando a sumergir el primer piso del edificio, lo que representa un peligro para la vida humana, además de causar la interrupción total de los servicios.",null,4]
[]
[null,"INTENSIDAD"]
[null,"Colocar en esta casilla el puntaje de acuerdo a los criterios identificados y según la tabla del factor de intensidad de la amenaza "]
[null,4]
[]
["PONDERACION DEL FACTOR FRECUENCIA"]
["De acuerdo a los criterios de frecuencia en que se presenta la amenaza se coloca el puntaje identificado en la tabla  \"frecuencia\"",null,"puntaje"]
["El evento se presento hace mas de (20) años",null,1]
["El evento se presento en los últimos 10 a 19 años",null,2]
["El evento se presento en los últimos 5 a 9 años",null,3]
["El evento se presenta anualmente",null,4]
[]
[]
[null,"FRECUENCIA"]
[null,"Calificación según la ponderación del factor de frecuencia de la amenaza"]
[null,3]
[null,1]
[]
[null,4]
[null,2]

{"sheet":"Usuarios","index":9,"n_rows":4,"n_cols":7,"rows_kept":4,"cut":false,"hidden":true,"merged":[]}
[]
["Ricardo Avila",1111111111111,"Dev","Insti","Profe",123,123]
["Diego Marroquín",1234567890123,"Formulador de proyectos","Segeplan","Ingeniero Civil",233223,123]
["Wilder Siguantay",2618007790101,"Ingeniero","Segeplan","Ingeniero en sistemas",null,123]

{"sheet":"HURACANES","index":10,"n_rows":32,"n_cols":3,"rows_kept":32,"cut":false,"hidden":true,"merged":[[22,0,22,1],[41,0,41,2],[23,0,23,1],[24,0,24,1],[25,0,25,1],[26,0,26,1],[35,0,35,2],[34,0,34,2],[37,0,37,2],[0,0,0,2],[21,0,21,2],[2,0,2,2],[3,0,3,2],[4,0,4,2],[5,0,5,2],[6,0,6,2],[7,0,7,2],[8,0,8,2],[9,0,9,1],[10,0,10,1],[11,0,11,1],[12,0,12,1],[13,0,13,1]]}
["MODULO No. 5   ANALISIS DE AMENAZA HURACANES"]
[]
[]
["INSTRUCCIONES DE LLENADO:"]
["PROCEDER A LLENAR Y DE ACUERDO AL PUNTAJE DE LOS CRITERIOS IDENTIFICADOS, EL FACTOR DE INTENSIDAD, ASI COMO EL FACTOR DE FRECUENCIA DE LA AMENAZA EN ANALISIS. "]
["1. PONDERACION DEL FACTOR INTENSIDAD:  Se procede de acuerdo al puntaje de la tabla de \"Ponderación del factor intensidad\" a calificar en el cuadro de \"INTENSIDAD \" y de acuerdo a los puntajes según los criterios identificados en el sitio del proyecto (En el cuadro de ponderación del factor intensidad, el cual esta diseñado con la función de \"validación de datos\" por lo que solo aceptara los números del uno al cuatro, de lo contrario dará error)"]
["2. PONDERACION DEL FACTOR FRECUENCIA:  Se procede de acuerdo al puntaje de la tabla de \"Ponderación del factor frecuencia\" a calificar en el cuadro de \"FRECUENCIA\" y de acuerdo a los criterios identificados en el sitio del proyecto (En el cuadro de valoración de frecuencia, esta diseñado con \"validación de datos\" el cual esta diseñado con la función de \"validación de datos\" por lo que solo aceptara los números del uno al cuatro, de lo contrario dará error)\n"]
[]
["PONDERACION DEL FACTOR INTENSIDAD"]
["De acuerdo a los siguientes criterios relevantes (uno o varios), se coloca el puntaje identificado en la tabla  \"valoración intensidad sitio del proyecto\"",null,"puntaje"]
["El sitio del proyecto se encuentra en una zona con velocidades de viento en el rango de 119 a 153 kilómetros por hora, según la escala Saffir-Simpson; bajo estas condiciones, las hojas de los árboles se agitan constantemente y las banderas se despliegan, de acuerdo con la escala de Beaufort, y la profundidad de calado o tirante de inundación observada es de entre 0 y 0.6 metros, conforme al modelo de clasificación de Bangladesh.",null,1]
["El sitio del proyecto presenta un rango de velocidad de vientos entre 154 y 177 kilómetros por hora, según la escala Saffir-Simpson; bajo estas condiciones, se mueven las ramas grandes de los árboles y el uso de paraguas resulta difícil, conforme a la escala Beaufort, mientras que la profundidad de calado o tirante de inundación varía entre 0.6 y 1.00 metros, según el modelo de clasificación de Bangladesh.",null,2]
["El sitio del proyecto está expuesto a vientos con velocidades que oscilan entre 178 y 208 kilómetros por hora, según la escala Saffir-Simpson; bajo estas condiciones, que se observan raramente, se pueden arrancar árboles y ocasionar daños considerables en los edificios, incluyendo desperfectos en las partes salientes y el levantamiento de tejados, de acuerdo con la escala Beaufort, mientras que la profundidad de calado o tirante de inundación varía entre 1 y 3.5 metros, según el modelo de clasificación de Bangladesh.",null,3]
["El sitio del proyecto está expuesto a vientos con velocidades superiores a 209 kilómetros por hora, según la escala Saffir-Simpson, condiciones que se observan muy rara vez pero que ocasionan destrozos en todas partes, arrancan árboles y causan daños considerables en los edificios, conforme a la escala Beaufort; además, la profundidad de calado o tirante de inundación supera los 3.5 metros según el modelo de Bangladesh, presentando lluvias intensas que pueden durar varios días, y se encuentra ubicado a orillas de cuerpos de agua.",null,4]
[]
[]
[null,"INTENSIDAD"]
[null,"Calificación según la ponderación del factor de intensidad de la amenaza"]
[null,3]
[]
[]
["PONDERACION DEL FACTOR FRECUENCIA"]
["De acuerdo a los criterios de frecuencia en que se presenta la amenaza se coloca el puntaje identificado en la tabla  \"frecuencia\"",null,"puntaje"]
["El evento se presento hace mas de (20) años",null,1]
["El evento se presento en los últimos 10 a 19 años",null,2]
["El evento se presento en los últimos 5 a 9 años",null,3]
["El evento se presenta anualmente",null,4]
[]
[]
[null,"FRECUENCIA"]
[null,"Calificación según la ponderación del factor de frecuencia de la amenaza"]
[null,3]

{"sheet":"CLIMATICO","index":11,"n_rows":33,"n_cols":3,"rows_kept":33,"cut":false,"hidden":true,"merged":[[23,0,23,1],[24,0,25,2],[33,0,33,2],[34,0,34,2],[36,0,36,2],[22,0,22,1],[6,0,6,2],[7,0,7,2],[8,0,8,1],[9,0,9,1],[10,0,10,1],[11,0,11,1],[12,0,12,1],[18,0,18,2],[19,0,19,1],[20,0,20,1],[21,0,21,1],[5,0,5,2],[0,0,0,2],[1,0,1,2],[2,0,2,2],[3,0,3,2],[4,0,4,2]]}
["MODULO No. 3   ANALISIS DE AMENAZA INUNDACION"]
[]
["INSTRUCCIONES DE LLENADO:"]
["PROCEDER A LLENAR Y DE ACUERDO AL PUNTAJE DE LOS CRITERIOS IDENTIFICADOS, EL FACTOR DE INTENSIDAD, ASI COMO EL FACTOR DE FRECUENCIA DE LA AMENAZA EN ANALISIS. "]
["1. PONDERACION DEL FACTOR INTENSIDAD:  Se procede de acuerdo al puntaje de la tabla de \"Ponderación del factor intensidad\" a calificar en el cuadro de \"INTENSIDAD \" y de acuerdo a los puntajes según los criterios identificados en el sitio del proyecto (En el cuadro de ponderación del factor intensidad, el cual esta diseñado con la función de \"validación de datos\" por lo que solo aceptara los números del uno al cuatro, de lo contrario dará error)"]
["2. PONDERACION DEL FACTOR FRECUENCIA:  Se procede de acuerdo al puntaje de la tabla de \"Ponderación del factor frecuencia\" a calificar en el cuadro de \"FRECUENCIA\" y de acuerdo a los criterios identificados en el sitio del proyecto (En el cuadro de valoración de frecuencia, esta diseñado con \"validación de datos\" el cual esta diseñado con la función de \"validación de datos\" por lo que solo aceptara los números del uno al cuatro, de lo contrario dará error)\n"]
[]
["PONDERACION DEL FACTOR INTENSIDAD"]
["De acuerdo a los siguientes criterios relevantes (uno o varios), se coloca el puntaje identificado en la tabla  \"valoración intensidad sitio del proyecto\"",null,"puntaje"]
["El sitio del proyecto se encuentra en terreno elevado, sin ríos ni cuerpos de agua cercanos, y no presenta antecedentes de inundación o, en caso de ocurrir, el nivel del agua oscila entre 0 y 0.6 metros de altura, sin que se registre interrupción de los servicios.",null,1]
["El sitio del proyecto presenta antecedentes históricos de inundaciones eventuales, con un tirante de agua que varía entre 0.6 y 1 metro de altura, habiendo alcanzado en ocasiones hasta cincuenta centímetros; la duración del espejo de agua producto de estas inundaciones ha superado las 24 horas, ocasionando daños moderados a la infraestructura y afectando el tránsito de vehículos, aunque sin interrupción de los servicios.\n\n\n\n\n\n\n\n",null,2]
["El sitio del proyecto se encuentra en una zona donde el tirante de la inundación puede alcanzar entre 1 y 3.5 metros de altura, provocando colapsos parciales en la infraestructura, pérdidas considerables, interrupciones parciales en los servicios y afectaciones al tránsito de las personas.",null,3]
[" El tirante de la inundación puede superar los 3.5 metros de altura, sumergiendo el primer piso del edificio, lo que representa un peligro para la vida humana y provoca la interrupción de los servicios.",null,4]
[]
[null,"INTENSIDAD"]
[null,"Colocar en esta casilla el puntaje de acuerdo a los criterios identificados y según la tabla del factor de intensidad de la amenaza "]
[null,3]
[]
["PONDERACION DEL FACTOR FRECUENCIA"]
["De acuerdo a los criterios de frecuencia en que se presenta la amenaza se coloca el puntaje identificado en la tabla  \"frecuencia\"",null,"puntaje"]
["El evento se presento hace mas de (20) años",null,1]
["El evento se presento en los últimos 10 a 19 años",null,2]
["El evento se presento en los últimos 5 a 9 años",null,3]
["El evento se presenta anualmente",null,4]
[]
[]
[null,"FRECUENCIA"]
[null,"Calificación según la ponderación del factor de frecuencia de la amenaza"]
[null,3]
[]
[]
[]
[null,1]

{"sheet":"DESLIZAMIENTOS","index":12,"n_rows":31,"n_cols":3,"rows_kept":31,"cut":false,"hidden":true,"merged":[[25,0,25,1],[37,0,37,2],[38,0,38,2],[35,0,35,2],[40,0,40,2],[39,0,39,2],[33,0,33,2],[34,0,34,2],[36,0,36,2],[13,0,13,1],[21,0,21,1],[22,0,22,1],[23,0,23,1],[24,0,24,1],[20,0,20,2],[0,0,0,2],[2,0,2,2],[3,0,3,2],[4,0,4,2],[5,0,5,2],[11,0,11,1],[12,0,12,1],[6,0,6,2],[7,0,7,2],[8,0,8,2],[9,0,9,1],[10,0,10,1]]}
["MODULO No. 4   ANALISIS DE AMENAZA DESLIZAMIENTO /DERRUMBE"]
[]
[]
["INSTRUCCIONES DE LLENADO:"]
["PROCEDER A LLENAR Y DE ACUERDO AL PUNTAJE DE LOS CRITERIOS IDENTIFICADOS, EL FACTOR DE INTENSIDAD, ASI COMO EL FACTOR DE FRECUENCIA DE LA AMENAZA EN ANALISIS. "]
["1. PONDERACION DEL FACTOR INTENSIDAD:  Se procede de acuerdo al puntaje de la tabla de \"Ponderación del factor intensidad\" a calificar en el cuadro de \"INTENSIDAD \" y de acuerdo a los puntajes según los criterios identificados en el sitio del proyecto (En el cuadro de ponderación del factor intensidad, el cual esta diseñado con la función de \"validación de datos\" por lo que solo aceptara los números del uno al cuatro, de lo contrario dará error)"]
["2. PONDERACION DEL FACTOR FRECUENCIA:  Se procede de acuerdo al puntaje de la tabla de \"Ponderación del factor frecuencia\" a calificar en el cuadro de \"FRECUENCIA\" y de acuerdo a los criterios identificados en el sitio del proyecto (En el cuadro de valoración de frecuencia, esta diseñado con \"validación de datos\" el cual esta diseñado con la función de \"validación de datos\" por lo que solo aceptara los números del uno al cuatro, de lo contrario dará error)\n"]
[]
["PONDERACION DEL FACTOR INTENSIDAD"]
["De acuerdo a los siguientes criterios relevantes (uno o varios), se coloca el puntaje identificado en la tabla  \"valoración intensidad sitio del proyecto\"",null,"puntaje"]
["El sitio del proyecto no presenta historial de deslizamientos, se encuentra en terreno clase I, plano o con pendientes de 0 a 12 %, con suelo compacto y/o rocoso, y cuenta con vegetación forestal; además, no se observan mantos freáticos, la distancia desde la cresta hasta el proyecto es de 500 metros o más, y no existen fracturas o grietas que puedan afectar el área.",null,1]
["El sitio del proyecto no presenta historial de deslizamientos, está ubicado en terreno clase II con pendientes aproximadas entre 12 y 25 %, posee suelo poroso y/o con dendritas, carece de cobertura vegetal y presenta mantos freáticos; además, la distancia desde la cresta al proyecto es de 300 a 400 metros, existen zonas probables de deslizamiento según mapas de Conred, y se identifican fracturas o grietas orientadas hacia el sitio del proyecto.",null,2]
["El sitio del proyecto cuenta con antecedentes de deslizamientos y se encuentra en terreno clase III, con pendientes aproximadas entre 25 y 50 %, suelo suelto, poroso y/o con dendritas, sin cobertura vegetal y con presencia de mantos freáticos; la distancia desde la cresta al proyecto varía entre 200 y 400 metros, existen zonas probables de deslizamiento según los mapas de Conred, y las fracturas o grietas están orientadas hacia el sitio del proyecto.",null,3]
["El sitio del proyecto presenta un historial de constantes deslizamientos y se ubica en terreno clase IV con pendientes de aproximadamente 50 % o más, con suelo suelto, poroso y/o con dendritas, sin cobertura vegetal y con presencia de mantos freáticos, además de falta de canalización adecuada de aguas negras y lluvias; la distancia desde la cresta al proyecto es de 200 metros o menos, correspondiendo a zonas de alto riesgo de deslizamiento según mapas de Conred, y las fracturas o grietas están orientadas hacia el sitio del proyecto.\n",null,4]
[]
[null,"INTENSIDAD"]
[null,"Calificación según la ponderación del factor de intensidad de la amenaza"]
[null,4]
[]
[]
["PONDERACION DEL FACTOR FRECUENCIA"]
["De acuerdo a los criterios de frecuencia en que se presenta la amenaza se coloca el puntaje identificado en la tabla  \"frecuencia\"",null,"puntaje"]
["El evento se presento hace mas de (20) años",null,1]
["El evento se presento en los últimos 10 a 19 años",null,2]
["El evento se presento en los últimos 5 a 9 años",null,3]
["El evento se presenta anualmente",null,4]
[]
[]
[null,"FRECUENCIA"]
[null,"Calificación según la ponderación del factor de frecuencia de la amenaza"]
[null,3]

{"sheet":"SISMOS","index":13,"n_rows":20,"n_cols":10,"rows_kept":20,"cut":false,"hidden":true,"merged":[[19,9,19,12],[0,0,0,2],[3,0,3,2],[4,0,4,2],[2,0,2,2],[1,0,1,2],[19,0,19,2],[5,0,5,2],[12,0,12,2],[13,0,13,2]]}
["MODULO No. 6   ANALISIS DE AMENAZA SISMICA"]
[]
["La amenaza sísmica se calcula, tomando datos referenciales del índice de sismicidad por municipio y de acuerdo a los últimos resultados del estudio y que están en la norma de NSE-2-2020, de la Asociación Guatemalteca de Ingeniería Estructural-AGIES."]
["1. INDICE DE SISMICIDAD: índice de sismicidad (Io) y parámetros de sismo extremo con Pe_2% en 50 años (norma AGIES DSE 2.01 2020) Demandas estructurales y condiciones de sitio.\n-Se define como \"sismo extremo\" al que tiene un 2% de probabilidad nominal de ser excedido en un período de 50 años. Este sismo es la base\npara la zonificación sísmica\n-Incide sobre el nivel de protección sísmica que se hace necesario para diseñar la obra o edificación e incide en la selección del espectro sísmico de\ndiseño.\n-Para efecto de esta norma, el territorio de Guatemala se divide en macrozonas de amenaza sísmica caracterizadas por su índice de sismicidad que varía desde Io = 2 a Io = 4. (información tomada de la norma NSE-2-2020, AGIES)\n\nEl índice de sismicidad en esta herramienta se genera automáticamente de acuerdo al municipio seleccionado, datos tomados de la norma NSE-2-2020  de AGIES.\n\n\n"]
["2.NIVEL DE LA AMENAZA: En función del índice de sismicidad (AGIES), y de acuerdo valoraciones semánticas propias de la Segeplan, se agruparon los índices definidos subjetivamente el nivel de la amenaza sísmica de acuerdo al índice sísmico, siendo este  un indicativo de valoración dado y de acuerdo a los niveles de amenaza manejados en esta herramienta, sin embargo para el detalle técnico y la información de los índices de sismicidad para los cálculos estructurales de la obra, se deberá de recurrir a la NSE-2-2020 de AGIES."]
[]
[]
[null,"INDICE DE SISMICIDAD"]
[null," (De acuerdo a la clasificación del índice de sismicidad por municipio AGIES  NSE-2-2020)"]
[null,{"$f":"INDEX(TABLA_INDICE_SISMICIDAD_EJEMPLO!B2:B341,MATCH('DATOS GENERALES'!C16,TABLA_INDICE_SISMICIDAD_EJEMPLO!A2:A341,0))","v":4.0999999999999996}]
[]
[]
["NIVEL DE LA AMENAZAS SISMICA"]
[" El nivel de amenaza se indica en los resultados finales de este análisis, y esta definido de acuerdo a la clasificación universal, criterios según la percepción realizada por Segeplan tomando como base los rangos del índice sismicidad de AGIES, este nivel es referencial, el valor de los índice de sismicidad, es el dato que debe de tomarse en cuenta para los cálculos estructurales y diseño del proyecto, de acuerdo a las normas de AGIES."]
[]
[]
[]
[]
[]
[null,null,null,null,null,null,null,null,null,"SE TOMARAN LOS DATOS QUE PROPORCIONA LA NRD 2-10 RESPECTO A LA AMENAZA DE VIENTOS FUERTES POR RAZONES DE DISEÑO Y SE CONSIDERA QUE ESTA AMENAZA Y LA DE INUNDACION SON ASOCIADAS (CONSECUENCIA) A LAS DE HURACANES Y TORMENTAS TROPICALES."]

{"sheet":"VIENTOS","index":14,"n_rows":39,"n_cols":3,"rows_kept":39,"cut":false,"hidden":true,"merged":[[2,0,2,2],[18,0,18,2],[38,0,38,2],[37,0,37,2],[0,0,0,2],[1,0,1,2],[4,0,4,2],[3,0,3,2],[12,0,12,2],[13,0,13,2]]}
["MODULO No. 7  ANALISIS DE AMENAZA VIENTOS FUERTES"]
["INSTRUCCIONES DE LLENADO:"]
["Las  velocidades del viento en ciertas épocas del año por municipio,  se toman de datos referenciales de las velocidades de los vientos, de acuerdo a los resultados de la norma de NSE-2-2020, de la Asociación Guatemalteca de Ingeniería Estructural-AGIES.\n"]
["1. Para fines de infraestructura que puede ser susceptible de daños por vientos fuertes, tomar en cuenta en la elaboración de los diseños y los cálculos estructurales, la norma NSE2-2020 de AGIES."]
["2. Se recomienda complementar la información, con mapas de vientos del INSIVUMEH y la información de los actores locales."]
[]
[]
[null,"INTENSIDAD DEL VIENTO EN KM / HORA, "]
[null,"(De acuerdo a la clasificación de las zonas de viento por municipio AGIES  NSE-2-2020)"]
[null,{"$f":"INDEX(TABLA_INDICE_SISMICIDAD_EJEMPLO!C2:C341,MATCH('DATOS GENERALES'!C16,TABLA_INDICE_SISMICIDAD_EJEMPLO!A2:A341,0))","v":100}]
[]
[]
["NIVEL DE LA AMENAZAS  "]
[" El nivel de amenaza se indica en los resultados finales de este análisis, y esta definido de acuerdo a la clasificación universal, criterios según la percepción realizada por la sajelan tomando como base los rangos de velocidades de los vientos máximos, este nivel es referencial, el valor de las velocidades de viento por municipio, es el dato que debe de tomarse en cuenta para los cálculos estructurales y diseño del proyecto, de acuerdo a las normas de AGIES."]
[]
[null,null,"Sacapulas"]
[]
[]
["(clasificación según criterios definidos por la sajelan, y en base a los rangos de datos de velocidades de vientos de AGIES, el nivel es únicamente referencial, el valor de las velocidades del viento son los que deben de tomarse para los cálculos del proyecto.  Se recomienda complementar este dato con otros datos proporcionados por instituciones especializados en el tema."]
[]
[]
[]
[]
[]
[]
[]
[]
[]
[]
[]
[]
[]
[]
[]
[]
[]
[]
[]
["CONTINUAR CON EL LLENADO DE LA INFORMACION DE LAS AMENAZAS RESTANTES IDENTIFICADAS.\n\" EN EL MODULO RESULTADOS FINALES, SE MOSTRARAN LOS DATOS OBTENIDOS DEL ANALISIS \""]

{"sheet":"OTRAS#1","index":15,"n_rows":31,"n_cols":3,"rows_kept":31,"cut":false,"hidden":true,"merged":[[25,0,25,1],[33,0,33,2],[37,0,37,2],[0,0,0,1],[20,0,20,2],[21,0,21,1],[22,0,22,1],[23,0,23,1],[24,0,24,1],[9,0,9,1],[10,0,10,1],[11,0,11,1],[12,0,12,1],[13,0,13,1],[1,0,1,2],[2,0,2,2],[8,0,8,2],[3,0,3,2],[4,0,4,2],[5,0,5,2],[6,0,6,2],[7,0,7,2]]}
["MODULO No. 8   OTRAS AMENAZAS (identificarla)",null,"X"]
[]
[]
["INSTRUCCIONES DE LLENADO:"]
["PROCEDER A LLENAR Y DE ACUERDO AL PUNTAJE DE LOS CRITERIOS IDENTIFICADOS, EL FACTOR DE INTENSIDAD, ASI COMO EL FACTOR DE FRECUENCIA DE LA AMENAZA EN ANALISIS. "]
["1. PONDERACION DEL FACTOR INTENSIDAD:  Se procede de acuerdo al puntaje de la tabla de \"Ponderación del factor intensidad\" a calificar en el cuadro de \"INTENSIDAD \" y de acuerdo a los puntajes según los criterios identificados en el sitio del proyecto (En el cuadro de ponderación del factor intensidad, el cual esta diseñado con la función de \"validación de datos\" por lo que solo aceptara los números del uno al cuatro, de lo contrario dará error)"]
["2. PONDERACION DEL FACTOR FRECUENCIA:  Se procede de acuerdo al puntaje de la tabla de \"Ponderación del factor frecuencia\" a calificar en el cuadro de \"FRECUENCIA\" y de acuerdo a los criterios identificados en el sitio del proyecto (En el cuadro de valoración de frecuencia, esta diseñado con \"validación de datos\" el cual esta diseñado con la función de \"validación de datos\" por lo que solo aceptara los números del uno al cuatro, de lo contrario dará error)\n"]
[]
["PONDERACION DEL FACTOR INTENSIDAD"]
["De acuerdo a los siguientes criterios relevantes (uno o varios), se coloca el puntaje identificado en la tabla  \"valoración intensidad sitio del proyecto\"",null,"puntaje"]
["El sitio del proyecto, ante posibles eventos adversos, no presenta daños significativos a la infraestructura, las pérdidas son relativamente sin importancia y no se registra interrupción de los servicios básicos.",null,1]
["El sitio del proyecto podría experimentar daños leves a la infraestructura, con pérdidas de baja consideración y una interrupción momentánea de los servicios básicos.",null,2]
["El sitio del proyecto puede verse afectado por daños severos a la infraestructura, con pérdidas elevadas y una interrupción parcial de los servicios básicos.",null,3]
["El sitio del proyecto podría enfrentar el colapso de algunas construcciones, con pérdidas de gran magnitud y una interrupción prolongada de los servicios básicos.",null,4]
[]
[null,"INTENSIDAD"]
[null,"Calificación según la ponderación del factor de intensidad de la amenaza"]
[null,3]
[]
[]
["PONDERACION DEL FACTOR FRECUENCIA"]
["De acuerdo a los criterios de frecuencia en que se presenta la amenaza se coloca el puntaje identificado en la tabla  \"frecuencia\"",null,"puntaje"]
["El evento se presento hace mas de (20) años",null,1]
["El evento se presento en los últimos 10 a 19 años",null,2]
["El evento se presento en los últimos 5 a 9 años",null,3]
["El evento se presenta anualmente",null,4]
[]
[]
[null,"FRECUENCIA"]
[null,"Calificación según la ponderación del factor de frecuencia de la amenaza"]
[null,3]

{"sheet":"OTRAS#2","index":16,"n_rows":31,"n_cols":3,"rows_kept":31,"cut":false,"hidden":true,"merged":[[24,0,24,1],[25,0,25,1],[33,0,33,2],[38,0,38,2],[12,0,12,1],[13,0,13,1],[20,0,20,2],[21,0,21,1],[22,0,22,1],[23,0,23,1],[11,0,11,1],[0,0,0,1],[1,0,1,2],[2,0,2,2],[3,0,3,2],[4,0,4,2],[5,0,5,2],[6,0,6,2],[7,0,7,2],[8,0,8,2],[9,0,9,1],[10,0,10,1]]}
["MODULO No. 9   OTRAS AMENAZAS (identificarla)",null,"Y"]
[]
[]
["INSTRUCCIONES DE LLENADO:"]
["PROCEDER A LLENAR Y DE ACUERDO AL PUNTAJE DE LOS CRITERIOS IDENTIFICADOS, EL FACTOR DE INTENSIDAD, ASI COMO EL FACTOR DE FRECUENCIA DE LA AMENAZA EN ANALISIS. "]
["1. PONDERACION DEL FACTOR INTENSIDAD:  Se procede de acuerdo al puntaje de la tabla de \"Ponderación del factor intensidad\" a calificar en el cuadro de \"INTENSIDAD \" y de acuerdo a los puntajes según los criterios identificados en el sitio del proyecto (En el cuadro de ponderación del factor intensidad, el cual esta diseñado con la función de \"validación de datos\" por lo que solo aceptara los números del uno al cuatro, de lo contrario dará error)"]
["2. PONDERACION DEL FACTOR FRECUENCIA:  Se procede de acuerdo al puntaje de la tabla de \"Ponderación del factor frecuencia\" a calificar en el cuadro de \"FRECUENCIA\" y de acuerdo a los criterios identificados en el sitio del proyecto (En el cuadro de valoración de frecuencia, esta diseñado con \"validación de datos\" el cual esta diseñado con la función de \"validación de datos\" por lo que solo aceptara los números del uno al cuatro, de lo contrario dará error)\n"]
[]
["PONDERACION DEL FACTOR INTENSIDAD"]
["De acuerdo a los siguientes criterios relevantes (uno o varios), se coloca el puntaje identificado en la tabla  \"valoración intensidad sitio del proyecto\"",null,"puntaje"]
["El sitio del proyecto, ante posibles eventos adversos, no presenta daños significativos a la infraestructura, las pérdidas son relativamente sin importancia y no se registra interrupción de los servicios básicos.",null,1]
["El sitio del proyecto podría experimentar daños leves a la infraestructura, con pérdidas de baja consideración y una interrupción momentánea de los servicios básicos.",null,2]
["El sitio del proyecto puede verse afectado por daños severos a la infraestructura, con pérdidas elevadas y una interrupción parcial de los servicios básicos.",null,3]
["El sitio del proyecto podría enfrentar el colapso de algunas construcciones, con pérdidas de gran magnitud y una interrupción prolongada de los servicios básicos.",null,4]
[]
[null,"INTENSIDAD"]
[null,"Calificación según la ponderación del factor de intensidad de la amenaza"]
[null,2]
[]
[]
["PONDERACION DEL FACTOR FRECUENCIA"]
["De acuerdo a los criterios de frecuencia en que se presenta la amenaza se coloca el puntaje identificado en la tabla  \"frecuencia\"",null,"puntaje"]
["El evento se presento hace mas de (20) años",null,1]
["El evento se presento en los últimos 10 a 19 años",null,2]
["El evento se presento en los últimos 5 a 9 años",null,3]
["El evento se presenta anualmente",null,4]
[]
[]
[null,"FRECUENCIA"]
[null,"Calificación según la ponderación del factor de frecuencia de la amenaza"]
[null,3]

{"sheet":"OTRAS#3","index":17,"n_rows":31,"n_cols":3,"rows_kept":31,"cut":false,"hidden":true,"merged":[[24,0,24,1],[25,0,25,1],[33,0,33,2],[38,0,38,2],[12,0,12,1],[13,0,13,1],[20,0,20,2],[21,0,21,1],[22,0,22,1],[23,0,23,1],[11,0,11,1],[0,0,0,1],[1,0,1,2],[2,0,2,2],[3,0,3,2],[4,0,4,2],[5,0,5,2],[6,0,6,2],[7,0,7,2],[8,0,8,2],[9,0,9,1],[10,0,10,1]]}
["MODULO No. 10   OTRAS AMENAZAS (identificarla)",null,"Z"]
[]
[]
["INSTRUCCIONES DE LLENADO:"]
["PROCEDER A LLENAR Y DE ACUERDO AL PUNTAJE DE LOS CRITERIOS IDENTIFICADOS, EL FACTOR DE INTENSIDAD, ASI COMO EL FACTOR DE FRECUENCIA DE LA AMENAZA EN ANALISIS. "]
["1. PONDERACION DEL FACTOR INTENSIDAD:  Se procede de acuerdo al puntaje de la tabla de \"Ponderación del factor intensidad\" a calificar en el cuadro de \"INTENSIDAD \" y de acuerdo a los puntajes según los criterios identificados en el sitio del proyecto (En el cuadro de ponderación del factor intensidad, el cual esta diseñado con la función de \"validación de datos\" por lo que solo aceptara los números del uno al cuatro, de lo contrario dará error)"]
["2. PONDERACION DEL FACTOR FRECUENCIA:  Se procede de acuerdo al puntaje de la tabla de \"Ponderación del factor frecuencia\" a calificar en el cuadro de \"FRECUENCIA\" y de acuerdo a los criterios identificados en el sitio del proyecto (En el cuadro de valoración de frecuencia, esta diseñado con \"validación de datos\" el cual esta diseñado con la función de \"validación de datos\" por lo que solo aceptara los números del uno al cuatro, de lo contrario dará error)\n"]
[]
["PONDERACION DEL FACTOR INTENSIDAD"]
["De acuerdo a los siguientes criterios relevantes (uno o varios), se coloca el puntaje identificado en la tabla  \"valoración intensidad sitio del proyecto\"",null,"puntaje"]
["El sitio del proyecto, ante posibles eventos adversos, no presenta daños significativos a la infraestructura, las pérdidas son relativamente sin importancia y no se registra interrupción de los servicios básicos.",null,1]
["El sitio del proyecto podría experimentar daños leves a la infraestructura, con pérdidas de baja consideración y una interrupción momentánea de los servicios básicos.",null,2]
["El sitio del proyecto puede verse afectado por daños severos a la infraestructura, con pérdidas elevadas y una interrupción parcial de los servicios básicos.",null,3]
["El sitio del proyecto podría enfrentar el colapso de algunas construcciones, con pérdidas de gran magnitud y una interrupción prolongada de los servicios básicos.",null,4]
[]
[null,"INTENSIDAD"]
[null,"Calificación según la ponderación del factor de intensidad de la amenaza"]
[null,3]
[]
[]
["PONDERACION DEL FACTOR FRECUENCIA"]
["De acuerdo a los criterios de frecuencia en que se presenta la amenaza se coloca el puntaje identificado en la tabla  \"frecuencia\"",null,"puntaje"]
["El evento se presento hace mas de (20) años",null,1]
["El evento se presento en los últimos 10 a 19 años",null,2]
["El evento se presento en los últimos 5 a 9 años",null,3]
["El evento se presenta anualmente",null,4]
[]
[]
[null,"FRECUENCIA"]
[null,"Calificación según la ponderación del factor de frecuencia de la amenaza"]
[null,4]

{"sheet":"RESULTADOS_FINALES","index":18,"n_rows":62,"n_cols":7,"rows_kept":62,"cut":false,"hidden":true,"merged":[[62,0,63,7],[59,1,59,3],[60,1,60,3],[58,0,60,0],[22,0,22,1],[22,2,22,6],[33,0,33,1],[33,2,33,6],[27,0,27,1],[27,2,27,6],[29,0,29,1],[29,2,29,6],[30,0,30,6],[58,1,58,3],[47,0,47,6],[48,0,48,1],[46,0,46,6],[16,0,16,1],[18,0,18,1],[18,2,18,6],[38,1,38,6],[39,1,39,6],[43,0,43,4],[42,0,42,4],[37,2,37,6],[31,0,31,1],[31,2,31,6],[32,0,32,6],[44,0,44,4],[20,0,21,1],[40,0,40,7],[24,0,25,1],[15,1,15,6],[1,0,1,6],[3,0,3,1],[5,0,5,1],[7,0,7,1],[4,0,4,1],[4,2,4,6],[3,2,3,6],[0,0,0,6],[49,6,51,6],[14,2,14,6],[16,2,16,6],[7,2,7,6],[12,2,12,6],[5,2,5,6],[34,0,34,6],[35,0,35,1],[35,2,35,6],[36,0,36,6],[37,0,37,1],[9,0,9,1],[9,2,9,6],[12,0,12,1],[14,0,14,1],[61,1,61,3],[48,2,48,6],[49,0,51,3],[56,1,56,3],[55,0,56,0],[49,4,51,4],[49,5,51,5],[52,1,52,3],[53,1,53,3],[57,1,57,3],[55,1,55,3],[52,0,54,0],[54,1,54,3]]}
[" DATOS GENERALES DEL PROYECTO"]
[]
[]
["NOMBRE Y TIPO DEL PROYECTO",null,{"$f":"'DATOS GENERALES'!C3:C3","v":"NOMBRE DEL PROYECTO"}]
["SNIP",null,{"$f":"+'DATOS GENERALES'!C4","v":123}]
["BREVE DESCRIPCIÓN DEL PROYECTO",null,{"$f":"'DATOS GENERALES'!C5:C5","v":123}]
[]
[]
[]
["UNIDAD EJECUTORA",null,{"$f":"'DATOS GENERALES'!C9:C9","v":123}]
[]
[]
["REGIÓN",null,{"$f":"Buscardatos!H2:H2","v":"I"}]
[]
["DEPARTAMENTO",null,{"$f":"Buscardatos!I2:I2","v":"Guatemala"}]
[]
["MUNICIPIO",null,{"$f":"Buscardatos!J2:J2","v":"Santa Catarina Pinula"}]
[]
["LUGAR POBLADO",null,{"$f":"'DATOS GENERALES'!C18","v":123}]
[null,null,null,null,"Grados","Minutos","Segundos"]
["COORDENADAS GEOGRAFICAS",null,"Latitud",360,14,0,0]
[null,null,"Longitud",null,88,0,0]
["NIVEL DEL ESTUDIO",null,{"$f":"'DATOS GENERALES'!C23","v":0}]
[null,null,null,null,"Grados","Minutos","Segundos"]
["COORDENADAS GEOGRAFICAS",null,"Latitud",360,{"$f":"Buscardatos!P2:P2","v":14},{"$f":"Buscardatos!Q2:Q2","v":0},{"$f":"Buscardatos!R2:R2","v":0}]
[null,null,"Longitud",null,{"$f":"Buscardatos!P3:P3","v":88},{"$f":"Buscardatos!Q3:Q3","v":0},{"$f":"Buscardatos!R3:R3","v":0}]
["\\"]
["FECHA DEL ANÁLISIS DE RIESGO",null,{"$f":"'DATOS GENERALES'!C25","v":"2025-07-08"}]
[]
["NOMBRE DEL EVALUADOR",null,{"$f":"'DATOS GENERALES'!C27","v":"Ricardo Avila"}]
[]
["CARGO",null,{"$f":"'DATOS GENERALES'!C29","v":"Dev"}]
["."]
["INSTITUCIÓN",null,{"$f":"'DATOS GENERALES'!C31","v":"Insti"}]
[]
["PROFESIÓN",null,{"$f":"'DATOS GENERALES'!C33","v":"Profe"}]
[]
["No. COLEGIADO",null,{"$f":"'DATOS GENERALES'!C35","v":123}]
[null,"NIVEL DE RIESGO PARA EL PROYECTO"]
[null,{"$f":"IF(OR(E53=\"MUY ALTA\",E54=\"MUY ALTA\",E55=\"MUY ALTA\",E58=\"MUY ALTA\"),\"Exposición MUY ALTA en algunas de las amenazas identificadas, se recomienda buscar un nuevo sitio o indicar medidas de mitigación/protección y costo estimado de las mismas.\",IF(OR(E53=\"ALTA\",E54=\"ALTA\",E55=\"ALTA\",E58=\"ALTA\"),\"Exposición ALTA en algunas de las amenazas identificadas, se recomienda buscar un nuevo sitio o indicar medidas de mitigación/protección y costo estimado de las mismas.\",IF(OR(E54=\"MEDIA\",E55=\"MEDIA\",E58=\"MEDIA\"),\"Exposición MEDIA en algunas de las amenazas identificadas, indicar medidas de mitigación/protección y costo estimado de las mismas.\",\" Exposición BAJA en algunas de las amenazas identificadas, indicar medidas de mitigación/protección y costo estimado de las mismas.\")))","v":"Exposición MUY ALTA en algunas de las amenazas identificadas, se recomienda buscar un nuevo sitio o indicar medidas de mitigación/protección y costo estimado de las mismas."}]
["Es obligatorio anexar mínimo 6 fotografías del sitio y/o infraestructura, las cuales cada una debe incluir                                                                                 número de fotografía, fecha,  georreferencia, descripción de la fotografía."]
[null,null,null,null,null,"sellos"]
["Firma de Formulador del Análisis de Riesgo",null,null,null,null,null,"V.°B.° Director de Planificación"]
[{"$f":"+'DATOS GENERALES'!C37","v":"A65S4DF"},null,null,null,null," ",{"$f":"+'DATOS GENERALES'!C39","v":"ASDF"}]
[{"$f":"CONCATENATE(\"DPI   \",'DATOS GENERALES'!C38)","v":"DPI   6546546546546"},null,null,null,null,null,{"$f":"CONCATENATE(\"DPI    \",'DATOS GENERALES'!C40)","v":"DPI    6546546546546"}]
[]
["RESULTADOS DEL ANÁLISIS"]
[]
["NOMBRE Y TIPO DEL PROYECTO",null,{"$f":"C4","v":"NOMBRE DEL PROYECTO"}]
["AMENAZAS",null,null,null,"NIVEL DE LA RELACIÓN INTENSIDAD Y FRECUENCIA DE LAS AMENAZAS EN EL SITIO DEL PROYECTO \n(EXPOSICIÓN)\n","EFECTOS PROBABLES A LA EXPOSICIÓN DEL SITIO DEL PROYECTO Y SEGÚN AMENAZA EVALUADA","RECOMENDACIONES"]
[]
[]
["GEOLÓGICAS","Sismicidad\n(Terremoto)",null,null,{"$f":"IF(AND(SISMOS!B10=2),\"BAJA\",IF(AND(SISMOS!B10=3),\"MEDIA\",IF(AND(SISMOS!B10=4.1),\"ALTA\",IF(AND(SISMOS!B10=4.2),\"MUY ALTA\",IF(AND(SISMOS!B10=0),\"SIN DATO\")))))","v":"ALTA"},{"$f":"IFERROR(VLOOKUP(E53,PROBABILIDAD_DAÑO!$D$6:$F$9,2,FALSE),\"-----\")","v":"El evento sísmico se clasifica como muy fuerte a destructivo, con una intensidad estimada entre VII y IX en la escala de Mercalli Modificada (EMM). Durante este nivel de intensidad, se producen daños considerables en estructuras especializadas, observándose que las paredes quedan fuera de plomo, lo que compromete su estabilidad.\n\nAdemás, se registran grandes daños en edificios de importancia, incluyendo colapsos parciales que afectan la integridad estructural. En algunos casos, los edificios pueden desplazarse fuera de sus bases, lo que representa un riesgo significativo para la seguridad de los ocupantes y la estabilidad general de las construcciones."},{"$f":"IFERROR(VLOOKUP(E53,PROBABILIDAD_DAÑO!$D$6:$F$9,3,FALSE),\"-----\")","v":"A nivel nacional se recomienda consultar diversas normativas establecidas por AGIES para el diseño sísmico y los estudios técnicos relacionados. En primer lugar, la normativa NSE-2-2018, modificada en 2020, que tiene como objetivo calcular el diseño sísmico en función del índice de sismicidad del sitio, utilizando la ordenada espectral de período corto y la ordenada espectral con período de un segundo.\n\nTambién es importante revisar la normativa NSE-2.1-18, igualmente modificada en 2020, que está relacionada con los estudios geotécnicos necesarios para la correcta evaluación del suelo y la cimentación de las estructuras. Por otro lado, la normativa NSE-1, 2018, con modificaciones en 2020, aborda las generalidades, la administración de las normas y la supervisión técnica para garantizar el cumplimiento adecuado durante todo el proceso.\n\nFinalmente, se recomienda considerar todas las demás normas NSE de AGIES que estén relacionadas con el diseño y desarrollo de proyectos para asegurar la correcta aplicación de los lineamientos técnicos nacionales en materia sísmica."}]
[null,"Volcánicas",null,null,{"$f":"IFERROR(VLOOKUP(VOLCANICA!B20,'tablas exposicion'!$C$20:$G$23,MATCH(VOLCANICA!B33,'tablas exposicion'!$D$19:$G$19,0)+1,0),\"NO IDENTIFICADA\")","v":"MEDIA"},{"$f":"IFERROR(VLOOKUP(E54,PROBABILIDAD_DAÑO!$D$14:$F$17,2,FALSE),\"-----\")","v":"La probabilidad de daños en la infraestructura proyectada se considera leve. No obstante, es importante tomar en cuenta la posible caída de tefra, compuesta por arena volcánica, la cual puede ocasionar daños específicos, especialmente en techos y en proyectos de cielo abierto, como plantas de tratamiento y otras instalaciones expuestas. Por ello, se recomienda diseñar y proteger adecuadamente estas estructuras para minimizar los efectos adversos de la caída de material volcánico."},{"$f":"IFERROR(VLOOKUP(E54,PROBABILIDAD_DAÑO!$D$14:$F$17,3,FALSE),\"-----\")","v":"En construcciones expuestas a amenazas volcánicas, es imprescindible cumplir con las normas AGIES NSE-2-2018, que establecen los lineamientos para el diseño estructural, incluyendo aspectos específicos relacionados con las condiciones volcánicas. Asimismo, se debe observar la normativa NSE-2.1-18 (modificada en 2020) de AGIES, que regula los estudios geotécnicos necesarios para evaluar las características del suelo y garantizar la estabilidad de las estructuras.\n\nAdemás, se recomienda sensibilizar a la población sobre la existencia de amenazas volcánicas moderadas en la zona, promoviendo la adopción de medidas preventivas y correctivas que contribuyan a la preservación de la infraestructura y a la seguridad de los habitantes. Esta sensibilización es clave para minimizar riesgos y fomentar una cultura de prevención ante posibles eventos volcánicos."}]
[null,"Deslizamientos / Derrumbes",null,null,{"$f":"IFERROR(VLOOKUP(DESLIZAMIENTOS!B18,'tablas exposicion'!$C$70:$G$73,MATCH(DESLIZAMIENTOS!B31,'tablas exposicion'!$D$69:$G$69,0)+1,0),\"NO IDENTIFICADA\")","v":"ALTA"},{"$f":"IFERROR(VLOOKUP(E55,PROBABILIDAD_DAÑO!$D$30:$F$33,2,FALSE),\"-----\")","v":"Debido a las condiciones propias del terreno y al grado pronunciado de pendiente, la probabilidad de que ocurran deslizamientos en el área del proyecto es alta. La combinación de un suelo suelto y poroso, la ausencia de cobertura vegetal, la presencia de mantos freáticos y las fracturas orientadas hacia el sitio representan factores críticos que incrementan significativamente el riesgo geotécnico. Como resultado, existe una elevada posibilidad de que estos movimientos en masa provoquen daños considerables a la infraestructura proyectada, especialmente si no se incorporan medidas de mitigación adecuadas desde la fase de diseño y construcción."},{"$f":"IFERROR(VLOOKUP(E55,PROBABILIDAD_DAÑO!$D$30:$F$33,3,FALSE),\"-----\")","v":"El proyecto debe incorporar medidas de mitigación específicas y adecuadas a las características del terreno y al tipo de obra que se pretende desarrollar, con el fin de reducir la vulnerabilidad ante deslizamientos y garantizar la estabilidad de la infraestructura a largo plazo. Estas medidas deben estar sustentadas en estudios técnicos que permitan comprender en profundidad las condiciones del subsuelo, la dinámica del terreno y los factores que pueden desencadenar movimientos en masa.\n\nEn todos los casos, se recomienda la aplicación de la Normativa NSE-2.1-18 (modificada 2020) de AGIES, prestando especial atención al capítulo 4, que aborda la caracterización geotécnica del subsuelo; al capítulo 5, relativo al diseño de cimentaciones; y al capítulo 7, que se enfoca en la estabilidad de laderas y taludes. Estas secciones son clave para establecer soluciones técnicas adecuadas a los riesgos identificados.\n\nAsimismo, se debe considerar la Normativa NSE-2-2018 de AGIES, específicamente el capítulo 10, que trata sobre las condiciones del terreno. Esta normativa proporciona los lineamientos necesarios para evaluar correctamente los factores del sitio y diseñar obras que respondan de manera efectiva a las amenazas geotécnicas. La implementación de estas disposiciones normativas es esencial para lograr un desarrollo seguro y sostenible del proyecto."}]
["HIDROMETEOROLÓGICAS","Vientos fuertes",null,null,{"$f":"IF(AND(VIENTOS!B10=100),\"BAJA\",IF(AND(VIENTOS!B10=110),\"MEDIA\",IF(AND(VIENTOS!B10=120),\"ALTA\",IF(AND(VIENTOS!B10=0),))))","v":"BAJA"},{"$f":"IFERROR(VLOOKUP(E56,PROBABILIDAD_DAÑO!$D$38:$F$41,2,FALSE),\"-----\")","v":"La probabilidad de daños se considera leve, debido a que las velocidades del viento no son elevadas y su comportamiento es relativamente estable. Por lo tanto, los impactos sobre la infraestructura y actividades del proyecto serían mínimos o poco significativos."},{"$f":"IFERROR(VLOOKUP(E56,PROBABILIDAD_DAÑO!$D$38:$F$41,3,FALSE),\"-----\")","v":"Se recomienda cumplir con las disposiciones establecidas en la normativa NSE-2-2018 de AGIES, particularmente en lo relacionado con las acciones del viento, según lo especificado en el capítulo 5. Estas recomendaciones contribuirán a diseñar y ejecutar la infraestructura de manera que resista adecuadamente las condiciones de viento previstas, minimizando así posibles daños y asegurando la seguridad del proyecto."}]
[null,"Huracanes",null,null,{"$f":"IFERROR(VLOOKUP(HURACANES!B19,'tablas exposicion'!$C$101:$G$104,MATCH(HURACANES!B32,'tablas exposicion'!$D$100:$G$100,0)+1,0),\"NO IDENTIFICADA\")","v":"MUY ALTA"},{"$f":"IFERROR(VLOOKUP(E57,PROBABILIDAD_DAÑO!$D$46:$F$49,2,FALSE),\"-----\")","v":"Las condiciones descritas reflejan un escenario de desastre natural severo, en el cual la destrucción de tejados de viviendas y edificios es común, generando daños significativos a la infraestructura. Las inundaciones afectan gravemente las plantas bajas de las estructuras, provocando daños materiales extensos y la necesidad de evacuaciones masivas en áreas residenciales, lo que implica un impacto social considerable.\n\nLos árboles son arrancados de raíz o quebrados, y algunas viviendas más frágiles pueden ser desplazadas desde sus cimientos, evidenciando la intensidad del fenómeno. Además, los cultivos anuales y permanentes sufren daños severos o totales, lo que afecta la seguridad alimentaria y la economía local. Los cortes y apagones eléctricos pueden extenderse por varios días, complicando aún más la situación de emergencia.\n\nEste tipo de inundaciones, catastróficas en cuanto a profundidad y duración, sumergen el primer piso de las edificaciones y representan un peligro real para la vida humana, lo que subraya la necesidad de implementar medidas preventivas y de mitigación robustas, así como planes de evacuación y respuesta ante emergencias para salvaguardar tanto a las personas como a la infraestructura."},{"$f":"IFERROR(VLOOKUP(E57,PROBABILIDAD_DAÑO!$D$46:$F$49,3,FALSE),\"-----\")","v":"Se recomienda observar estrictamente las disposiciones establecidas en la norma NSE-2-2018 (modificada en 2020) de AGIES, especialmente en lo referido al capítulo 5, que aborda las acciones del viento, y el capítulo 10, que trata las condiciones del terreno. En particular, el subcapítulo 10.2.5 es fundamental, ya que se enfoca en las zonas inundables y erosionables, aspectos críticos para el diseño y ubicación de proyectos en áreas con riesgo de inundación.\n\nAdemás, es imprescindible cumplir con las demás normas NSE de AGIES relacionadas con el diseño estructural y geotécnico de los proyectos, asegurando así que las construcciones sean resilientes frente a las amenazas naturales, como vientos fuertes e inundaciones. El cumplimiento de estas normativas contribuye a minimizar los daños potenciales, proteger la integridad de las edificaciones y garantizar la seguridad de las personas que las ocupan o transitan en sus proximidades."}]
["HIDROMETEOROLÓGICAS","Inundaciones",null,null,{"$f":"IFERROR(VLOOKUP(INUNDACION!B17,'tablas exposicion'!$C$41:$G$44,MATCH(INUNDACION!B29,'tablas exposicion'!$D$40:$G$40,0)+1,0),\"NO IDENTIFICADA\")","v":"MUY ALTA"},{"$f":"IFERROR(VLOOKUP(E58,PROBABILIDAD_DAÑO!$D$22:$F$25,2,FALSE),\"-----\")","v":"En situaciones donde las inundaciones alcanzan niveles que provocan la sumersión de viviendas y edificios, así como la destrucción de carreteras, puentes y otras infraestructuras, los daños son considerados considerables. Este tipo de eventos genera un impacto severo en la comunidad afectada, interrumpiendo no solo el acceso y la movilidad, sino también los servicios básicos y las actividades cotidianas.\n\nLa infraestructura crítica queda comprometida, lo que dificulta las labores de rescate y recuperación. Además, las pérdidas materiales y económicas son significativas, y el riesgo para la seguridad y bienestar de las personas aumenta considerablemente. Por lo tanto, en zonas con este nivel de amenaza, se debe priorizar la implementación de medidas de mitigación robustas, o incluso la reubicación de proyectos para garantizar la protección de la infraestructura y la población."},{"$f":"IFERROR(VLOOKUP(E58,PROBABILIDAD_DAÑO!$D$22:$F$25,3,FALSE),\"-----\")","v":"Por tratarse de una zona de muy alto peligro por inundaciones, resulta imprescindible implementar medidas de mitigación que aseguren la preservación de la infraestructura y la seguridad de los usuarios. En casos extremos, se debe considerar la búsqueda de un nuevo sitio para el proyecto, con condiciones más favorables y menor riesgo.\n\nAsimismo, se recomienda el uso riguroso de la normativa NSE-2-2018, especialmente lo especificado en el capítulo 10, relacionado con las condiciones del terreno para el diseño estructural de edificaciones. Adicionalmente, es fundamental aplicar la NORMATIVA NSE-2.1-18 (modificada en 2020) de AGIES, con énfasis en el capítulo 4, que aborda la caracterización geotécnica del subsuelo, para garantizar un análisis técnico adecuado y completo."}]
["OTRAS AMENAZAS IDENTIFICADAS",{"$f":"'OTRAS#1'!C1","v":"X"},null,null,{"$f":"IFERROR(VLOOKUP('OTRAS#1'!B18,'tablas exposicion'!$C$153:$G$156,MATCH('OTRAS#1'!B31,'tablas exposicion'!$D$152:$G$152,0)+1,0),\"NO IDENTIFICADA\")","v":"ALTA"},{"$f":"IFERROR(VLOOKUP(E59,PROBABILIDAD_DAÑO!$D$55:$F$58,2,FALSE),\"-----\")","v":"Se presentan daños severos en la infraestructura, pérdidas considerables y una interrupción parcial de los servicios básicos."},{"$f":"IFERROR(VLOOKUP(E59,PROBABILIDAD_DAÑO!$D$55:$F$58,3,FALSE),\"-----\")","v":"Se recomienda que los diseños estructurales y constructivos se ajusten estrictamente a las normas de seguridad establecidas en las normativas NSE de AGIES, garantizando así la resistencia y estabilidad de las edificaciones ante eventuales riesgos. Además, es fundamental considerar las normas ISO relacionadas con la calidad de los materiales empleados, para asegurar la durabilidad y el desempeño óptimo de los elementos constructivos, minimizando así posibles daños y manteniendo la integridad del proyecto a largo plazo."}]
[null,{"$f":"'OTRAS#2'!C1","v":"Y"},null,null,{"$f":"IFERROR(VLOOKUP('OTRAS#2'!B18,'tablas exposicion'!$C$153:$G$156,MATCH('OTRAS#2'!B31,'tablas exposicion'!$D$152:$G$152,0)+1,0),\"NO IDENTIFICADA\")","v":"ALTA"},{"$f":"IFERROR(VLOOKUP(E60,PROBABILIDAD_DAÑO!$D$55:$F$58,2,FALSE),\"-----\")","v":"Se presentan daños severos en la infraestructura, pérdidas considerables y una interrupción parcial de los servicios básicos."},{"$f":"IFERROR(VLOOKUP(E60,PROBABILIDAD_DAÑO!$D$55:$F$58,3,FALSE),\"-----\")","v":"Se recomienda que los diseños estructurales y constructivos se ajusten estrictamente a las normas de seguridad establecidas en las normativas NSE de AGIES, garantizando así la resistencia y estabilidad de las edificaciones ante eventuales riesgos. Además, es fundamental considerar las normas ISO relacionadas con la calidad de los materiales empleados, para asegurar la durabilidad y el desempeño óptimo de los elementos constructivos, minimizando así posibles daños y manteniendo la integridad del proyecto a largo plazo."}]
[null,{"$f":"'OTRAS#3'!C1","v":"Z"},null,null,{"$f":"IFERROR(VLOOKUP('OTRAS#3'!B18,'tablas exposicion'!$C$153:$G$156,MATCH('OTRAS#3'!B31,'tablas exposicion'!$D$152:$G$152,0)+1,0),\"NO IDENTIFICADA\")","v":"MUY ALTA"},{"$f":"IFERROR(VLOOKUP(E61,PROBABILIDAD_DAÑO!$D$55:$F$58,2,FALSE),\"-----\")","v":"Se presentan colapsos en algunas construcciones, pérdidas significativas y una interrupción prolongada de los servicios básicos."},{"$f":"IFERROR(VLOOKUP(E61,PROBABILIDAD_DAÑO!$D$55:$F$58,3,FALSE),\"-----\")","v":"Se recomienda que los diseños estructurales y constructivos se ajusten estrictamente a las normas de seguridad establecidas en las normativas NSE de AGIES, garantizando así la resistencia y estabilidad de las edificaciones ante eventuales riesgos. Además, es fundamental considerar las normas ISO relacionadas con la calidad de los materiales empleados, para asegurar la durabilidad y el desempeño óptimo de los elementos constructivos, minimizando así posibles daños y manteniendo la integridad del proyecto a largo plazo."}]
["Amenaza ","Cambio Climático",null,null,{"$f":"IFERROR(VLOOKUP(CLIMATICO!B17,'tablas exposicion'!$C$153:$G$156,MATCH(CLIMATICO!B29,'tablas exposicion'!$D$152:$G$152,0)+1,0),\"NO IDENTIFICADA\")","v":"ALTA"},{"$f":"IFERROR(VLOOKUP(E62,PROBABILIDAD_DAÑO!$D$55:$F$58,2,FALSE),\"-----\")","v":"Se presentan daños severos en la infraestructura, pérdidas considerables y una interrupción parcial de los servicios básicos."},{"$f":"IFERROR(VLOOKUP(E62,PROBABILIDAD_DAÑO!$D$55:$F$58,3,FALSE),\"-----\")","v":"Se recomienda que los diseños estructurales y constructivos se ajusten estrictamente a las normas de seguridad establecidas en las normativas NSE de AGIES, garantizando así la resistencia y estabilidad de las edificaciones ante eventuales riesgos. Además, es fundamental considerar las normas ISO relacionadas con la calidad de los materiales empleados, para asegurar la durabilidad y el desempeño óptimo de los elementos constructivos, minimizando así posibles daños y manteniendo la integridad del proyecto a largo plazo."}]

{"sheet":"DATOS#1","index":19,"n_rows":23,"n_cols":4,"rows_kept":23,"cut":false,"hidden":true,"merged":[]}
["REGION","DEPARTAMENTO",null,"REGION"]
["I","Guatemala",null,"I"]
["II","Baja Verapaz",null,"II"]
["II","Alta Verapaz",null,"III"]
["III","El Progreso",null,"IV"]
["III","Izabal",null,"V"]
["III","Zacapa",null,"VI"]
["III","Chiquimula",null,"VII"]
["IV","Santa Rosa",null,"VIII"]
["IV","Jalapa"]
["IV","Jutiapa"]
["V","Sacatepéquez"]
["V","Chimaltenango"]
["V","Escuintla"]
["VI","Sololá"]
["VI","Totonicapán"]
["VI","Quetzaltenango"]
["VI","Suchitepéquez"]
["VI","Retalhuleu"]
["VI","San Marcos"]
["VII","Huehuetenango"]
["VII","Quiché"]
["VIII","Petén"]

{"sheet":"TABLA_INDICE_SISMICIDAD_EJEMPLO","index":20,"n_rows":341,"n_cols":3,"rows_kept":341,"cut":false,"hidden":true,"merged":[]}
["MUNICIPIO","INDICE SISMICIDAD","VELOCIDAD VIENTO"]
["CHAHAL",3,110]
["CHISEC",3,100]
["COBÁN",4.0999999999999996,100]
["FRAY BARTOLOMÉ DE LAS CASAS",3,110]
["LANQUÍN",3,100]
["PANZÓS",4.0999999999999996,100]
["RAXRUHÁ",3,100]
["SAN CRISTÓBAL VERAPAZ",4.0999999999999996,100]
["SAN JUAN CHAMELCO",4.0999999999999996,100]
["SAN PEDRO CARCHÁ",4.0999999999999996,100]
["SANTA CATALINA LA TINTA",4.0999999999999996,100]
["SANTA CRUZ VERAPAZ",4.0999999999999996,100]
["SANTA MARÍA CAHABÓN",3,110]
["SENAHÚ",4.0999999999999996,100]
["TACTIC",4.0999999999999996,100]
["TAMAHÚ",4.0999999999999996,100]
["TUCURÚ",4.0999999999999996,100]
["CUBULCO",4.0999999999999996,100]
["GRANADOS",4.0999999999999996,100]
["PURULHÁ",4.0999999999999996,100]
["RABINAL",4.0999999999999996,100]
["SALAMÁ",4.0999999999999996,100]
["SAN JERÓNIMO",4.0999999999999996,100]
["SAN MIGUEL CHICAJ",4.0999999999999996,100]
["SANTA CRUZ EL CHOL",4.0999999999999996,100]
["ACATENANGO",4.0999999999999996,100]
["CHIMALTENANGO",4.0999999999999996,100]
["EL TEJAR",4.0999999999999996,100]
["PARRAMOS",4.0999999999999996,100]
["PATZICÍA",4.0999999999999996,100]
["PATZÚN",4.0999999999999996,100]
["POCHUTA",4.0999999999999996,100]
["SAN ANDRÉS CHIMALTENANGO",4.0999999999999996,100]
["SAN JOSÉ POAQUIL",4.0999999999999996,100]
["SAN JUAN COMALAPA",4.0999999999999996,100]
["SAN MARTÍN JILOTEPEQUE",4.0999999999999996,100]
["SANTA APOLONIA",4.0999999999999996,100]
["SANTA CRUZ BALANYÁ",4.0999999999999996,100]
["TECPÁN GUATEMALA",4.0999999999999996,100]
["YEPOCAPA",4.0999999999999996,100]
["ZARAGOZA",4.0999999999999996,100]
["CAMOTAN",4.0999999999999996,100]
["CHIQUIMULA",4.0999999999999996,100]
["CONCEPCIÓN LAS MINAS",4.0999999999999996,100]
["ESQUIPULAS",4.0999999999999996,100]
["IPALA",4.0999999999999996,100]
["JOCOTÁN",4.0999999999999996,100]
["OLOPA",4.0999999999999996,100]
["QUETZALTEPEQUE",4.0999999999999996,100]
["SAN JACINTO",4.0999999999999996,100]
["SAN JOSÉ LA ARADA",4.0999999999999996,100]
["SAN JUAN ERMITA",4.0999999999999996,100]
["EL JÍCARO",4.0999999999999996,100]
["GUASTATOYA",4.0999999999999996,100]
["MORAZÁN",4.0999999999999996,100]
["SAN AGUSTÍN ACASAGUASTLÁN",4.0999999999999996,100]
["SAN ANTONIO LA PAZ",4.0999999999999996,100]
["SAN CRISTÓBAL ACASAGUASTLÁN",4.0999999999999996,100]
["SANARATE",4.0999999999999996,100]
["SANSARE",4.0999999999999996,100]
["ESCUINTLA",4.2,100]
["GUANAGAZAPA",4.2,110]
["IZTAPA",4.2,110]
["LA DEMOCRACIA",4.2,110]
["LA GOMERA",4.2,110]
["MASAGUA",4.2,110]
["NUEVA CONCEPCIÓN",4.2,110]
["PALÍN",4.2,100]
["SAN JOSÉ.",4.2,110]
["SAN VICENTE PACAYA",4.2,100]
["SANTA LUCÍA COTZUMALGUAPA",4.2,100]
["SIPACATE",4.2,110]
["SIQUINALÁ",4.2,100]
["TIQUISATE",4.2,110]
["AMATITLAN",4.0999999999999996,100]
["CHINAUTLA",4.0999999999999996,100]
["CHUARRANCHO",4.0999999999999996,100]
["FRAIJANES",4.0999999999999996,100]
["GUATEMALA",4.0999999999999996,100]
["MIXCO",4.0999999999999996,100]
["PALENCIA",4.0999999999999996,100]
["SAN JOSÉ DEL GOLFO",4.0999999999999996,100]
["SAN JOSÉ PINULA",4.0999999999999996,100]
["SAN JUAN SACATEPÉQUEZ",4.0999999999999996,100]
["SAN MIGUEL PETAPA",4.0999999999999996,100]
["SAN PEDRO AYAMPUC",4.0999999999999996,100]
["SAN PEDRO SACATEPÉQUEZ",4.0999999999999996,100]
["SAN RAYMUNDO",4.0999999999999996,100]
["SANTA CATARINA PINULA",4.0999999999999996,100]
["VILLA CANALES",4.0999999999999996,100]
["VILLA NUEVA",4.0999999999999996,100]
["AGUACATAN",4.0999999999999996,100]
["CHIANTLA",4.0999999999999996,100]
["COLOTENANGO",4.0999999999999996,100]
["CONCEPCIÓN HUISTA",4.0999999999999996,100]
["CUILCO",4.0999999999999996,100]
["HUEHUETENANGO",4.0999999999999996,100]
["JACALTENANGO",4.0999999999999996,100]
["LA DEMOCRACIA",4.0999999999999996,100]
["LA LIBERTAD.",4.0999999999999996,100]
["MALACATANCITO",4.0999999999999996,100]
["NENTÓN",4.0999999999999996,100]
["PETATÁN",4.0999999999999996,100]
["SAN ANTONIO HUISTA",4.0999999999999996,100]
["SAN GASPAR IXCHIL",4.0999999999999996,100]
["SAN ILDEFONSO IXTAHUACÁN",4.0999999999999996,100]
["SAN JUAN ATITÁN",4.0999999999999996,100]
["SAN JUAN IXCOY",4.0999999999999996,100]
["SAN MATEO IXTATÁN.",3,100]
["SAN MIGUEL ACATÁN",4.0999999999999996,100]
["SAN PEDRO NECTA",4.0999999999999996,100]
["SAN PEDRO SOLOMA",3,100]
["SAN RAFAEL LA INDEPENDENCIA",4.0999999999999996,100]
["SAN RAFAEL PETZAL",4.0999999999999996,100]
["SAN SEBASTIÁN COATÁN",4.0999999999999996,100]
["SAN SEBASTIÁN HUEHUETENANGO",4.0999999999999996,100]
["SANTA ANA HUISTA",4.0999999999999996,100]
["SANTA BÁRBARA",4.0999999999999996,100]
["SANTA CRUZ BARILLAS",3,100]
["SANTA EULALIA",3,100]
["SANTIAGO CHIMALTENANGO",4.0999999999999996,100]
["TECTITÁN",4.0999999999999996,100]
["TODOS SANTOS CUCHUMATANES",4.0999999999999996,100]
["UNIÓN CANTINIL",4.0999999999999996,100]
["EL ESTOR",4.0999999999999996,110]
["LIVINGSTON",4.0999999999999996,120]
["LOS AMATES",4.0999999999999996,110]
["MORALES",4.0999999999999996,110]
["PUERTO BARRIOS",4.0999999999999996,120]
["JALAPA",4.0999999999999996,100]
["MATAQUESCUINTLA",4.0999999999999996,100]
["MONJAS",4.0999999999999996,100]
["SAN CARLOS ALZATATE",4.0999999999999996,100]
["SAN LUIS JILOTEPEQUE",4.0999999999999996,100]
["SAN MANUEL CHAPARRÓN",4.0999999999999996,100]
["SAN PEDRO PINULA",4.0999999999999996,100]
["AGUA BLANCA",4.0999999999999996,100]
["ASUNCION MITA",4.0999999999999996,100]
["ATESCATEMPA",4.0999999999999996,100]
["COMAPA",4.0999999999999996,100]
["CONGUACO",4.2,100]
["EL ADELANTO",4.0999999999999996,100]
["EL PROGRESO",4.0999999999999996,100]
["JALPATAGUA",4.0999999999999996,100]
["JEREZ",4.0999999999999996,100]
["JUTIAPA",4.0999999999999996,100]
["MOYUTA",4.2,110]
["PASACO",4.2,110]
["QUESADA",4.0999999999999996,100]
["SAN JOSÉ ACATEMPA",4.0999999999999996,100]
["SANTA CATARINA MITA",4.0999999999999996,100]
["YUPILTEPEQUE",4.0999999999999996,100]
["ZAPOTITLÁN",4.0999999999999996,100]
["DOLORES",2,110]
["EL CHAL",2,100]
["FLORES",2,100]
["LA LIBERTAD",2,100]
["LAS CRUCES",2,100]
["MELCHOR DE MENCOS",2,110]
["POPTÚN",2,110]
["SAN ANDRÉS PETÉN",2,100]
["SAN BENITO",2,100]
["SAN FRANCISCO",3,100]
["SAN JOSÉ",2,100]
["SAN LUIS",3,110]
["SANTA ANA",2,100]
["SAYAXCHÉ",2,100]
["ALMOLONGA",4.0999999999999996,100]
["CABRICAN",4.0999999999999996,100]
["CAJOLA",4.0999999999999996,100]
["CANTEL",4.0999999999999996,100]
["COATEPEQUE",4.2,110]
["COLOMBA",4.2,100]
["CONCEPCIÓN CHIQUIRICHAPA",4.0999999999999996,100]
["EL PALMAR",4.2,100]
["FLORES COSTA CUCA",4.2,110]
["GÉNOVA",4.2,110]
["HUITÁN",4.0999999999999996,100]
["LA ESPERANZA",4.0999999999999996,100]
["OLINTEPEQUE",4.0999999999999996,100]
["PALESTINA DE LOS ALTOS",4.0999999999999996,100]
["QUETZALTENANGO",4.0999999999999996,100]
["SALCAJÁ",4.0999999999999996,100]
["SAN CARLOS SIJA",4.0999999999999996,100]
["SAN FRANCISCO LA UNIÓN",4.0999999999999996,100]
["SAN JUAN OSTUNCALCO",4.0999999999999996,100]
["SAN MARTÍN SACATEPÉQUEZ",4.0999999999999996,100]
["SAN MATEO",4.0999999999999996,100]
["SAN MIGUEL SIGÜILÁ",4.0999999999999996,100]
["SIBILIA",4.0999999999999996,100]
["ZUNIL",4.0999999999999996,100]
["CANILLA",4.0999999999999996,100]
["CHAJUL",4.0999999999999996,100]
["CHICAMÁN",4.0999999999999996,100]
["CHICHÉ",4.0999999999999996,100]
["CHICHICASTENANGO",4.0999999999999996,100]
["CHINIQUE",4.0999999999999996,100]
["CUNÉN",4.0999999999999996,100]
["IXCÁN",4.0999999999999996,100]
["JOYABAJ",4.0999999999999996,100]
["NEBAJ",4.0999999999999996,100]
["PACHALUM",4.0999999999999996,100]
["PATZITÉ",4.0999999999999996,100]
["SACAPULAS",4.0999999999999996,100]
["SAN ANDRÉS SAJCABAJÁ",4.0999999999999996,100]
["SAN ANTONIO ILOTENANGO",4.0999999999999996,100]
["SAN BARTOLOMÉ JOCOTENANGO",4.0999999999999996,100]
["SAN JUAN COTZAL",4.0999999999999996,100]
["SAN PEDRO JOCOPILAS",4.0999999999999996,100]
["SANTA CRUZ DEL QUICHÉ",4.0999999999999996,100]
["USPANTÁN",4.0999999999999996,100]
["ZACUALPA",4.0999999999999996,100]
["CHAMPERICO",4.2,110]
["EL ASINTAL",4.2,110]
["NUEVO SAN CARLOS",4.2,100]
["RETALHULEU",4.2,110]
["SAN ANDRÉS VILLA SECA",4.2,110]
["SAN FELIPE",4.2,100]
["SAN MARTÍN ZAPOTITLÁN",4.2,100]
["SAN SEBASTIÁN",4.2,100]
["SANTA CRUZ MULUÁ",4.2,110]
["ALOTENANGO",4.0999999999999996,100]
["ANTIGUA GUATEMALA",4.0999999999999996,100]
["CIUDAD VIEJA",4.0999999999999996,100]
["JOCOTENANGO",4.0999999999999996,100]
["MAGDALENA MILPAS ALTAS",4.0999999999999996,100]
["PASTORES",4.0999999999999996,100]
["SAN ANTONIO AGUAS CALIENTES",4.0999999999999996,100]
["SAN BARTOLOMÉ MILPAS ALTAS",4.0999999999999996,100]
["SAN LUCAS SACATEPÉQUEZ",4.0999999999999996,100]
["SAN MIGUEL DUEÑAS",4.0999999999999996,100]
["SANTA CATARINA BARAHONA",4.0999999999999996,100]
["SANTA LUCÍA MILPAS ALTAS",4.0999999999999996,100]
["SANTA MARÍA DE JESÚS",4.0999999999999996,100]
["SANTIAGO SACATEPÉQUEZ",4.0999999999999996,100]
["SANTO DOMINGO XENACOJ",4.0999999999999996,100]
["SUMPANGO",4.0999999999999996,100]
["AYUTLA",4.2,110]
["CATARINA",4.2,100]
["COMITANCILLO",4.0999999999999996,100]
["CONCEPCIÓN TUTUAPA",4.0999999999999996,100]
["EL QUETZAL",4.2,100]
["EL RODEO",4.2,100]
["EL TUMBADOR",4.2,100]
["ESQUIPULAS PALO GORDO",4.2,100]
["IXCHIGUAN",4.0999999999999996,100]
["LA BLANCA",4.2,110]
["LA REFORMA",4.2,100]
["MALACATÁN",4.2,100]
["NUEVO PROGRESO",4.2,100]
["OCÓS",4.2,110]
["PAJAPITA",4.0999999999999996,110]
["RÍO BLANCO",4.0999999999999996,100]
["SAN ANTONIO SACATEPÉQUEZ",4.0999999999999996,100]
["SAN CRISTÓBAL CUCHO",4.0999999999999996,100]
["SAN JOSÉ OJETENAM",4.0999999999999996,100]
["SAN LORENZO",4.0999999999999996,100]
["SAN MARCOS",4.0999999999999996,100]
["SAN MIGUEL IXTAHUACÁN",4.0999999999999996,100]
["SAN PABLO",4.0999999999999996,100]
["SAN PEDRO SACATEPÉQUEZ",4.2,100]
["SAN RAFAEL PIE DE LA CUESTA",4.0999999999999996,100]
["SIBINAL",4.0999999999999996,100]
["SIPACAPA",4.0999999999999996,100]
["TACANÁ",4.0999999999999996,100]
["TAJUMULCO",4.0999999999999996,100]
["TEJUTLA",4.2,100]
["BARBERENA",4.0999999999999996,100]
["CASILLAS",4.0999999999999996,100]
["CHIQUIMULILLA",4.2,110]
["CUILAPA",4.0999999999999996,100]
["GUAZACAPÁN",4.2,110]
["NUEVA SANTA ROSA",4.0999999999999996,100]
["ORATORIO",4.2,100]
["PUEBLO NUEVO VIÑAS",4.2,100]
["SAN JUAN TECUACO",4.2,100]
["SAN RAFAEL LAS FLORES",4.0999999999999996,100]
["SANTA CRUZ NARANJO",4.0999999999999996,100]
["SANTA MARÍA IXHUATÁN",4.2,100]
["SANTA ROSA DE LIMA",4.0999999999999996,100]
["TAXISCO",4.2,110]
["CONCEPCIÓN",4.0999999999999996,100]
["NAHUALÁ",4.0999999999999996,100]
["PANAJACHEL",4.0999999999999996,100]
["SAN ANDRÉS SEMETABAJ",4.0999999999999996,100]
["SAN ANTONIO PALOPÓ",4.0999999999999996,100]
["SAN JOSÉ CHACAYÁ",4.0999999999999996,100]
["SAN JUAN LA LAGUNA",4.0999999999999996,100]
["SAN LUCAS TOLIMÁN",4.0999999999999996,100]
["SAN MARCOS LA LAGUNA",4.0999999999999996,100]
["SAN PABLO LA LAGUNA",4.0999999999999996,100]
["SAN PEDRO LA LAGUNA",4.0999999999999996,100]
["SANTA CATARINA IXTAHUACÁN",4.0999999999999996,100]
["SANTA CATARINA PALOPÓ",4.0999999999999996,100]
["SANTA CLARA LA LAGUNA",4.0999999999999996,100]
["SANTA CRUZ LA LAGUNA",4.0999999999999996,100]
["SANTA LUCÍA UTATLÁN",4.0999999999999996,100]
["SANTA MARÍA VISITACIÓN",4.0999999999999996,100]
["SANTIAGO ATITLÁN",4.0999999999999996,100]
["SOLOLÁ",4.0999999999999996,100]
["CHICACAO",4.2,100]
["CUYOTENANGO",4.2,110]
["MAZATENANGO",4.2,100]
["PATULUL",4.2,100]
["PUEBLO NUEVO",4.2,100]
["RÍO BRAVO",4.2,100]
["SAMAYAC",4.2,100]
["SAN ANTONIO SUCHITEPÉQUEZ",4.2,100]
["SAN BERNARDINO",4.2,100]
["SAN FRANCISCO ZAPOTITLÁN",4.2,100]
["SAN GABRIEL",4.2,100]
["SAN JOSÉ EL ÍDOLO",4.2,100]
["SAN JOSÉ LA MÁQUINA",4.2,110]
["SAN JUAN BAUTISTA",4.2,100]
["SAN LORENZO",4.2,110]
["SAN MIGUEL PANÁN",4.2,100]
["SAN PABLO JOCOPILAS",4.2,100]
["SANTA BÁRBARA",4.2,100]
["SANTO DOMINGO SUCHITEPÉQUEZ",4.2,110]
["SANTO TOMÁS LA UNIÓN",4.2,100]
["ZUNILITO",4.2,100]
["MOMOSTENANGO",4.0999999999999996,100]
["SAN ANDRÉS XECUL",4.0999999999999996,100]
["SAN BARTOLO",4.0999999999999996,100]
["SAN CRISTÓBAL TOTONICAPÁN",4.0999999999999996,100]
["SAN FRANCISCO EL ALTO",4.0999999999999996,100]
["SANTA LUCÍA LA REFORMA",4.0999999999999996,100]
["SANTA MARÍA CHIQUIMULA",4.0999999999999996,100]
["TOTONICAPÁN",4.0999999999999996,100]
["CABAÑAS",4.0999999999999996,100]
["ESTANZUELA",4.0999999999999996,100]
["GUALÁN",4.0999999999999996,100]
["HUITÉ",4.0999999999999996,100]
["LA UNIÓN",4.0999999999999996,100]
["RÍO HONDO",4.0999999999999996,100]
["SAN DIEGO",4.0999999999999996,100]
["SAN JORGE ZACAPA",4.0999999999999996,100]
["TECULUTÁN",4.0999999999999996,100]
["USUMATLÁN",4.0999999999999996,100]
["ZACAPA",4.0999999999999996,100]